Body Name,Service Area,Expenses Type,Invoice Payment Date,Transaction Number,Net Amount,Supplier Name
Manchester City Council,Chief Executives,Mobilephone Charges,01.02.2011,1902452838,"1,497.59",T-Mobile
Manchester City Council,Housing General Fund,Building Works,01.02.2011,1902463074,"2,720.00",Westholme Ltd
Manchester City Council,Housing General Fund,Building Works,01.02.2011,1902463082,"3,316.02",Manchester Working Ltd
Manchester City Council,Housing General Fund,Building Works,01.02.2011,1902463085,"8,701.61",Wessex Medical Lift Co Ltd
Manchester City Council,Housing General Fund,Building Works,01.02.2011,1902467521,"10,917.00",Redacted Personal Information
Manchester City Council,Housing General Fund,Building Works,01.02.2011,1902467602,"13,500.00",A & K Building Services Ltd
Manchester City Council,Housing General Fund,Building Works,01.02.2011,1902467604,"1,981.00",AJC Builders Ltd
Manchester City Council,Hospitality + Trading Services,Catering Provisions,01.02.2011,1902467734,611.54,Brake Bros Foodservice Ltd
Manchester City Council,Hospitality + Trading Services,Catering Provisions,01.02.2011,1902467756,897.04,Brake Bros Foodservice Ltd
Manchester City Council,Hospitality + Trading Services,Catering Provisions,01.02.2011,1902467797,600.93,Brake Bros Foodservice Ltd
Manchester City Council,Hospitality + Trading Services,Works and associated costs for Land and Buildings,01.02.2011,1902467799,"732,000.00",Cobbetts LLP
Manchester City Council,Housing General Fund,Surplus property Acquisitions,01.02.2011,1902467920,"21,860.03",AST HAMPSONS
Manchester City Council,Hospitality + Trading Services,Floral Decorations,01.02.2011,5100415682,539.48,Crosby'S
Manchester City Council,Hospitality + Trading Services,Floral Decorations,01.02.2011,5100415683,832.5,Crosby'S
Manchester City Council,Chief Executives,Agency staff provision,01.02.2011,5100415693,904.42,Bennett Staff Bureau
Manchester City Council,Childrens Services,Transport Coach Hire,01.02.2011,5100415711,"6,324.79",Mr Blackcab
Manchester City Council,Childrens Services,Transport Coach Hire,01.02.2011,5100415712,"4,364.60",Mr Blackcab
Manchester City Council,Chief Executives,Agency staff provision,01.02.2011,5100415713,"9,450.10",Semester Recruitment Ltd
Manchester City Council,Grtr Manchester Transport Unit,I T Provision,01.02.2011,5100415723,723.75,Computerland Uk Ltd
Manchester City Council,Adult Social Care,Residential Furniture,01.02.2011,5100415727,"1,246.19",The Furnishing Service Ltd
Manchester City Council,Adult Social Care,Residential Furniture,01.02.2011,5100415732,824.21,The Furnishing Service Ltd
Manchester City Council,Childrens Services,Transport Coach Hire,01.02.2011,5100415770,"5,024.65",Mr Blackcab
Manchester City Council,Childrens Services,Transport Coach Hire,01.02.2011,5100415772,"6,975.55",Mr Blackcab
Manchester City Council,Childrens Services,Transport Coach Hire,01.02.2011,5100415779,"7,803.50",Mr Blackcab
Manchester City Council,Childrens Services,Agency staff provision,01.02.2011,5100415784,"3,962.33",NHS Manchester Primary Care Trust
Manchester City Council,Childrens Services,Transport Coach Hire,01.02.2011,5100415785,"12,929.96",Mr Blackcab
Manchester City Council,Childrens Services,"Consumable items eg Toilet rolls, soap etc",01.02.2011,5100415786,743.75,Manchester City Football Club Plc
Manchester City Council,Adult Social Care,Equipment,01.02.2011,5100415793,"4,190.00",Manchester Working Ltd
Manchester City Council,Chief Executives,Agency staff provision,01.02.2011,5100415798,"2,264.24",Sellick Partnership (Legal) Ltd
Manchester City Council,Chief Executives,Agency staff provision,01.02.2011,5100415800,"2,253.75",Sellick Partnership (Legal) Ltd
Manchester City Council,Chief Executives,Agency staff provision,01.02.2011,5100415801,904.8,Sellick Partnership (Legal) Ltd
Manchester City Council,Chief Executives,Agency staff provision,01.02.2011,5100415806,522.64,Enterprise Social Care Ltd
Manchester City Council,Environment and Operations,Equipment,01.02.2011,5100415807,"33,447.43",National Car Parks Manchester Ltd
Manchester City Council,Childrens Services,Works and associated costs for Land and Buildings,01.02.2011,5100415819,"45,537.00",Bramall Construction Ltd
Manchester City Council,Chief Executives,Proffesional fees,01.02.2011,5100415821,"-3,971.50",The Management Centre
Manchester City Council,Chief Executives,Proffesional fees,01.02.2011,5100415828,"1,900.00",KE Software (Uk) Ltd
Manchester City Council,Chief Executives,Agency staff provision,01.02.2011,5100415832,737.65,Homecare Support
Manchester City Council,Chief Executives,Proffesional fees,01.02.2011,5100415836,"2,860.43",Richard Fowler Associates Ltd
Manchester City Council,Chief Executives,Agency staff provision,01.02.2011,5100415849,737.17,Blue Arrow Ltd
Manchester City Council,Manchester Leisure,Payments for services,01.02.2011,5100415852,500,Manchester Sports & Leisure Trust
Manchester City Council,Chief Executives,Grant and subscriptions awarded,01.02.2011,5100415863,"3,000.00",Neesa Well Women Drop-In Project
Manchester City Council,Chief Executives,Grant and subscriptions awarded,01.02.2011,5100415864,"2,550.00",Carlisle City Council
Manchester City Council,Chief Executives,Grant and subscriptions awarded,01.02.2011,5100415864,"9,109.83",Carlisle City Council
Manchester City Council,Hospitality + Trading Services,Building Materials for direct delivery,01.02.2011,5100415896,865.44,Tarmac Central Ltd
Manchester City Council,Chief Executives,Agency staff provision,01.02.2011,5100415902,"1,151.88",Entrust Social Care
Manchester City Council,Childrens Services,Supported Accom,01.02.2011,5100415923,"2,016.00",Advanced Childcare
Manchester City Council,Chief Executives,Agency staff provision,01.02.2011,5100415926,"2,680.26",Swiis Uk Limited
Manchester City Council,Chief Executives,Occupational Health services,01.02.2011,5100415928,"5,085.00",Healthwork Ltd
Manchester City Council,Chief Executives,Occupational Health services,01.02.2011,5100415932,"9,325.00",Healthwork Ltd
Manchester City Council,Corporate Services,Contract Cleaning External,01.02.2011,5100415933,810,Floorbrite Quality Cleaning Service
Manchester City Council,Chief Executives,Agency staff provision,01.02.2011,5100415942,827.5,Morgan Hunt Public Sector Ltd
Manchester City Council,Chief Executives,Agency staff provision,01.02.2011,5100416056,"7,875.61",Hays Personnel
Manchester City Council,Chief Executives,Agency staff provision,01.02.2011,5100416084,"1,557.15",Semester Recruitment Ltd
Manchester City Council,Childrens Services,Proffesional fees,02.02.2011,1700018859,"-2,529.06",Alison Wales Associates Ltd
Manchester City Council,Childrens Services,Payments for services,02.02.2011,1700018860,-550,REDACTED PERSONAL DATA
Manchester City Council,Childrens Services,Rents,02.02.2011,1902408561,"3,179.77",Metropolitan Properties Co Ltd
Manchester City Council,Childrens Services,Transport Taxis,02.02.2011,1902450104,"1,399.00",Eastlands UK Cars
Manchester City Council,Corporate Services,Landline Telephone,02.02.2011,1902451221,"1,271.26",BT PLC
Manchester City Council,Childrens Services,Transport Taxis,02.02.2011,1902459889,"1,104.00",Eastlands UK Cars
Manchester City Council,Chief Executives,Landline Telephone,02.02.2011,1902462392,813.2,BT PLC
Manchester City Council,Chief Executives,Grant and subscriptions awarded,02.02.2011,1902462799,"1,928.00",Peel Hall Moatwatch
Manchester City Council,Chief Executives,Grant and subscriptions awarded,02.02.2011,1902462967,"2,414.63",Trinity & Sistrict Residents A'ssn
Manchester City Council,Chief Executives,Grant and subscriptions awarded,02.02.2011,1902462970,"1,863.96",Youth on Solid Ground
Manchester City Council,Childrens Services,Payments for services,02.02.2011,1902467600,600,Redacted Personal Information
Manchester City Council,Chief Executives,Grant and subscriptions awarded,02.02.2011,1902467653,"1,500.00",Fallowfield Tennants and Residents
Manchester City Council,Hospitality + Trading Services,Works and associated costs for Land and Buildings,02.02.2011,1902472175,"35,136.00",H M Revenues and Customs
Manchester City Council,Regeneration Finance,Grant and subscriptions awarded,02.02.2011,1902472177,"58,049.00",MQT (Trading as Urbis)
Manchester City Council,Childrens Services,Legal Fees,02.02.2011,1902473110,"9,275.00",HMCS
Manchester City Council,Childrens Services,Legal Fees,02.02.2011,1902473110,"6,675.00",HMCS
Manchester City Council,Childrens Services,Legal Fees,02.02.2011,1902473110,"1,900.00",HMCS
Manchester City Council,Childrens Services,Legal Fees,02.02.2011,1902473110,"1,400.00",HMCS
Manchester City Council,Manchester Leisure,Tipping - Tonnage,02.02.2011,5100346297,868.13,Enterprise Manchester Partnership
Manchester City Council,Manchester Leisure,Tipping - Tonnage,02.02.2011,5100356152,645.66,Enterprise Manchester Partnership
Manchester City Council,Manchester Leisure,Tipping - Tonnage,02.02.2011,5100398869,"1,099.43",Enterprise Manchester Partnership
Manchester City Council,Manchester Leisure,Tipping - Tonnage,02.02.2011,5100398878,894.23,Enterprise Manchester Partnership
Manchester City Council,Corporate Services,Internal Repairs and Maintenance for buildings,02.02.2011,5100409268,529.78,Newey & Eyre Ltd
Manchester City Council,Childrens Services,Works and associated costs for Land and Buildings,02.02.2011,5100414346,"18,186.90",Harry Fairclough Construction Ltd
Manchester City Council,Chief Executives,Works and associated costs for Land and Buildings,02.02.2011,5100415808,"101,170.87",GB Building Solutions Ltd
Manchester City Council,Childrens Services,Car Parking Permits,02.02.2011,5100415882,"4,695.63",National Car Parks Ltd Season Ticke
Manchester City Council,Chief Executives,Agency staff provision,02.02.2011,5100415921,827.5,Morgan Hunt Public Sector Ltd
Manchester City Council,Childrens Services,Transport Coach Hire,02.02.2011,5100415955,960,David'S Handy Rider
Manchester City Council,Childrens Services,Occupational Health services,02.02.2011,5100416021,"3,219.95",Sport Force
Manchester City Council,Childrens Services,Occupational Health services,02.02.2011,5100416023,766.85,Sport Force
Manchester City Council,Childrens Services,Training and Development,02.02.2011,5100416035,882,Optimum Training Ltd
Manchester City Council,Regeneration Finance,Consultants Fees,02.02.2011,5100416051,"3,780.00",Kpmg Llp
Manchester City Council,Hospitality + Trading Services,Vehicle Hire Costs,02.02.2011,5100416072,"29,141.72",Winners Contract Hire Ltd
Manchester City Council,Learning Disabilities PB,Payments for services,02.02.2011,5100416075,"1,946.60",Homelife Options Ltd
Manchester City Council,Learning Disabilities PB,Payments for services,02.02.2011,5100416079,"3,981.80",Homelife Options Ltd
Manchester City Council,Learning Disabilities PB,Payments for services,02.02.2011,5100416080,"1,946.60",Homelife Options Ltd
Manchester City Council,Learning Disabilities PB,Payments for services,02.02.2011,5100416081,"3,981.80",Homelife Options Ltd
Manchester City Council,Regeneration Finance,Agency staff provision,02.02.2011,5100416085,"6,829.34",The Big Life Company
Manchester City Council,Chief Executives,Agency staff provision,02.02.2011,5100416104,820.66,Aptus Personnel Ltd t/a Jark
Manchester City Council,Childrens Services,Equipment,02.02.2011,5100416115,"1,155.00",Prism UK Medical Ltd t/a Carefree
Manchester City Council,Chief Executives,Agency staff provision,02.02.2011,5100416117,"6,781.93",Reed Employment Plc
Manchester City Council,Regeneration Finance,Proffesional fees,02.02.2011,5100416132,"3,392.27",Urban Strategies Inc
Manchester City Council,Chief Executives,Equipment,02.02.2011,5100416137,"1,517.52",Data Space Limited
Manchester City Council,Hospitality + Trading Services,Catering Provisions,02.02.2011,5100416156,"1,078.80",House Of Ethnic Foods Ltd
Manchester City Council,Grtr Manchester Urban Traffic,Payments to Sub-Contractors,02.02.2011,5100416158,749.07,Peek Traffic Ltd
Manchester City Council,Grtr Manchester Urban Traffic,Payments to Sub-Contractors,02.02.2011,5100416160,"1,504.57",Peek Traffic Ltd
Manchester City Council,Adult Social Care,Refuse Collection,02.02.2011,5100416164,"1,096.20",Initial Medical Services
Manchester City Council,Grtr Manchester Urban Traffic,Payments to Sub-Contractors,02.02.2011,5100416165,519.95,Peek Traffic Ltd
Manchester City Council,Grtr Manchester Urban Traffic,Payments to Sub-Contractors,02.02.2011,5100416171,"1,423.25",Peek Traffic Ltd
Manchester City Council,Childrens Services,Publications,02.02.2011,5100416185,797.5,Russell House Publishing Ltd
Manchester City Council,Childrens Services,Training and Development,02.02.2011,5100416203,600,3A*
Manchester City Council,Corporate Services,External repairs and maintenance,02.02.2011,5100416207,-976.5,Manchester Working Ltd
Manchester City Council,Hospitality + Trading Services,Building Materials for direct delivery,02.02.2011,5100416210,505.09,Tarmac Central Ltd
Manchester City Council,Hospitality + Trading Services,Building Materials for direct delivery,02.02.2011,5100416221,"1,251.07",Tarmac Central Ltd
Manchester City Council,Childrens Services,Proffesional fees,02.02.2011,5100416227,"16,841.35",Manchester Metropolitan University
Manchester City Council,Grtr Manchester Urban Traffic,Payments to Sub-Contractors,02.02.2011,5100416233,"2,307.24",Peek Traffic Ltd
Manchester City Council,Chief Executives,Agency staff provision,02.02.2011,5100416239,896.57,Harbex Nursing & Care
Manchester City Council,Chief Executives,Agency staff provision,02.02.2011,5100416240,907.68,Harbex Nursing & Care
Manchester City Council,Grtr Manchester Urban Traffic,Payments to Sub-Contractors,02.02.2011,5100416241,550,Electricity Northwest Limited
Manchester City Council,Grtr Manchester Urban Traffic,Payments to Sub-Contractors,02.02.2011,5100416241,880,Electricity Northwest Limited
Manchester City Council,Grtr Manchester Urban Traffic,Payments to Sub-Contractors,02.02.2011,5100416242,565.63,Electricity Northwest Limited
Manchester City Council,Adult Social Care,ClothsUniformLaundry,02.02.2011,5100416243,"3,246.00",Laundryserv
Manchester City Council,Childrens Services,Training and Development,02.02.2011,5100416244,"1,000.00",Childrens University Trust
Manchester City Council,Regeneration Finance,Grant and subscriptions awarded,02.02.2011,5100416248,"2,337.00",Awaaz Manchester
Manchester City Council,Regeneration Finance,Grant and subscriptions awarded,02.02.2011,5100416249,"3,071.00",Awaaz Manchester
Manchester City Council,Childrens Services,Transport Coach Hire,02.02.2011,5100416256,630,Abacus Travel Services
Manchester City Council,Chief Executives,Hire of Premises,02.02.2011,5100416261,960,Anson Residents Association
Manchester City Council,Chief Executives,Agency staff provision,02.02.2011,5100416262,"-1,092.76",Blue Arrow Ltd
Manchester City Council,Chief Executives,Agency staff provision,02.02.2011,5100416263,"1,092.76",Blue Arrow Ltd
Manchester City Council,Chief Executives,Infrastructure Fees,02.02.2011,5100416265,"2,258.35",AECOM Limited
Manchester City Council,Childrens Services,Hire of Equipment,02.02.2011,5100416275,795.3,Sibcas Limited
Manchester City Council,Childrens Services,Works and associated costs for Land and Buildings,02.02.2011,5100416348,"-19,191.00",Willmott Dixon Construction
Manchester City Council,Chief Executives,Proffesional fees,02.02.2011,5100416381,"3,971.50",The Management Centre
Manchester City Council,Chief Executives,Mobilephone Charges,02.02.2011,5100416386,"4,125.00",T-Mobile
Manchester City Council,Grtr Manchester Urban Traffic,Payments to Sub-Contractors,02.02.2011,5100416413,"1,917.39",Peek Traffic Ltd
Manchester City Council,Grtr Manchester Urban Traffic,Payments to Sub-Contractors,02.02.2011,5100416417,"1,182.20",Peek Traffic Ltd
Manchester City Council,Grtr Manchester Urban Traffic,Payments to Sub-Contractors,02.02.2011,5100416420,"1,459.85",Peek Traffic Ltd
Manchester City Council,Hospitality + Trading Services,Payments to Sub-Contractors,02.02.2011,5100416424,550,Fine Turf Services
Manchester City Council,Hospitality + Trading Services,Vehicle Hire Costs,02.02.2011,5100416432,"10,472.98",Evans Halshaw
Manchester City Council,Hospitality + Trading Services,Vehicle Hire Costs,02.02.2011,5100416440,"10,472.98",Evans Halshaw
Manchester City Council,Hospitality + Trading Services,Vehicle Hire Costs,02.02.2011,5100416447,"10,472.98",Evans Halshaw
Manchester City Council,Learning Disabilities PB,Payments for services,02.02.2011,5100416468,"2,746.28",Homelife Options Ltd
Manchester City Council,Learning Disabilities PB,Payments for services,02.02.2011,5100416472,"2,746.28",Homelife Options Ltd
Manchester City Council,Learning Disabilities PB,Payments for services,02.02.2011,5100416474,"2,746.28",Homelife Options Ltd
Manchester City Council,Learning Disabilities PB,Payments for services,02.02.2011,5100416478,"3,981.80",Homelife Options Ltd
Manchester City Council,Chief Executives,Agency staff provision,02.02.2011,5100416484,982,Harbex Nursing & Care
Manchester City Council,Chief Executives,Agency staff provision,02.02.2011,5100416487,"1,992.89",Harbex Nursing & Care
Manchester City Council,Grtr Manchester Urban Traffic,Payments to Sub-Contractors,02.02.2011,5100416520,569.52,Peek Traffic Ltd
Manchester City Council,Grtr Manchester Urban Traffic,Payments to Sub-Contractors,02.02.2011,5100416591,"4,280.00",Peek Traffic Ltd
Manchester City Council,Section 48,Grant and subscriptions awarded,02.02.2011,5100416593,"5,000.00",Wigan Leisure & Culture Enterprises
Manchester City Council,Hospitality + Trading Services,Building Materials for direct delivery,02.02.2011,5100416806,"1,104.00",Buildbase Ltd aka Axon Buildbase
Manchester City Council,Corporate Services,Electricity,03.02.2011,1700018862,"-1,216.95",Scottish & Southern Energy Plc
Manchester City Council,Housing General Fund,Building Works,03.02.2011,1902452743,"3,650.00",Manchester Working Ltd
Manchester City Council,Childrens Services,Proffesional fees,03.02.2011,1902452841,511.29,Stephensons Solicitors
Manchester City Council,Environment and Operations,Landline Telephone,03.02.2011,1902459930,571.2,BT PLC
Manchester City Council,Childrens Services,Supported Accom,03.02.2011,1902463078,"1,951.43",THE LEAVING CARE COMPANY
Manchester City Council,Childrens Services,Supported Accom,03.02.2011,1902463083,"2,732.00",THE LEAVING CARE COMPANY
Manchester City Council,Childrens Services,Proffesional fees,03.02.2011,1902467561,"1,250.00",Redacted Personal Information
Manchester City Council,Childrens Services,Proffesional fees,03.02.2011,1902467605,866.35,Bromley Hyde & Robinson
Manchester City Council,Housing General Fund,Surplus property Acquisitions,03.02.2011,1902467624,"3,260.00",REDACTED PERSONAL DATA
Manchester City Council,Childrens Services,Catering Provisions,03.02.2011,1902467625,542.07,Redacted Personal Information
Manchester City Council,Libraries and Theatres,Library Materials Acquisition,03.02.2011,1902471950,661.06,Magna Large Print Books
Manchester City Council,Grtr Manchester Transport Unit,Payments to Sub-Contractors,03.02.2011,1902472002,500,Redacted Personal Information
Manchester City Council,Highways Services,Compensation Payments,03.02.2011,1902472025,"9,250.00",Fentons Solicitors LLP
Manchester City Council,Housing General Fund,Building Works,03.02.2011,1902472047,"1,713.00",AJC Builders Ltd
Manchester City Council,Childrens Services,Proffesional fees,03.02.2011,1902472099,"4,259.37",REDACTED PERSONAL DATA
Manchester City Council,Childrens Services,Proffesional fees,03.02.2011,1902472154,"1,065.23",Bromley Hyde & Robinson
Manchester City Council,Childrens Services,Proffesional fees,03.02.2011,1902472173,845.78,Bromley Hyde & Robinson
Manchester City Council,Childrens Services,Proffesional fees,03.02.2011,1902472182,873.19,Bromley Hyde & Robinson
Manchester City Council,Childrens Services,General Payments not otherwise categorised,03.02.2011,1902473034,"7,000.00",REDACTED PERSONAL DATA
Manchester City Council,Chief Executives,Section 18 Payments,03.02.2011,1902473095,"1,321.87",Redacted Personal Information
Manchester City Council,Hospitality + Trading Services,Catering Provisions,03.02.2011,1902473808,576.4,Chicken Joes Limited
Manchester City Council,Hospitality + Trading Services,Catering Provisions,03.02.2011,1902474070,583.5,Brake Bros Foodservice Ltd
Manchester City Council,Hospitality + Trading Services,Catering Provisions,03.02.2011,1902474078,521.83,Brake Bros Foodservice Ltd
Manchester City Council,Hospitality + Trading Services,Catering Provisions,03.02.2011,1902474391,585.01,Brake Bros Foodservice Ltd
Manchester City Council,Housing General Fund,Building Works,03.02.2011,1902474438,"2,520.00",REDACTED PERSONAL DATA
Manchester City Council,Adult Social Care,Electricity,03.02.2011,1902474444,"2,800.73",Scottish & Southern Energy Plc
Manchester City Council,Manchester Leisure,Electricity,03.02.2011,1902474445,592.42,Scottish & Southern Energy Plc
Manchester City Council,Environment and Operations,Electricity,03.02.2011,1902474449,"1,973.29",Scottish & Southern Energy Plc
Manchester City Council,Adult Social Care,Electricity,03.02.2011,1902474450,509.71,Scottish & Southern Energy Plc
Manchester City Council,Adult Social Care,Electricity,03.02.2011,1902474451,622.74,Scottish & Southern Energy Plc
Manchester City Council,Manchester Leisure,Electricity,03.02.2011,1902474453,986.14,Scottish & Southern Energy Plc
Manchester City Council,Childrens Services,Electricity,03.02.2011,1902474454,820.35,Scottish & Southern Energy Plc
Manchester City Council,Adult Social Care,Electricity,03.02.2011,1902474455,894.43,Scottish & Southern Energy Plc
Manchester City Council,Adult Social Care,Electricity,03.02.2011,1902474456,914.23,Scottish & Southern Energy Plc
Manchester City Council,Chief Executives,Electricity,03.02.2011,1902474457,945.14,Scottish & Southern Energy Plc
Manchester City Council,Adult Social Care,Electricity,03.02.2011,1902474458,"2,231.12",Scottish & Southern Energy Plc
Manchester City Council,Childrens Services,Electricity,03.02.2011,1902474460,710.06,Scottish & Southern Energy Plc
Manchester City Council,Chief Executives,Electricity,03.02.2011,1902474462,963.61,Scottish & Southern Energy Plc
Manchester City Council,Libraries and Theatres,Electricity,03.02.2011,1902474463,755.42,Scottish & Southern Energy Plc
Manchester City Council,Environment and Operations,Electricity,03.02.2011,1902474464,"1,055.01",Scottish & Southern Energy Plc
Manchester City Council,Manchester Leisure,Electricity,03.02.2011,1902474465,"2,166.01",Scottish & Southern Energy Plc
Manchester City Council,Housing Revenue Account,Electricity,03.02.2011,1902474466,901.69,Scottish & Southern Energy Plc
Manchester City Council,Libraries and Theatres,Electricity,03.02.2011,1902474467,"1,155.47",Scottish & Southern Energy Plc
Manchester City Council,Chief Executives,Electricity,03.02.2011,1902474468,827.95,Scottish & Southern Energy Plc
Manchester City Council,Adult Social Care,Electricity,03.02.2011,1902474470,596.77,Scottish & Southern Energy Plc
Manchester City Council,Housing Revenue Account,Electricity,03.02.2011,1902474471,974.15,Scottish & Southern Energy Plc
Manchester City Council,Chief Executives,Electricity,03.02.2011,1902474472,876.15,Scottish & Southern Energy Plc
Manchester City Council,Housing Revenue Account,Electricity,03.02.2011,1902474474,682.09,Scottish & Southern Energy Plc
Manchester City Council,Hospitality + Trading Services,Electricity,03.02.2011,1902474475,760.86,Scottish & Southern Energy Plc
Manchester City Council,Childrens Services,Electricity,03.02.2011,1902474476,597.65,Scottish & Southern Energy Plc
Manchester City Council,Adult Social Care,Electricity,03.02.2011,1902474478,"1,443.94",Scottish & Southern Energy Plc
Manchester City Council,Adult Social Care,Electricity,03.02.2011,1902474479,776.27,Scottish & Southern Energy Plc
Manchester City Council,Childrens Services,Electricity,03.02.2011,1902474480,527.21,Scottish & Southern Energy Plc
Manchester City Council,Chief Executives,Electricity,03.02.2011,1902474481,582.5,Scottish & Southern Energy Plc
Manchester City Council,Adult Social Care,Electricity,03.02.2011,1902474482,751.72,Scottish & Southern Energy Plc
Manchester City Council,Chief Executives,Electricity,03.02.2011,1902474483,798.11,Scottish & Southern Energy Plc
Manchester City Council,Environment and Operations,Electricity,03.02.2011,1902474484,735.72,Scottish & Southern Energy Plc
Manchester City Council,Chief Executives,Electricity,03.02.2011,1902474485,687.59,Scottish & Southern Energy Plc
Manchester City Council,Housing Revenue Account,Electricity,03.02.2011,1902474487,733.5,Scottish & Southern Energy Plc
Manchester City Council,Chief Executives,Electricity,03.02.2011,1902474488,"1,093.32",Scottish & Southern Energy Plc
Manchester City Council,Housing Revenue Account,Electricity,03.02.2011,1902474489,841.69,Scottish & Southern Energy Plc
Manchester City Council,Adult Social Care,Electricity,03.02.2011,1902474490,"1,322.33",Scottish & Southern Energy Plc
Manchester City Council,Corporate Services,Electricity,03.02.2011,1902474492,835.69,Scottish & Southern Energy Plc
Manchester City Council,Hospitality + Trading Services,Electricity,03.02.2011,1902474494,680.14,Scottish & Southern Energy Plc
Manchester City Council,Regeneration Finance,Electricity,03.02.2011,1902474495,776.71,Scottish & Southern Energy Plc
Manchester City Council,Corporate Services,Electricity,03.02.2011,1902474496,523.43,Scottish & Southern Energy Plc
Manchester City Council,Childrens Services,Electricity,03.02.2011,1902474497,"1,447.70",Scottish & Southern Energy Plc
Manchester City Council,Chief Executives,Electricity,03.02.2011,1902474498,734.8,Scottish & Southern Energy Plc
Manchester City Council,Hospitality + Trading Services,Electricity,03.02.2011,1902474499,"1,925.49",Scottish & Southern Energy Plc
Manchester City Council,Hospitality + Trading Services,Electricity,03.02.2011,1902474500,"22,628.04",Scottish & Southern Energy Plc
Manchester City Council,Hospitality + Trading Services,Electricity,03.02.2011,1902474501,"2,726.49",Scottish & Southern Energy Plc
Manchester City Council,Environment and Operations,Electricity,03.02.2011,1902474502,"2,695.55",Scottish & Southern Energy Plc
Manchester City Council,Libraries and Theatres,Electricity,03.02.2011,1902474503,"1,400.09",Scottish & Southern Energy Plc
Manchester City Council,Hospitality + Trading Services,Electricity,03.02.2011,1902474504,"4,198.97",Scottish & Southern Energy Plc
Manchester City Council,Childrens Services,Electricity,03.02.2011,1902474505,"2,753.29",Scottish & Southern Energy Plc
Manchester City Council,Environment and Operations,Electricity,03.02.2011,1902474506,850.8,Scottish & Southern Energy Plc
Manchester City Council,Hospitality + Trading Services,Electricity,03.02.2011,1902474507,"9,971.14",Scottish & Southern Energy Plc
Manchester City Council,Environment and Operations,Electricity,03.02.2011,1902474508,648.19,Scottish & Southern Energy Plc
Manchester City Council,Corporate Services,Electricity,03.02.2011,1902474509,"11,703.57",Scottish & Southern Energy Plc
Manchester City Council,Corporate Services,Electricity,03.02.2011,1902474510,"4,831.41",Scottish & Southern Energy Plc
Manchester City Council,Hospitality + Trading Services,Electricity,03.02.2011,1902474511,"12,999.28",Scottish & Southern Energy Plc
Manchester City Council,Corporate Services,Electricity,03.02.2011,1902474512,"12,029.97",Scottish & Southern Energy Plc
Manchester City Council,Adult Social Care,Electricity,03.02.2011,1902474513,"1,457.97",Scottish & Southern Energy Plc
Manchester City Council,Manchester Leisure,Electricity,03.02.2011,1902474514,"1,312.36",Scottish & Southern Energy Plc
Manchester City Council,Chief Executives,Electricity,03.02.2011,1902474515,"19,809.48",Scottish & Southern Energy Plc
Manchester City Council,Childrens Services,Electricity,03.02.2011,1902474516,601.32,Scottish & Southern Energy Plc
Manchester City Council,Manchester Leisure,Electricity,03.02.2011,1902474517,"3,570.59",Scottish & Southern Energy Plc
Manchester City Council,Corporate Services,Electricity,03.02.2011,1902474518,"10,765.87",Scottish & Southern Energy Plc
Manchester City Council,Environment and Operations,Electricity,03.02.2011,1902474519,"8,083.40",Scottish & Southern Energy Plc
Manchester City Council,Corporate Services,Electricity,03.02.2011,1902474520,"4,321.30",Scottish & Southern Energy Plc
Manchester City Council,Chief Executives,Electricity,03.02.2011,1902474521,"12,730.67",Scottish & Southern Energy Plc
Manchester City Council,Hospitality + Trading Services,Electricity,03.02.2011,1902474522,"1,724.84",Scottish & Southern Energy Plc
Manchester City Council,Regeneration Finance,Electricity,03.02.2011,1902474523,"6,549.55",Scottish & Southern Energy Plc
Manchester City Council,Hospitality + Trading Services,Electricity,03.02.2011,1902474524,"13,983.78",Scottish & Southern Energy Plc
Manchester City Council,Environment and Operations,Electricity,03.02.2011,1902474525,"4,129.78",Scottish & Southern Energy Plc
Manchester City Council,Manchester Leisure,Electricity,03.02.2011,1902474526,"7,750.05",Scottish & Southern Energy Plc
Manchester City Council,Adult Social Care,Electricity,03.02.2011,1902474527,"2,373.85",Scottish & Southern Energy Plc
Manchester City Council,Childrens Services,Electricity,03.02.2011,1902474528,"5,405.31",Scottish & Southern Energy Plc
Manchester City Council,Housing Revenue Account,Gas,03.02.2011,1902474529,"6,568.15",Corona Energy Ltd
Manchester City Council,Housing Revenue Account,Gas,03.02.2011,1902474530,"1,798.74",Corona Energy Ltd
Manchester City Council,Housing Revenue Account,Gas,03.02.2011,1902474531,"3,389.05",Corona Energy Ltd
Manchester City Council,Chief Executives,Gas,03.02.2011,1902474532,"55,102.37",Corona Energy Ltd
Manchester City Council,Chief Executives,Gas,03.02.2011,1902474533,"41,812.74",Corona Energy Ltd
Manchester City Council,Chief Executives,Gas,03.02.2011,1902474536,"2,973.39",British Gas Plc
Manchester City Council,Chief Executives,Legal Fees,03.02.2011,1902474655,630,HMCS
Manchester City Council,Adult Social Care,"Consumable items eg Toilet rolls, soap etc",03.02.2011,5100371539,609.15,Zip Heaters (Uk) Ltd
Manchester City Council,Manchester Leisure,Equipment,03.02.2011,5100399345,582.3,Stadia Sports International Ltd
Manchester City Council,Housing Revenue Account,Council Dwelling Adaptations,03.02.2011,5100415822,"1,777.00",Handicare  UK Ltd
Manchester City Council,Regeneration Finance,Agency staff provision,03.02.2011,5100415856,"6,989.21",Department For Transport
Manchester City Council,Hospitality + Trading Services,Vehicle Parts/Spares,03.02.2011,5100416083,"7,294.43",Stapletons Tyre Services
Manchester City Council,Childrens Services,Grant and subscriptions awarded,03.02.2011,5100416149,"86,000.00",Better Choices Ltd
Manchester City Council,Chief Executives,Infrastructure Fees,03.02.2011,5100416182,680,IDS Land Survey
Manchester City Council,Hospitality + Trading Services,Vehicle Costs,03.02.2011,5100416188,532.5,Approved Hydraulics
Manchester City Council,Childrens Services,Transport Coach Hire,03.02.2011,5100416220,"4,830.00",G.M Travel
Manchester City Council,Chief Executives,Agency staff provision,03.02.2011,5100416277,850.9,Medicare First
Manchester City Council,Chief Executives,Agency staff provision,03.02.2011,5100416278,"1,039.70",Medicare First
Manchester City Council,Chief Executives,Agency staff provision,03.02.2011,5100416280,"1,213.80",Medicare First
Manchester City Council,Regeneration Finance,Proffesional fees,03.02.2011,5100416414,"2,460.00",Hemisphere Design
Manchester City Council,Regeneration Finance,Proffesional fees,03.02.2011,5100416418,"1,400.00",Hemisphere Design
Manchester City Council,Hospitality + Trading Services,Hire of Equipment,03.02.2011,5100416460,"-4,751.36",T M Newburn Group Limited
Manchester City Council,Hospitality + Trading Services,Hire of Equipment,03.02.2011,5100416461,"-4,439.04",T M Newburn Group Limited
Manchester City Council,Hospitality + Trading Services,Hire of Equipment,03.02.2011,5100416463,"-8,051.20",T M Newburn Group Limited
Manchester City Council,Hospitality + Trading Services,Hire of Equipment,03.02.2011,5100416465,"-3,473.28",T M Newburn Group Limited
Manchester City Council,Hospitality + Trading Services,Hire of Equipment,03.02.2011,5100416466,"-7,324.16",T M Newburn Group Limited
Manchester City Council,Childrens Services,Transport Coach Hire,03.02.2011,5100416494,"3,561.50",Redacted Personal Information
Manchester City Council,Chief Executives,I T Provision,03.02.2011,5100416530,911.95,Cofely Ltd
Manchester City Council,Regeneration Finance,Agency staff provision,03.02.2011,5100416572,"3,503.04",Manchester Professional
Manchester City Council,Section 48,Grant and subscriptions awarded,03.02.2011,5100416595,"170,100.00",Wigan Leisure & Culture Enterprises
Manchester City Council,Grtr Manchester Urban Traffic,Payments to Sub-Contractors,03.02.2011,5100416600,"3,878.36",Peek Traffic Ltd
Manchester City Council,Chief Executives,Advertising,03.02.2011,5100416605,"38,900.99",MEN Media Ltd
Manchester City Council,Grtr Manchester Urban Traffic,Payments to Sub-Contractors,03.02.2011,5100416607,"1,638.09",Peek Traffic Ltd
Manchester City Council,Grtr Manchester Urban Traffic,Payments to Sub-Contractors,03.02.2011,5100416614,520,Electricity Northwest Limited
Manchester City Council,Chief Executives,Construction Works,03.02.2011,5100416615,"6,411.13",Rosgal Ltd
Manchester City Council,Grtr Manchester Urban Traffic,I T Provision,03.02.2011,5100416616,"3,637.50",Siemens Plc
Manchester City Council,Hospitality + Trading Services,Vehicle Hire Costs,03.02.2011,5100416624,"1,771.60",Aebi Schmidt Ltd
Manchester City Council,Adult Social Care,Funeral and coroner related services,03.02.2011,5100416632,940,Michael Kennedy Funeral Service
Manchester City Council,Adult Social Care,Funeral and coroner related services,03.02.2011,5100416635,995,Michael Kennedy Funeral Service
Manchester City Council,Adult Social Care,Funeral and coroner related services,03.02.2011,5100416638,"1,118.00",Michael Kennedy Funeral Service
Manchester City Council,Adult Social Care,Funeral and coroner related services,03.02.2011,5100416643,"1,132.00",Michael Kennedy Funeral Service
Manchester City Council,Chief Executives,Construction Works,03.02.2011,5100416645,"3,078.54",Rosgal Ltd
Manchester City Council,Grtr Manchester Urban Traffic,Payments to Sub-Contractors,03.02.2011,5100416648,"41,464.73",Rosgal Ltd
Manchester City Council,Grtr Manchester Urban Traffic,Payments to Sub-Contractors,03.02.2011,5100416650,628.78,Electricity Northwest Limited
Manchester City Council,Grtr Manchester Urban Traffic,Payments to Sub-Contractors,03.02.2011,5100416654,"20,000.00",Rosgal Ltd
Manchester City Council,Grtr Manchester Urban Traffic,Payments to Sub-Contractors,03.02.2011,5100416655,"3,193.38",Rosgal Ltd
Manchester City Council,Adult Social Care,Third party payments to other Local Authorities,03.02.2011,5100416658,"50,093.16",Oldham Borough Council
Manchester City Council,Hospitality + Trading Services,Proffesional fees,03.02.2011,5100416690,"1,008.00",Criminal Records Bureau
Manchester City Council,Grtr Manchester Urban Traffic,Payments to Sub-Contractors,03.02.2011,5100416697,"5,407.86",Rosgal Ltd
Manchester City Council,Grtr Manchester Urban Traffic,Payments to Sub-Contractors,03.02.2011,5100416705,"3,549.00",Rosgal Ltd
Manchester City Council,Grtr Manchester Urban Traffic,Payments to Sub-Contractors,03.02.2011,5100416708,"5,235.00",Rosgal Ltd
Manchester City Council,Chief Executives,Construction Works,03.02.2011,5100416721,"3,134.22",Rosgal Ltd
Manchester City Council,Chief Executives,Construction Works,03.02.2011,5100416723,"40,000.00",Rosgal Ltd
Manchester City Council,Chief Executives,Construction Works,03.02.2011,5100416726,514.53,Rosgal Ltd
Manchester City Council,Chief Executives,Grant and subscriptions awarded,03.02.2011,5100416727,634.8,Cheshire East Borough Council
Manchester City Council,Grtr Manchester Urban Traffic,Payments to Sub-Contractors,03.02.2011,5100416730,"7,000.00",Rosgal Ltd
Manchester City Council,Chief Executives,Grant and subscriptions awarded,03.02.2011,5100416731,"4,000.00",Burnley Borough Council
Manchester City Council,Childrens Services,I T Provision,03.02.2011,5100416734,"1,304.05",Citrix Online UK Ltd
Manchester City Council,Grtr Manchester Urban Traffic,Payments to Sub-Contractors,03.02.2011,5100416740,"30,000.00",Rosgal Ltd
Manchester City Council,Grtr Manchester Urban Traffic,Payments to Sub-Contractors,03.02.2011,5100416743,"1,086.87",Peek Traffic Ltd
Manchester City Council,Grtr Manchester Urban Traffic,Payments to Sub-Contractors,03.02.2011,5100416744,937,Peek Traffic Ltd
Manchester City Council,Grtr Manchester Urban Traffic,Payments to Sub-Contractors,03.02.2011,5100416745,"1,088.40",Peek Traffic Ltd
Manchester City Council,Grtr Manchester Urban Traffic,Payments to Sub-Contractors,03.02.2011,5100416748,908.94,Peek Traffic Ltd
Manchester City Council,Grtr Manchester Urban Traffic,Payments to Sub-Contractors,03.02.2011,5100416750,"1,811.63",Peek Traffic Ltd
Manchester City Council,Grtr Manchester Urban Traffic,Payments to Sub-Contractors,03.02.2011,5100416753,"1,060.82",Peek Traffic Ltd
Manchester City Council,Grtr Manchester Urban Traffic,Payments to Sub-Contractors,03.02.2011,5100416758,523.56,Peek Traffic Ltd
Manchester City Council,Grtr Manchester Urban Traffic,Payments to Sub-Contractors,03.02.2011,5100416762,"1,108.64",Peek Traffic Ltd
Manchester City Council,Adult Social Care,"Consumable items eg Toilet rolls, soap etc",03.02.2011,5100416768,-609.15,Zip Heaters (Uk) Ltd
Manchester City Council,Chief Executives,Agency staff provision,03.02.2011,5100416776,959.04,Sellick Partnership (Legal) Ltd
Manchester City Council,Grtr Manchester Urban Traffic,Payments to Sub-Contractors,03.02.2011,5100416780,948.66,Peek Traffic Ltd
Manchester City Council,Grtr Manchester Urban Traffic,Payments to Sub-Contractors,03.02.2011,5100416781,"1,652.00",Rosgal Ltd
Manchester City Council,Grtr Manchester Urban Traffic,Payments to Sub-Contractors,03.02.2011,5100416786,"2,112.41",Peek Traffic Ltd
Manchester City Council,Childrens Services,Works and associated costs for Land and Buildings,03.02.2011,5100416788,"2,329.00",BT PLC
Manchester City Council,Grtr Manchester Urban Traffic,Payments to Sub-Contractors,03.02.2011,5100416789,"1,041.24",Peek Traffic Ltd
Manchester City Council,Childrens Services,Legal Fees,03.02.2011,5100416792,"2,500.00",Redacted Personal Information
Manchester City Council,Childrens Services,Third party payments to other Local Authorities,03.02.2011,5100416793,"5,102.50",Derbyshire County Council
Manchester City Council,Grtr Manchester Urban Traffic,Payments to Sub-Contractors,03.02.2011,5100416794,"1,379.00",Rosgal Ltd
Manchester City Council,Grtr Manchester Urban Traffic,Payments to Sub-Contractors,03.02.2011,5100416799,770,Rosgal Ltd
Manchester City Council,Chief Executives,Hire of Equipment,03.02.2011,5100416800,"1,788.48",DBN Lighting
Manchester City Council,Grtr Manchester Urban Traffic,Payments to Sub-Contractors,03.02.2011,5100416804,585,Rosgal Ltd
Manchester City Council,Grtr Manchester Urban Traffic,Payments to Sub-Contractors,03.02.2011,5100416805,745,Rosgal Ltd
Manchester City Council,Grtr Manchester Urban Traffic,Payments to Sub-Contractors,03.02.2011,5100416810,819,Rosgal Ltd
Manchester City Council,Housing Revenue Account,Gas,03.02.2011,5100416818,"8,754.97",Northwards Housing Limited
Manchester City Council,Housing Revenue Account,Gas,03.02.2011,5100416818,"21,887.41",Northwards Housing Limited
Manchester City Council,Grtr Manchester Urban Traffic,Payments to Sub-Contractors,03.02.2011,5100416821,585,Rosgal Ltd
Manchester City Council,Grtr Manchester Urban Traffic,Payments to Sub-Contractors,03.02.2011,5100416823,585,Rosgal Ltd
Manchester City Council,Housing Revenue Account,Gas,03.02.2011,5100416824,"43,921.31",Northwards Housing Limited
Manchester City Council,Housing Revenue Account,Gas,03.02.2011,5100416824,"109,803.33",Northwards Housing Limited
Manchester City Council,Grtr Manchester Urban Traffic,Payments to Sub-Contractors,03.02.2011,5100416829,"1,015.00",Rosgal Ltd
Manchester City Council,Adult Social Care,I T Provision,03.02.2011,5100416833,"2,631.41",Network Communication Systems Ltd
Manchester City Council,Childrens Services,Training and Development,03.02.2011,5100416842,"1,100.00",Fischer Education Project Ltd
Manchester City Council,Grtr Manchester Urban Traffic,Payments to Sub-Contractors,03.02.2011,5100416843,565.63,Electricity Northwest Limited
Manchester City Council,Chief Executives,Advertising,03.02.2011,5100416845,510,J.C.Decaux Uk Limited
Manchester City Council,Chief Executives,Advertising,03.02.2011,5100416846,"10,540.00",J.C.Decaux Uk Limited
Manchester City Council,Chief Executives,Advertising,03.02.2011,5100416847,510,J.C.Decaux Uk Limited
Manchester City Council,Childrens Services,Building Works,03.02.2011,5100416850,"12,512.84",Laing O'Rourke Construction Ltd
Manchester City Council,Environment and Operations,Proffesional fees,03.02.2011,5100416872,"1,141.00",AMEC Earth & Environmental (UK) Ltd
Manchester City Council,Adult Social Care,Bed & Breakfast Acc,03.02.2011,5100416883,"-7,733.96",Northwards Housing Limited
Manchester City Council,Grtr Manchester Urban Traffic,Payments to Sub-Contractors,03.02.2011,5100416898,620.16,Peek Traffic Ltd
Manchester City Council,Environment and Operations,Contract Cleaning External,03.02.2011,5100416902,"1,145.23",Manchester Airport Plc
Manchester City Council,Environment and Operations,Heat Management,03.02.2011,5100416905,659.95,Manchester Airport Plc
Manchester City Council,Environment and Operations,Proffesional fees,03.02.2011,5100416910,700.2,Osborne Richardson
Manchester City Council,Adult Social Care,Third party payments to other Local Authorities,03.02.2011,5100416915,"33,214.20",Stockport Mbc
Manchester City Council,Corporate Services,Works and associated costs for Land and Buildings,03.02.2011,5100416916,"7,300.00",Davis Langdon
Manchester City Council,Corporate Services,Works and associated costs for Land and Buildings,03.02.2011,5100416916,"13,600.00",Davis Langdon
Manchester City Council,Housing Revenue Account,Council Dwelling Adaptations,03.02.2011,5100416940,"66,486.38",Manchester Working Ltd
Manchester City Council,Housing Revenue Account,Council Dwelling Adaptations,03.02.2011,5100416941,"12,624.00",Manchester Working Ltd
Manchester City Council,Housing Revenue Account,Council Dwelling Adaptations,03.02.2011,5100416943,"40,809.68",Manchester Working Ltd
Manchester City Council,Housing Revenue Account,Council Dwelling Adaptations,03.02.2011,5100416949,"71,654.32",Manchester Working Ltd
Manchester City Council,Chief Executives,Legal Fees,03.02.2011,5100416952,655,Anglo European Private Detectives L
Manchester City Council,Childrens Services,Bed & Breakfast Acc,03.02.2011,5100416972,625.03,Victoria Park Independence Proj Ltd
Manchester City Council,Childrens Services,Bed & Breakfast Acc,03.02.2011,5100416973,625.03,Victoria Park Independence Proj Ltd
Manchester City Council,Chief Executives,Printing,03.02.2011,5100416995,836,W L Coller Ltd
Manchester City Council,Grtr Manchester Urban Traffic,Payments to Sub-Contractors,03.02.2011,5100417000,"1,170.00",Rosgal Ltd
Manchester City Council,Childrens Services,Proffesional fees,03.02.2011,5100417001,"2,249.10",Black Health Agency
Manchester City Council,Childrens Services,Proffesional fees,03.02.2011,5100417005,"4,887.43",Black Health Agency
Manchester City Council,Childrens Services,Proffesional fees,03.02.2011,5100417006,"4,887.43",Black Health Agency
Manchester City Council,Adult Social Care,Third party payments to other Local Authorities,03.02.2011,5100417015,"75,517.98",Bury M.B.C.
Manchester City Council,Childrens Services,Agency staff provision,03.02.2011,5100417029,"10,205.70",The Guide Dogs for the Blind Assoc
Manchester City Council,Childrens Services,Proffesional fees,03.02.2011,5100417030,"7,260.91","Birch Community Association,"
Manchester City Council,Adult Social Care,Equipment,03.02.2011,5100417053,650.56,Hugh Steeper Ltd
Manchester City Council,Chief Executives,Agency staff provision,03.02.2011,5100417058,"2,600.21",Morson International
Manchester City Council,Childrens Services,Fencing,03.02.2011,5100417061,629.2,Sibcas Limited
Manchester City Council,Chief Executives,Agency staff provision,03.02.2011,5100417064,"1,730.20",Morson International
Manchester City Council,Chief Executives,Agency staff provision,03.02.2011,5100417068,625.61,Morson International
Manchester City Council,Chief Executives,Agency staff provision,03.02.2011,5100417069,"1,117.23",Morson International
Manchester City Council,Childrens Services,Hire of Equipment,03.02.2011,5100417070,702,Sibcas Limited
Manchester City Council,Chief Executives,Agency staff provision,03.02.2011,5100417071,"2,608.69",Morson International
Manchester City Council,Adult Social Care,Equipment,03.02.2011,5100417074,633.6,Frontier Therapeutics
Manchester City Council,Childrens Services,Hire of Equipment,03.02.2011,5100417077,"1,546.60",Sibcas Limited
Manchester City Council,Regeneration Finance,Agency staff provision,03.02.2011,5100417083,"3,977.27",The Manchester College
Manchester City Council,Corporate Services,External repairs and maintenance for buildings,03.02.2011,5100417096,"16,450.92",GB Building Solutions Ltd
Manchester City Council,Childrens Services,Proffesional fees,03.02.2011,5100417108,"2,102.47",Projekts Skate Park
Manchester City Council,Grtr Manchester Urban Traffic,Payments to Sub-Contractors,03.02.2011,5100417115,"1,610.38",Siemens Plc
Manchester City Council,Manchester Leisure,Proffesional fees,03.02.2011,5100417120,583.1,Group 4 Total Security Ltd T/A G4S
Manchester City Council,Childrens Services,Hire of Equipment,03.02.2011,5100417128,-702,Sibcas Limited
Manchester City Council,Grtr Manchester Urban Traffic,Payments to Sub-Contractors,03.02.2011,5100417130,"1,316.52",Siemens Plc
Manchester City Council,Manchester Leisure,Payments for services,03.02.2011,5100417136,"7,500.00",British Gymnastics
Manchester City Council,Childrens Services,Home Care ,03.02.2011,5100417140,"6,800.00",Welfare Call (LAC) Ltd
Manchester City Council,Childrens Services,Transport Coach Hire,03.02.2011,5100417141,614,Saltax Ltd
Manchester City Council,Regeneration Finance,Home Care ,03.02.2011,5100417147,"1,512.00",Little Cedars
Manchester City Council,Chief Executives,Construction Works,03.02.2011,5100417165,"1,230.19",Rosgal Ltd
Manchester City Council,Environment and Operations,Third Party Payments relating to Street Scene Work,03.02.2011,5100417175,"6,435.00",Plantscape
Manchester City Council,Childrens Services,Transport Coach Hire,03.02.2011,5100417178,"1,520.00",Redacted Personal Information
Manchester City Council,Regeneration Finance,Home Care ,03.02.2011,5100417179,"1,512.00",Little Cedars
Manchester City Council,Manchester Leisure,Equipment,03.02.2011,5100417181,737.2,Group 4 Total Security Ltd T/A G4S
Manchester City Council,Learning Disabilities PB,Grant and subscriptions awarded,03.02.2011,5100417189,"2,498.25",Manchester People First
Manchester City Council,Childrens Services,Payments for services,03.02.2011,5100417191,692.8,Unity Organising Group
Manchester City Council,Childrens Services,Training and Development,03.02.2011,5100417192,562.8,TTS Group Ltd
Manchester City Council,Hospitality + Trading Services,I T Provision,03.02.2011,5100417196,"3,000.00",Energy Controls
Manchester City Council,Grtr Manchester Urban Traffic,I T Provision,03.02.2011,5100417204,"3,637.50",Siemens Plc
Manchester City Council,Manchester Leisure,Equipment,03.02.2011,5100417208,803.9,Group 4 Total Security Ltd T/A G4S
Manchester City Council,Manchester Leisure,Equipment,03.02.2011,5100417211,"1,607.50",Group 4 Total Security Ltd T/A G4S
Manchester City Council,Manchester Leisure,Equipment,03.02.2011,5100417218,"2,478.56",Group 4 Total Security Ltd T/A G4S
Manchester City Council,Grtr Manchester Urban Traffic,Payments to Sub-Contractors,03.02.2011,5100417237,"10,760.42",Rosgal Ltd
Manchester City Council,Grtr Manchester Urban Traffic,Payments to Sub-Contractors,03.02.2011,5100417237,"24,710.95",Rosgal Ltd
Manchester City Council,Grtr Manchester Urban Traffic,Payments to Sub-Contractors,03.02.2011,5100417242,"2,790.27",Rosgal Ltd
Manchester City Council,Grtr Manchester Urban Traffic,Payments to Sub-Contractors,03.02.2011,5100417242,"5,642.37",Rosgal Ltd
Manchester City Council,Learning Disabilities PB,Payments for services,03.02.2011,5100417244,"39,910.98",Creative Support Limited
Manchester City Council,Environment and Operations,Proffesional fees,03.02.2011,5100417247,"3,381.73",Buckley & Rowbotham
Manchester City Council,Childrens Services,Transport Coach Hire,03.02.2011,5100417265,900,Streetways Ltd
Manchester City Council,Childrens Services,Proffesional fees,03.02.2011,5100417273,"19,016.00",Education Business Solutions
Manchester City Council,Hospitality + Trading Services,Payments to Sub-Contractors,03.02.2011,5100417277,"4,349.15",Stretford Industrial Services Ltd
Manchester City Council,Childrens Services,Hire of Equipment,03.02.2011,5100417282,520,Sibcas Limited
Manchester City Council,Childrens Services,Transport Coach Hire,03.02.2011,5100417283,"11,993.20",AAB Travel
Manchester City Council,Chief Executives,Agency staff provision,03.02.2011,5100417305,"6,246.69",Eden Brown Ltd
Manchester City Council,Hospitality + Trading Services,Transport Coach Hire,04.02.2011,1700018907,"-1,785.00",Community Transport
Manchester City Council,Hospitality + Trading Services,Transport Coach Hire,04.02.2011,1700018915,-978.5,Community Transport
Manchester City Council,Housing General Fund,Building Works,04.02.2011,1700018918,"-2,000.00",Redacted Personal Information
Manchester City Council,Adult Social Care,Rents,04.02.2011,1902454668,500,Redacted Personal Information
Manchester City Council,Adult Social Care,Transport Taxis,04.02.2011,1902454836,604.8,Mantax Radio Taxis Ltd
Manchester City Council,Adult Social Care,Hire of Premises,04.02.2011,1902463104,500,Madina Property Services
Manchester City Council,Adult Social Care,Hire of Premises,04.02.2011,1902467547,500,Redacted Personal Information
Manchester City Council,Housing General Fund,Building Works,04.02.2011,1902473770,"1,840.00",Stannah Lift Services Ltd
Manchester City Council,Hospitality + Trading Services,Catering Provisions,04.02.2011,1902475271,510.72,Brake Bros Foodservice Ltd
Manchester City Council,Hospitality + Trading Services,Building Materials for direct delivery,04.02.2011,1902475345,973.6,Pasta King (Uk) Ltd
Manchester City Council,Adult Social Care,Home Care ,04.02.2011,1902475592,"4,880.28",Enterprise Care Group Ltd
Manchester City Council,Adult Social Care,Home Care ,04.02.2011,1902475592,"3,744.51",Enterprise Care Group Ltd
Manchester City Council,Adult Social Care,Home Care ,04.02.2011,1902475592,"2,663.86",Enterprise Care Group Ltd
Manchester City Council,Adult Social Care,Home Care ,04.02.2011,1902475592,768.85,Enterprise Care Group Ltd
Manchester City Council,Adult Social Care,Home Care ,04.02.2011,1902475592,"1,336.32",Enterprise Care Group Ltd
Manchester City Council,Adult Social Care,Home Care ,04.02.2011,1902475592,"2,386.06",Enterprise Care Group Ltd
Manchester City Council,Adult Social Care,Home Care ,04.02.2011,1902475592,"3,129.88",Enterprise Care Group Ltd
Manchester City Council,Adult Social Care,Home Care ,04.02.2011,1902475592,"8,282.57",Enterprise Care Group Ltd
Manchester City Council,Adult Social Care,Home Care ,04.02.2011,1902475592,"4,224.65",Enterprise Care Group Ltd
Manchester City Council,Adult Social Care,Home Care ,04.02.2011,1902475592,935.82,Enterprise Care Group Ltd
Manchester City Council,Housing Revenue Account,Building Works,04.02.2011,1902475594,"10,142.98",CLEGGS
Manchester City Council,Regeneration Finance,Electricity,04.02.2011,5100409289,"17,254.38",The Manchester College
Manchester City Council,Regeneration Finance,Gas,04.02.2011,5100409289,"2,018.46",The Manchester College
Manchester City Council,Regeneration Finance,Hire of Premises,04.02.2011,5100409289,"12,202.57",The Manchester College
Manchester City Council,Regeneration Finance,Rents,04.02.2011,5100409289,"36,590.75",The Manchester College
Manchester City Council,Regeneration Finance,Water - Metered,04.02.2011,5100409289,"1,852.22",The Manchester College
Manchester City Council,Environment and Operations,Proffesional fees,04.02.2011,5100415773,"1,140.18",Buckley & Rowbotham
Manchester City Council,Environment and Operations,Proffesional fees,04.02.2011,5100415776,645.32,Buckley & Rowbotham
Manchester City Council,Environment and Operations,Proffesional fees,04.02.2011,5100415777,684.75,Buckley & Rowbotham
Manchester City Council,Regeneration Finance,Proffesional fees,04.02.2011,5100415802,"41,858.00",EIF Community Support Plus Ltd
Manchester City Council,Childrens Services,Proffesional fees,04.02.2011,5100415818,812.17,Jazzy J Urban Dance
Manchester City Council,Adult Social Care,Personal needs of client,04.02.2011,5100416022,633.5,Aidapt Bathrooms Ltd
Manchester City Council,Corporate Services,Furniture,04.02.2011,5100416146,687.12,Getback Supplies
Manchester City Council,Childrens Services,Student Discretionery Awards,04.02.2011,5100416232,"1,285.00",Manchester Metropolitan University
Manchester City Council,Chief Executives,Agency staff provision,04.02.2011,5100416234,"1,570.88",HR Care (Manchester) Ltd
Manchester City Council,Chief Executives,Agency staff provision,04.02.2011,5100416235,"2,302.02",HR Care (Manchester) Ltd
Manchester City Council,Chief Executives,Printing,04.02.2011,5100416246,590,Browns CTP Ltd
Manchester City Council,Chief Executives,Stationery,04.02.2011,5100416289,622.58,Banner Business Services Ltd
Manchester City Council,Chief Executives,Printing,04.02.2011,5100416310,610,Astra Signs
Manchester City Council,Hospitality + Trading Services,Vehicle Hire Costs,04.02.2011,5100416423,"16,511.25",Northgate Vehicle Hire Ltd
Manchester City Council,Chief Executives,Construction Works,04.02.2011,5100416652,"1,230.19",Rosgal Ltd
Manchester City Council,Chief Executives,Agency staff provision,04.02.2011,5100416681,"3,720.51",Ashberry Recruitment Ltd
Manchester City Council,Highways Services,I T Provision,04.02.2011,5100416759,"12,910.00",Key Traffic Systems Ltd
Manchester City Council,Adult Social Care,Subsistence and Conference Expenses,04.02.2011,5100416809,"1,346.95",Greater Manchester West
Manchester City Council,Hospitality + Trading Services,Vehicle Hire Costs,04.02.2011,5100416919,"60,267.40",Specialist Vehicle rental
Manchester City Council,Chief Executives,Printing,04.02.2011,5100416923,"1,575.00",Astra Signs
Manchester City Council,Environment and Operations,Equipment,04.02.2011,5100416924,"1,504.18",Computerland Uk Ltd
Manchester City Council,Chief Executives,Printing,04.02.2011,5100416947,600.39,Allied Publicity Serv.(Manchester)
Manchester City Council,Chief Executives,Legal Fees,04.02.2011,5100416948,510,Anglo European Private Detectives L
Manchester City Council,Chief Executives,Advertising,04.02.2011,5100416961,"1,552.32",TSL Education Ltd
Manchester City Council,Chief Executives,Advertising,04.02.2011,5100416965,675,TSL Education Ltd
Manchester City Council,Chief Executives,Advertising,04.02.2011,5100416970,675,TSL Education Ltd
Manchester City Council,Chief Executives,Agency staff provision,04.02.2011,5100416993,932.4,Carepath Recruitment
Manchester City Council,Chief Executives,Advertising,04.02.2011,5100416994,"1,433.25",TSL Education Ltd
Manchester City Council,Chief Executives,Advertising,04.02.2011,5100417002,882,TSL Education Ltd
Manchester City Council,Chief Executives,Advertising,04.02.2011,5100417004,882,TSL Education Ltd
Manchester City Council,Chief Executives,Advertising,04.02.2011,5100417013,882,TSL Education Ltd
Manchester City Council,Environment and Operations,Proffesional fees,04.02.2011,5100417024,"1,578.26",Buckley & Rowbotham
Manchester City Council,Corporate Services,I T Provision,04.02.2011,5100417093,"4,056.26",Condeco Limited
Manchester City Council,Childrens Services,Hire of Equipment,04.02.2011,5100417134,702,Sibcas Limited
Manchester City Council,Chief Executives,Construction Works,04.02.2011,5100417158,"-1,230.19",Rosgal Ltd
Manchester City Council,Hospitality + Trading Services,Vehicle Fuel Costs,04.02.2011,5100417193,"10,773.00",Carlton Fuels Ltd
Manchester City Council,Corporate Services,Training and Development,04.02.2011,5100417199,"1,375.00",The Manchester College
Manchester City Council,Regeneration Finance,Grant and subscriptions awarded,04.02.2011,5100417205,"1,200.00",The Manchester College
Manchester City Council,Chief Executives,Examination Fees,04.02.2011,5100417213,"12,604.77",Central Mcr University Hospitals
Manchester City Council,Chief Executives,Funeral and coroner related services,04.02.2011,5100417213,"9,390.37",Central Mcr University Hospitals
Manchester City Council,Chief Executives,Funeral and coroner related services,04.02.2011,5100417213,"1,707.26",Central Mcr University Hospitals
Manchester City Council,Chief Executives,Third party payments to Health Authority,04.02.2011,5100417213,"22,954.00",Central Mcr University Hospitals
Manchester City Council,Chief Executives,Examination Fees,04.02.2011,5100417221,"10,739.08",Central Mcr University Hospitals
Manchester City Council,Chief Executives,Funeral and coroner related services,04.02.2011,5100417221,"11,792.56",Central Mcr University Hospitals
Manchester City Council,Chief Executives,Funeral and coroner related services,04.02.2011,5100417221,924.92,Central Mcr University Hospitals
Manchester City Council,Chief Executives,Third party payments to Health Authority,04.02.2011,5100417221,"29,256.00",Central Mcr University Hospitals
Manchester City Council,Grtr Manchester Urban Traffic,Payments to Sub-Contractors,04.02.2011,5100417248,"1,626.74",Vodafone Ltd
Manchester City Council,Highways Services,Payments to Sub-Contractors,04.02.2011,5100417260,"585,643.60",Amey Highways Lighting (Manchester)
Manchester City Council,Regeneration Finance,Catering,04.02.2011,5100417269,639,Be My Guest
Manchester City Council,Manchester Leisure,Legal Fees,04.02.2011,5100417289,828,Redacted Personal Information
Manchester City Council,Environment and Operations,Equipment,04.02.2011,5100417290,"6,425.51",SP&SAI Biopac Ltd
Manchester City Council,Environment and Operations,Equipment,04.02.2011,5100417292,"4,192.50",SP&SAI Biopac Ltd
Manchester City Council,Hospitality + Trading Services,Building Materials for direct delivery,04.02.2011,5100417294,596,Asd Metal Services
Manchester City Council,Chief Executives,External repairs and maintenance for buildings,04.02.2011,5100417297,-660,Carrylift Materials Handling Ltd
Manchester City Council,Chief Executives,External repairs and maintenance for buildings,04.02.2011,5100417299,660,Carrylift Materials Handling Ltd
Manchester City Council,Childrens Services,Hire of Equipment,04.02.2011,5100417300,702,Sibcas Limited
Manchester City Council,Chief Executives,Printing,04.02.2011,5100417323,905,Holdmede Ltd T/A Pelican Press
Manchester City Council,Environment and Operations,Testing Fees,04.02.2011,5100417329,837.5,Staffordshire County Council
Manchester City Council,Chief Executives,Printing,04.02.2011,5100417336,918,Holdmede Ltd T/A Pelican Press
Manchester City Council,Environment and Operations,Testing Fees,04.02.2011,5100417343,"1,406.20",Staffordshire County Council
Manchester City Council,Chief Executives,Printing,04.02.2011,5100417350,-918,Holdmede Ltd T/A Pelican Press
Manchester City Council,Hospitality + Trading Services,Building Materials for direct delivery,04.02.2011,5100417357,588,Viewprint
Manchester City Council,Hospitality + Trading Services,Building Materials for direct delivery,04.02.2011,5100417357,724,Viewprint
Manchester City Council,Adult Social Care,Building Materials for direct delivery,04.02.2011,5100417364,"1,385.00",Ideal Heating & Plumbing Services L
Manchester City Council,Adult Social Care,Building Materials for direct delivery,04.02.2011,5100417366,"1,125.00",Ideal Heating & Plumbing Services L
Manchester City Council,Libraries and Theatres,Special Event Budget,04.02.2011,5100417368,"1,000.00",Mahabat
Manchester City Council,Regeneration Finance,Grant and subscriptions awarded,04.02.2011,5100417373,"5,576.00",Wai Yin Chinese Women Society
Manchester City Council,Regeneration Finance,Proffesional fees,04.02.2011,5100417373,"3,843.00",Wai Yin Chinese Women Society
Manchester City Council,Chief Executives,Paper & Envelopes,04.02.2011,5100417386,-743.75,Premier Paper Group Ltd
Manchester City Council,Learning Disabilities PB,Supported Accom,04.02.2011,5100417396,702.76,Brothers Of Charity Services
Manchester City Council,Childrens Services,Proffesional fees,04.02.2011,5100417397,"10,054.13",Barnardo's North West
Manchester City Council,Highways Services,Payments to Sub-Contractors,04.02.2011,5100417398,753.58,Salt Union Ltd
Manchester City Council,Chief Executives,Paper & Envelopes,04.02.2011,5100417399,743.75,Premier Paper Group Ltd
Manchester City Council,Highways Services,Payments to Sub-Contractors,04.02.2011,5100417400,757.9,Salt Union Ltd
Manchester City Council,Highways Services,Payments to Sub-Contractors,04.02.2011,5100417401,"2,292.60",Salt Union Ltd
Manchester City Council,Libraries and Theatres,Postage,04.02.2011,5100417403,"1,542.67",Royal Mail Group Plc
Manchester City Council,Highways Services,Payments to Sub-Contractors,04.02.2011,5100417404,"2,289.90",Salt Union Ltd
Manchester City Council,Highways Services,Payments to Sub-Contractors,04.02.2011,5100417405,"3,051.59",Salt Union Ltd
Manchester City Council,Highways Services,Payments to Sub-Contractors,04.02.2011,5100417406,763.84,Salt Union Ltd
Manchester City Council,Highways Services,Payments to Sub-Contractors,04.02.2011,5100417407,754.66,Salt Union Ltd
Manchester City Council,Highways Services,Payments to Sub-Contractors,04.02.2011,5100417408,"2,300.71",Salt Union Ltd
Manchester City Council,Childrens Services,Transport Coach Hire,04.02.2011,5100417409,"7,055.00",Accessible Passenger Transport
Manchester City Council,Childrens Services,Grant and subscriptions awarded,04.02.2011,5100417419,"5,000.00",Greater Manchester Immigration Aid
Manchester City Council,Hospitality + Trading Services,Works and associated costs for Land and Buildings,04.02.2011,5100417426,"41,692.94",Manchester Working Ltd
Manchester City Council,Corporate Services,Responsive Repairs Work,04.02.2011,5100417427,"1,324.21",Manchester Working Ltd
Manchester City Council,Manchester Leisure,Works and associated costs for Land and Buildings,04.02.2011,5100417427,"18,096.00",Manchester Working Ltd
Manchester City Council,Adult Social Care,Rents,04.02.2011,5100417434,"1,776.16",Eastlands Homes Partnership Ltd
Manchester City Council,Highways Services,Payments to Sub-Contractors,04.02.2011,5100417451,"-585,643.60",Amey Highways Lighting (Manchester)
Manchester City Council,Hospitality + Trading Services,Purchase of stores for re-distribution,04.02.2011,5100417461,890,Broxap Ltd
Manchester City Council,Grtr Manchester Urban Traffic,I T Provision,04.02.2011,5100417516,823.67,XMA Limited
Manchester City Council,Adult Social Care,Residential Furniture,04.02.2011,5100417524,659,The Furnishing Service Ltd
Manchester City Council,Adult Social Care,Renoval and Storage of Furniture,04.02.2011,5100417580,"2,580.00",The Furnishing Service Ltd
Manchester City Council,Regeneration Finance,Subsistence and Conference Expenses,04.02.2011,5100417591,"2,160.00",Bike Right
Manchester City Council,Highways Services,Home Care ,04.02.2011,5100417593,"3,780.00",Bike Right
Manchester City Council,Regeneration Finance,Grant and subscriptions awarded,04.02.2011,5100417594,"1,652.00",Emerge Recycling
Manchester City Council,Regeneration Finance,Grant and subscriptions awarded,04.02.2011,5100417611,"-7,659.21",Greater Manchester Police
Manchester City Council,Childrens Services,Catering,04.02.2011,5100417617,691.9,The Manchester College
Manchester City Council,Hospitality + Trading Services,Hire of Equipment,04.02.2011,5100417625,"-4,599.45",Ruttle Plant Hire Ltd
Manchester City Council,Chief Executives,Agency staff provision,04.02.2011,5100417684,633.57,Osborne Richardson
Manchester City Council,Hospitality + Trading Services,Vehicle Hire Costs,04.02.2011,5100417692,"-62,691.20",Go Plant Ltd
Manchester City Council,Hospitality + Trading Services,Building Materials for direct delivery,04.02.2011,5100417763,806.45,Cemex (Uk) Shared Service Centre
Manchester City Council,Hospitality + Trading Services,Building Materials for direct delivery,04.02.2011,5100417764,652.22,Cemex (Uk) Shared Service Centre
Manchester City Council,Hospitality + Trading Services,Building Materials for direct delivery,04.02.2011,5100417765,808.09,Cemex (Uk) Shared Service Centre
Manchester City Council,Hospitality + Trading Services,Building Materials for direct delivery,04.02.2011,5100417766,821.22,Cemex (Uk) Shared Service Centre
Manchester City Council,Hospitality + Trading Services,Building Materials for direct delivery,04.02.2011,5100417767,522.91,Cemex (Uk) Shared Service Centre
Manchester City Council,Hospitality + Trading Services,Building Materials for direct delivery,04.02.2011,5100417770,659.6,Cemex (Uk) Shared Service Centre
Manchester City Council,Hospitality + Trading Services,Building Materials for direct delivery,04.02.2011,5100417772,815.48,Cemex (Uk) Shared Service Centre
Manchester City Council,Hospitality + Trading Services,Building Materials for direct delivery,04.02.2011,5100417780,522.24,Cemex (Uk) Shared Service Centre
Manchester City Council,Hospitality + Trading Services,Building Materials for direct delivery,04.02.2011,5100417786,562.46,Cemex (Uk) Shared Service Centre
Manchester City Council,Hospitality + Trading Services,Building Materials for direct delivery,04.02.2011,5100417787,639.91,Cemex (Uk) Shared Service Centre
Manchester City Council,Hospitality + Trading Services,Building Materials for direct delivery,04.02.2011,5100417788,585.1,Cemex (Uk) Shared Service Centre
Manchester City Council,Hospitality + Trading Services,Building Materials for direct delivery,04.02.2011,5100417792,630.47,Cemex (Uk) Shared Service Centre
Manchester City Council,Hospitality + Trading Services,Building Materials for direct delivery,04.02.2011,5100417803,532.74,Cemex (Uk) Shared Service Centre
Manchester City Council,Hospitality + Trading Services,Building Materials for direct delivery,04.02.2011,5100417804,681.09,Cemex (Uk) Shared Service Centre
Manchester City Council,Corporate Services,Service Charges,07.02.2011,1700018940,"-7,251.75",Workman LLP
Manchester City Council,Childrens Services,Fixtures and Fitting,07.02.2011,1902442698,"1,200.00",Barnardos Manchester Leaving Care S
Manchester City Council,Childrens Services,Proffesional fees,07.02.2011,1902442698,"1,058.90",Barnardos Manchester Leaving Care S
Manchester City Council,Childrens Services,Training and Development,07.02.2011,1902442698,"4,482.60",Barnardos Manchester Leaving Care S
Manchester City Council,Highways Services,Sundry Recoverables,07.02.2011,1902453838,"33,260.00",D Hughes Demolition & ExcavationLtd
Manchester City Council,Childrens Services,Proffesional fees,07.02.2011,1902454787,720,Barnardos Manchester Leaving Care S
Manchester City Council,Childrens Services,Training and Development,07.02.2011,1902454787,"7,503.00",Barnardos Manchester Leaving Care S
Manchester City Council,Childrens Services,Proffesional fees,07.02.2011,1902454788,960.4,Barnardos Manchester Leaving Care S
Manchester City Council,Childrens Services,Training and Development,07.02.2011,1902454788,"3,587.40",Barnardos Manchester Leaving Care S
Manchester City Council,Childrens Services,Fixtures and Fitting,07.02.2011,1902454789,500,Barnardos Manchester Leaving Care S
Manchester City Council,Childrens Services,Proffesional fees,07.02.2011,1902454789,"2,147.70",Barnardos Manchester Leaving Care S
Manchester City Council,Childrens Services,Fixtures and Fitting,07.02.2011,1902454790,"3,055.00",Barnardos Manchester Leaving Care S
Manchester City Council,Childrens Services,Personal needs of client,07.02.2011,1902454790,636,Barnardos Manchester Leaving Care S
Manchester City Council,Childrens Services,Proffesional fees,07.02.2011,1902454790,"2,667.10",Barnardos Manchester Leaving Care S
Manchester City Council,Childrens Services,Fixtures and Fitting,07.02.2011,1902454791,"2,680.00",Barnardos Manchester Leaving Care S
Manchester City Council,Childrens Services,Proffesional fees,07.02.2011,1902462415,720,Barnardos Manchester Leaving Care S
Manchester City Council,Childrens Services,Rents,07.02.2011,1902462415,"1,300.00",Barnardos Manchester Leaving Care S
Manchester City Council,Childrens Services,Training and Development,07.02.2011,1902462415,"7,503.00",Barnardos Manchester Leaving Care S
Manchester City Council,Childrens Services,Proffesional fees,07.02.2011,1902463065,714.38,Stephensons Solicitors
Manchester City Council,Libraries and Theatres,Library Materials Acquisition,07.02.2011,1902471952,759.65,AudioGo Limited
Manchester City Council,Libraries and Theatres,Library Materials Acquisition,07.02.2011,1902471955,"1,350.00",Guise
Manchester City Council,Libraries and Theatres,Library Materials Acquisition,07.02.2011,1902471987,672.16,Coutts Information Services Ltd
Manchester City Council,Libraries and Theatres,Library Materials Acquisition,07.02.2011,1902471993,"1,573.78",Cramer Music Ltd
Manchester City Council,Childrens Services,Proffesional fees,07.02.2011,1902472180,945,GLP Solictors
Manchester City Council,Childrens Services,Payments for services,07.02.2011,1902472186,600,Redacted Personal Information
Manchester City Council,Childrens Services,Proffesional fees,07.02.2011,1902472944,"1,117.83",Bromley Hyde & Robinson
Manchester City Council,Highways Services,Proffesional fees,07.02.2011,1902473032,"10,500.00",REDACTED PERSONAL DATA
Manchester City Council,Libraries and Theatres,General Payments not otherwise categorised,07.02.2011,1902474546,600,REDACTED PERSONAL DATA
Manchester City Council,Highways Services,Compensation Payments,07.02.2011,1902474611,"2,500.00",REDACTED PERSONAL DATA
Manchester City Council,Childrens Services,Grant and subscriptions awarded,07.02.2011,1902474641,686,Wryoa Jnr8 Donations
Manchester City Council,Libraries and Theatres,Subsistence and Conference Expenses,07.02.2011,1902474671,840,Redacted Personal Information
Manchester City Council,Libraries and Theatres,Sound Recordings Music,07.02.2011,1902474827,"1,250.95",IKC (UK) Ltd
Manchester City Council,Childrens Services,Grant and subscriptions awarded,07.02.2011,1902474851,873,Family Action
Manchester City Council,Housing General Fund,Building Works,07.02.2011,1902475310,"1,553.30",AJC Builders Ltd
Manchester City Council,Childrens Services,Grant and subscriptions awarded,07.02.2011,1902475397,"1,341.00",4CT Limited
Manchester City Council,Chief Executives,Planning Application Fees,07.02.2011,1902475405,"1,360.00",Redrow Homes Lancashire
Manchester City Council,Childrens Services,Grant and subscriptions awarded,07.02.2011,1902475421,"1,078.00",Barlow Moor Community Association.
Manchester City Council,Childrens Services,Grant and subscriptions awarded,07.02.2011,1902475426,"1,191.50",Anson Cabin Project
Manchester City Council,Regeneration Finance,Grant and subscriptions awarded,07.02.2011,1902475433,"1,100.00",Abbey Hey Allotment Society
Manchester City Council,Chief Executives,Grant and subscriptions awarded,07.02.2011,1902475541,"7,650.00",Benchill Community Centre
Manchester City Council,Hospitality + Trading Services,Funeral and coroner related services,07.02.2011,1902475545,"1,196.67",REDACTED PERSONAL DATA
Manchester City Council,Chief Executives,Grant and subscriptions awarded,07.02.2011,1902475560,"3,896.90",The Chatterbox Project
Manchester City Council,Childrens Services,Grant and subscriptions awarded,07.02.2011,1902475625,"2,490.00",Trinity House Community Resource
Manchester City Council,Chief Executives,Grant and subscriptions awarded,07.02.2011,1902476355,"9,318.00",Residents of Gordon St Area
Manchester City Council,Chief Executives,Grant and subscriptions awarded,07.02.2011,1902476380,"9,078.24",Enver Road Residents Association
Manchester City Council,Childrens Services,Grant and subscriptions awarded,07.02.2011,1902476418,"1,191.00",Wythenshawe Community Initiative
Manchester City Council,Hospitality + Trading Services,Tipping - Skips,07.02.2011,1902476426,"2,000.00",Hadfield Wood Recyclers
Manchester City Council,Regeneration Finance,Payments for services,07.02.2011,1902476474,500,Zest Team North Mcr FAD009422
Manchester City Council,Hospitality + Trading Services,Catering Provisions,07.02.2011,1902476543,543.2,Chicken Joes Limited
Manchester City Council,Regeneration Finance,Agency staff provision,07.02.2011,5100388066,"3,977.27",The Manchester College
Manchester City Council,Highways Services,Third Party Payments relating to MEDC,07.02.2011,5100396539,800,Watts Group Plc
Manchester City Council,Hospitality + Trading Services,Security,07.02.2011,5100404526,"7,197.12",Showsec International Ltd
Manchester City Council,Chief Executives,Infrastructure Fees,07.02.2011,5100412404,"1,850.00",IDS Land Survey
Manchester City Council,Regeneration Finance,Grant and subscriptions awarded,07.02.2011,5100415783,"1,965.00",Emerge Recycling
Manchester City Council,Manchester Leisure,Proffesional fees,07.02.2011,5100415799,"4,000.00",Greater Manchester Community
Manchester City Council,Corporate Services,Proffesional fees,07.02.2011,5100415813,"2,131.02",Edmond Shipway
Manchester City Council,Hospitality + Trading Services,Vehicle Parts/Spares,07.02.2011,5100415814,595,Warrington Truck Parts Ltd
Manchester City Council,Highways Services,Payments to Sub-Contractors,07.02.2011,5100415820,"585,643.60",Amey Highways Lighting (Manchester)
Manchester City Council,Childrens Services,Transport Coach Hire,07.02.2011,5100415839,"6,957.00",Redacted Personal Information
Manchester City Council,Chief Executives,Agency staff provision,07.02.2011,5100415850,"1,296.05",Kenyon Block Consultants Ltd
Manchester City Council,Manchester Leisure,Works and associated costs for Land and Buildings,07.02.2011,5100415924,975,Groundwork Landscapes Ltd
Manchester City Council,Manchester Leisure,Works and associated costs for Land and Buildings,07.02.2011,5100415931,"1,360.00",Groundwork Landscapes Ltd
Manchester City Council,Manchester Leisure,Equipment,07.02.2011,5100415934,570,Groundwork Landscapes Ltd
Manchester City Council,Manchester Leisure,Payments to Sub-Contractors,07.02.2011,5100415935,825,Groundwork Landscapes Ltd
Manchester City Council,Manchester Leisure,Payments to Sub-Contractors,07.02.2011,5100415936,"1,445.00",Groundwork Landscapes Ltd
Manchester City Council,Manchester Leisure,Payments to Sub-Contractors,07.02.2011,5100415940,700,Groundwork Landscapes Ltd
Manchester City Council,Chief Executives,I T Provision,07.02.2011,5100415957,"-1,268.24",Idox Software Ltd
Manchester City Council,Chief Executives,I T Provision,07.02.2011,5100415980,"3,768.24",Idox Software Ltd
Manchester City Council,Corporate Services,Training and Development,07.02.2011,5100416091,"1,125.00",Voicepower
Manchester City Council,Hospitality + Trading Services,Building Materials for direct delivery,07.02.2011,5100416106,616,Fairway Landscapes Ltd
Manchester City Council,Hospitality + Trading Services,Building Materials for direct delivery,07.02.2011,5100416118,"3,135.04",Fairway Landscapes Ltd
Manchester City Council,Hospitality + Trading Services,Building Materials for direct delivery,07.02.2011,5100416170,"1,152.70",Morelock Signs Ltd
Manchester City Council,Chief Executives,Agency staff provision,07.02.2011,5100416184,"12,239.34",Greater Manchester Probation Board
Manchester City Council,Chief Executives,Grant and subscriptions awarded,07.02.2011,5100416187,"2,297.10",Greater Manchester Probation Board
Manchester City Council,Environment and Operations,Third Party Payments relating to Street Scene Work,07.02.2011,5100416224,"1,908.00",Plantscape
Manchester City Council,Adult Social Care,Personal needs of client,07.02.2011,5100416236,756,Invacare Limited
Manchester City Council,Environment and Operations,Works and associated costs for Land and Buildings,07.02.2011,5100416251,"1,085.04",Astirvant Ltd
Manchester City Council,Chief Executives,Agency staff provision,07.02.2011,5100416255,"3,824.57",Celsian
Manchester City Council,Chief Executives,Agency staff provision,07.02.2011,5100416257,"3,661.00",Celsian
Manchester City Council,Adult Social Care,Equipment,07.02.2011,5100416258,846,Drive Medical Limited
Manchester City Council,Grtr Manchester Transport Unit,Payments to Sub-Contractors,07.02.2011,5100416281,"3,494.40",Pluswork Group
Manchester City Council,Grtr Manchester Transport Unit,Payments to Sub-Contractors,07.02.2011,5100416341,"3,090.20",Pluswork Group
Manchester City Council,Adult Social Care,Equipment,07.02.2011,5100416372,687.5,Ots Ltd
Manchester City Council,Chief Executives,Landline Telephone,07.02.2011,5100416385,"73,914.00",Intrinsic Technology Limited
Manchester City Council,Hospitality + Trading Services,Vehicle Hire Costs,07.02.2011,5100416409,"1,075.16",Advanced Vehicle Technicians Ltd
Manchester City Council,Hospitality + Trading Services,Vehicle Hire Costs,07.02.2011,5100416426,"10,658.98",Evans Halshaw
Manchester City Council,Chief Executives,Agency staff provision,07.02.2011,5100416477,"1,088.68",Harbex Nursing & Care
Manchester City Council,Childrens Services,Training and Development,07.02.2011,5100416526,630,Community Products Ltd
Manchester City Council,Corporate Services,I T Provision,07.02.2011,5100416534,-950,Northgate Information Solutions Ltd
Manchester City Council,Corporate Services,I T Provision,07.02.2011,5100416537,950,Northgate Information Solutions Ltd
Manchester City Council,Adult Social Care,Grant and subscriptions awarded,07.02.2011,5100416592,900,Eastlands Homes Ptr Rent A/C
Manchester City Council,Chief Executives,Agency staff provision,07.02.2011,5100416597,745.92,Carepath Recruitment
Manchester City Council,Chief Executives,Agency staff provision,07.02.2011,5100416602,932.4,Carepath Recruitment
Manchester City Council,Manchester Leisure,Works and associated costs for Land and Buildings,07.02.2011,5100416612,"16,856.00",Harry Fairclough Construction Ltd
Manchester City Council,Manchester Leisure,Works and associated costs for Land and Buildings,07.02.2011,5100416613,"16,037.00",Harry Fairclough Construction Ltd
Manchester City Council,Chief Executives,Agency staff provision,07.02.2011,5100416620,"5,090.23",SRA Cover Staff Ltd
Manchester City Council,Adult Social Care,Third party payments to other Local Authorities,07.02.2011,5100416656,"53,893.28",Oldham Borough Council
Manchester City Council,Corporate Services,Works and associated costs for Land and Buildings,07.02.2011,5100416667,"8,250.00",Mpulse Ltd
Manchester City Council,Regeneration Finance,Grant and subscriptions awarded,07.02.2011,5100416701,"4,650.00",Commission for the New Economy
Manchester City Council,Corporate Services,Training and Development,07.02.2011,5100416733,-760,QA Ltd
Manchester City Council,Chief Executives,I T Provision,07.02.2011,5100416779,900,Idox Software Ltd
Manchester City Council,Corporate Services,Works and associated costs for Land and Buildings,07.02.2011,5100416837,"3,500.00",Logistics Simulation Ltd
Manchester City Council,Corporate Services,Works and associated costs for Land and Buildings,07.02.2011,5100416838,"6,300.00",Logistics Simulation Ltd
Manchester City Council,Corporate Services,Works and associated costs for Land and Buildings,07.02.2011,5100416839,"2,100.00",Logistics Simulation Ltd
Manchester City Council,Corporate Services,Works and associated costs for Land and Buildings,07.02.2011,5100416839,"11,900.00",Logistics Simulation Ltd
Manchester City Council,Housing General Fund,Building Works,07.02.2011,5100416851,"33,406.00","Groundwork Manchester, Salford"
Manchester City Council,Adult Social Care,Equipment,07.02.2011,5100416879,990,Kirton Health Care Group Ltd
Manchester City Council,Chief Executives,Agency staff provision,07.02.2011,5100416903,"1,118.89",The Synergy Group Ltd
Manchester City Council,Adult Social Care,Third party payments to other Local Authorities,07.02.2011,5100416918,"31,230.70",Stockport Mbc
Manchester City Council,Corporate Services,Training and Development,07.02.2011,5100416944,760,QA Ltd
Manchester City Council,Regeneration Finance,Proffesional fees,07.02.2011,5100416960,"6,262.50",Body Positive North West Ltd
Manchester City Council,Chief Executives,Goods purchased for resale in Council outlets,07.02.2011,5100416966,638,Cornflower Ltd
Manchester City Council,Chief Executives,Goods purchased for resale in Council outlets,07.02.2011,5100416974,527,Cornflower Ltd
Manchester City Council,Corporate Services,Works and associated costs for Land and Buildings,07.02.2011,5100417065,"4,209.00",Ove Arup & Partners Ltd
Manchester City Council,Corporate Services,Works and associated costs for Land and Buildings,07.02.2011,5100417097,"4,440.00",Ove Arup & Partners Ltd
Manchester City Council,Hospitality + Trading Services,Hire of Machinery,07.02.2011,5100417149,"1,928.55",Nu-Phalt
Manchester City Council,Chief Executives,Building Materials for direct delivery,07.02.2011,5100417166,664.5,Leander Architectural
Manchester City Council,Chief Executives,Agency staff provision,07.02.2011,5100417176,815.5,Bennett Staff Bureau
Manchester City Council,Environment and Operations,Third Party Payments relating to Street Scene Work,07.02.2011,5100417177,"2,800.00",Plantscape
Manchester City Council,Environment and Operations,Third Party Payments relating to Street Scene Work,07.02.2011,5100417180,"1,837.00",Plantscape
Manchester City Council,Environment and Operations,Third Party Payments relating to Street Scene Work,07.02.2011,5100417184,"1,950.00",Plantscape
Manchester City Council,Chief Executives,Agency staff provision,07.02.2011,5100417202,"4,889.50",Sacco Mann Ltd
Manchester City Council,Grtr Manchester Urban Traffic,Training and Development,07.02.2011,5100417230,"4,148.61",Siemens Plc
Manchester City Council,Childrens Services,Transport Coach Hire,07.02.2011,5100417272,"1,190.00",Redacted Personal Information
Manchester City Council,Regeneration Finance,Proffesional fees,07.02.2011,5100417295,"10,664.00",Back On Track
Manchester City Council,Grtr Manchester Urban Traffic,Training and Development,07.02.2011,5100417322,"2,547.00",Siemens Plc
Manchester City Council,Chief Executives,Printing,07.02.2011,5100417365,"1,519.00",Holdmede Ltd T/A Pelican Press
Manchester City Council,Adult Social Care,Equipment,07.02.2011,5100417371,"1,799.55",Nottingham Rehab Supplies
Manchester City Council,Adult Social Care,Equipment,07.02.2011,5100417375,639.6,Nottingham Rehab Supplies
Manchester City Council,Chief Executives,Recruitment Expenses,07.02.2011,5100417392,"12,000.00",Practicus
Manchester City Council,Childrens Services,Vehicle Plant Furniture and Equipment,07.02.2011,5100417393,"30,772.56",UniServity Ltd
Manchester City Council,Chief Executives,Agency staff provision,07.02.2011,5100417395,"2,312.19",Rullion Engineering Personnel Limit
Manchester City Council,Childrens Services,Grant and subscriptions awarded,07.02.2011,5100417420,"1,506.80",Greater Manchester Youth
Manchester City Council,Adult Social Care,Bed & Breakfast Acc,07.02.2011,5100417424,987.23,Redacted Personal Information
Manchester City Council,Chief Executives,Advertising,07.02.2011,5100417436,"3,825.00",CBS Outdoor Ltd
Manchester City Council,Chief Executives,Advertising,07.02.2011,5100417437,"1,020.00",CBS Outdoor Ltd
Manchester City Council,Childrens Services,Transport Taxis,07.02.2011,5100417439,"1,049.40",Cresta Car Hire
Manchester City Council,Childrens Services,Transport Taxis,07.02.2011,5100417440,"1,389.30",Cresta Car Hire
Manchester City Council,Childrens Services,Transport Taxis,07.02.2011,5100417441,705.1,Cresta Car Hire
Manchester City Council,Childrens Services,Transport Coach Hire,07.02.2011,5100417630,"-7,463.30",M Travel
Manchester City Council,Adult Social Care,Bed & Breakfast Acc,07.02.2011,5100417637,"3,072.34",Redacted Personal Information
Manchester City Council,Chief Executives,Agency staff provision,07.02.2011,5100417673,-633.57,Osborne Richardson
Manchester City Council,Manchester Leisure,Grounds Maintenance,07.02.2011,5100417683,"4,949.98",Glendale Managed Services
Manchester City Council,Manchester Leisure,Grounds Maintenance,07.02.2011,5100417685,"5,858.58",Glendale Managed Services
Manchester City Council,Chief Executives,Agency staff provision,07.02.2011,5100417695,"4,393.36",Rullion Engineering Personnel Limit
Manchester City Council,Childrens Services,Home Care ,07.02.2011,5100417699,625.03,Victoria Park Independence Proj Ltd
Manchester City Council,Childrens Services,Home Care ,07.02.2011,5100417703,625.03,Victoria Park Independence Proj Ltd
Manchester City Council,Manchester Leisure,Grounds Maintenance,07.02.2011,5100417740,"-4,949.98",Glendale Managed Services
Manchester City Council,Chief Executives,Proffesional fees,07.02.2011,5100417744,"3,400.00",Rebanks Consulting Limited
Manchester City Council,Regeneration Finance,Agency staff provision,07.02.2011,5100417745,"6,408.24",The Big Life Company
Manchester City Council,Chief Executives,Grant and subscriptions awarded,07.02.2011,5100417746,"2,250.00",People's History Museum
Manchester City Council,Chief Executives,Agency staff provision,07.02.2011,5100417752,"7,535.41",The Big Life Company
Manchester City Council,Chief Executives,Agency staff provision,07.02.2011,5100417756,"7,513.25",The Big Life Company
Manchester City Council,Manchester Leisure,Grounds Maintenance,07.02.2011,5100417758,"-5,858.58",Glendale Managed Services
Manchester City Council,Chief Executives,Works and associated costs for Land and Buildings,07.02.2011,5100417762,"9,526.23",The Mechanics Centre Ltd
Manchester City Council,Adult Social Care,Rehabilitation Payments,07.02.2011,5100417775,514.29,Inward House Projects
Manchester City Council,Chief Executives,Grant and subscriptions awarded,07.02.2011,5100417805,"11,282.98",Partners Of Prisoners & Families
Manchester City Council,Chief Executives,Grant and subscriptions awarded,07.02.2011,5100417805,"11,282.98",Partners Of Prisoners & Families
Manchester City Council,Chief Executives,Consultants Fees,07.02.2011,5100417807,"5,000.00",Davis Langdon
Manchester City Council,Corporate Services,Consultants Fees,07.02.2011,5100417821,"11,000.00",BDO Stoy Hayward LLP
Manchester City Council,Environment and Operations,Proffesional fees,07.02.2011,5100417827,807.25,Redacted Personal Information
Manchester City Council,Learning Disabilities PB,Supported Accom,07.02.2011,5100417839,"2,162.12",Brothers Of Charity Services
Manchester City Council,Regeneration Finance,Grant and subscriptions awarded,07.02.2011,5100417843,"6,600.00",WFM Community Media
Manchester City Council,Learning Disabilities PB,Supported Accom,07.02.2011,5100417845,"3,092.28",Brothers Of Charity Services
Manchester City Council,Learning Disabilities PB,Day Care Payments,07.02.2011,5100417852,654.48,Brothers Of Charity Services
Manchester City Council,Learning Disabilities PB,Supported Accom,07.02.2011,5100417854,"2,281.48",Brothers Of Charity Services
Manchester City Council,Learning Disabilities PB,Supported Accom,07.02.2011,5100417866,"4,007.80",Brothers Of Charity Services
Manchester City Council,Learning Disabilities PB,Supported Accom,07.02.2011,5100417867,"-4,007.80",Brothers Of Charity Services
Manchester City Council,Learning Disabilities PB,Supported Accom,07.02.2011,5100417869,"4,007.80",Brothers Of Charity Services
Manchester City Council,Chief Executives,Agency staff provision,07.02.2011,5100417870,-584.54,R&G Services Ltd t/a
Manchester City Council,Childrens Services,Equipment,07.02.2011,5100417874,825,Soft Adventure Play
Manchester City Council,Childrens Services,Proffesional fees,07.02.2011,5100417875,"3,105.00",Time Babysitting Agency Ltd
Manchester City Council,Hospitality + Trading Services,Hire of Machinery,07.02.2011,5100417883,"-1,928.55",Nu-Phalt
Manchester City Council,Manchester Leisure,Payments for services,07.02.2011,5100417886,"1,200.00",King William IV Angling Society
Manchester City Council,Chief Executives,Paper & Envelopes,07.02.2011,5100417889,"1,254.00",Premier Paper Group Ltd
Manchester City Council,Childrens Services,Payments for services,07.02.2011,5100417896,"7,225.90",London Borough of Enfield
Manchester City Council,Chief Executives,Paper & Envelopes,07.02.2011,5100417902,836,Premier Paper Group Ltd
Manchester City Council,Environment and Operations,Hire of Equipment,07.02.2011,5100417907,648.28,Xerox (Uk) Ltd
Manchester City Council,Learning Disabilities PB,Grant and subscriptions awarded,07.02.2011,5100417908,"30,000.00",Talbot House Support Centre
Manchester City Council,Regeneration Finance,Proffesional fees,07.02.2011,5100417912,843.43,Music Stuff
Manchester City Council,Childrens Services,Works and associated costs for Land and Buildings,07.02.2011,5100417915,"56,051.00",Manchester Working Ltd
Manchester City Council,Manchester Leisure,Works and associated costs for Land and Buildings,07.02.2011,5100417916,"13,628.52",Manchester Working Ltd
Manchester City Council,Childrens Services,Works and associated costs for Land and Buildings,07.02.2011,5100417918,"46,247.18",Manchester Working Ltd
Manchester City Council,Grtr Manchester Urban Traffic,Payments to Sub-Contractors,07.02.2011,5100417919,"1,287.92",Peek Traffic Ltd
Manchester City Council,Hospitality + Trading Services,External repairs and maintenance for buildings,07.02.2011,5100417921,"4,899.58",Manchester Working Ltd
Manchester City Council,Environment and Operations,Cleaning Equipment and Materials,07.02.2011,5100417922,"3,366.49",Manchester Working Ltd
Manchester City Council,Environment and Operations,Cleaning Equipment and Materials,07.02.2011,5100417923,"1,538.40",Manchester Working Ltd
Manchester City Council,Chief Executives,Paper & Envelopes,07.02.2011,5100417924,"-1,254.00",Premier Paper Group Ltd
Manchester City Council,Chief Executives,Paper & Envelopes,07.02.2011,5100417925,-836,Premier Paper Group Ltd
Manchester City Council,Libraries and Theatres,Internal Repairs and Maintenance for buildings,07.02.2011,5100417926,841.24,Manchester Working Ltd
Manchester City Council,Childrens Services,Payments for services,07.02.2011,5100417928,"45,500.00",Social Care Services (Clayton) Ltd
Manchester City Council,Childrens Services,Payments for services,07.02.2011,5100417929,"45,500.00",Social Care Services (Clayton) Ltd
Manchester City Council,Regeneration Finance,Grant and subscriptions awarded,07.02.2011,5100417930,"4,879.68",Music Stuff
Manchester City Council,Adult Social Care,Hire of Equipment,07.02.2011,5100417932,"16,012.12",Huntleigh Healthcare Ltd
Manchester City Council,Chief Executives,Paper & Envelopes,07.02.2011,5100417935,"1,254.00",Premier Paper Group Ltd
Manchester City Council,Grtr Manchester Urban Traffic,Payments to Sub-Contractors,07.02.2011,5100417936,"2,408.00",Rosgal Ltd
Manchester City Council,Chief Executives,Paper & Envelopes,07.02.2011,5100417937,836,Premier Paper Group Ltd
Manchester City Council,Grtr Manchester Urban Traffic,Payments to Sub-Contractors,07.02.2011,5100417938,"1,250.00",Rosgal Ltd
Manchester City Council,Chief Executives,Paper & Envelopes,07.02.2011,5100417939,"-1,254.00",Premier Paper Group Ltd
Manchester City Council,Chief Executives,Paper & Envelopes,07.02.2011,5100417942,-836,Premier Paper Group Ltd
Manchester City Council,Grtr Manchester Urban Traffic,Payments to Sub-Contractors,07.02.2011,5100417944,"1,720.31",Siemens Plc
Manchester City Council,Grtr Manchester Urban Traffic,Payments to Sub-Contractors,07.02.2011,5100417946,"30,000.00",Rosgal Ltd
Manchester City Council,Chief Executives,Construction Works,07.02.2011,5100417948,"3,278.51",Rosgal Ltd
Manchester City Council,Grtr Manchester Urban Traffic,Payments to Sub-Contractors,07.02.2011,5100417951,"5,978.05",Siemens Plc
Manchester City Council,Childrens Services,Grant and subscriptions awarded,07.02.2011,5100417954,"2,850.00",Moss Side Millennium Powerhouse Ltd
Manchester City Council,Adult Social Care,Car parking permits,07.02.2011,5100417955,"-2,451.71",National Car Parks Manchester Ltd
Manchester City Council,Adult Social Care,Car Parking Permits,07.02.2011,5100417955,"6,582.37",National Car Parks Manchester Ltd
Manchester City Council,Childrens Services,Grant and subscriptions awarded,07.02.2011,5100417956,"3,150.00",Unity Organising Group
Manchester City Council,Grtr Manchester Urban Traffic,Payments to Sub-Contractors,07.02.2011,5100417957,"4,381.31",Siemens Plc
Manchester City Council,Chief Executives,Works and associated costs for Land and Buildings,07.02.2011,5100417962,"4,495.00",The Phone Co-Op Internet Services
Manchester City Council,Regeneration Finance,Training and Development,07.02.2011,5100417980,"1,000.00",Ocr
Manchester City Council,Chief Executives,Paper & Envelopes,07.02.2011,5100417981,"1,254.00",Premier Paper Group Ltd
Manchester City Council,Chief Executives,Paper & Envelopes,07.02.2011,5100417982,836,Premier Paper Group Ltd
Manchester City Council,Childrens Services,Works and associated costs for Land and Buildings,07.02.2011,5100417996,"19,561.00",GB Building Solutions Ltd
Manchester City Council,Regeneration Finance,Third party payments to other Local Authorities,07.02.2011,5100417998,"3,000.00",Step Enterprise Limited
Manchester City Council,Corporate Services,Floral Decorations,07.02.2011,5100418000,723.5,Flower Style
Manchester City Council,Hospitality + Trading Services,Purchase of stores for re-distribution,07.02.2011,5100418015,"2,482.50",Burdens Ltd
Manchester City Council,Regeneration Finance,Grant and subscriptions awarded,07.02.2011,5100418032,"3,367.00",Youth on Solid Ground
Manchester City Council,Corporate Services,Proffesional fees,07.02.2011,5100418033,"1,250.00",Sector Treasury Services Limited
Manchester City Council,Grtr Manchester Urban Traffic,Payments to Sub-Contractors,07.02.2011,5100418035,"5,967.66",Siemens Plc
Manchester City Council,Environment and Operations,Legal Fees,07.02.2011,5100418037,810,Redacted Personal Information
Manchester City Council,Grtr Manchester Urban Traffic,Payments to Sub-Contractors,07.02.2011,5100418038,"5,950.74",Siemens Plc
Manchester City Council,Grtr Manchester Urban Traffic,Payments to Sub-Contractors,07.02.2011,5100418040,"7,322.30",Siemens Plc
Manchester City Council,Grtr Manchester Urban Traffic,Payments to Sub-Contractors,07.02.2011,5100418043,"56,000.00",Peek Traffic Ltd
Manchester City Council,Chief Executives,Construction Works,07.02.2011,5100418044,"35,000.00",Rosgal Ltd
Manchester City Council,Grtr Manchester Urban Traffic,Payments to Sub-Contractors,07.02.2011,5100418047,"2,658.57",Peek Traffic Ltd
Manchester City Council,Grtr Manchester Urban Traffic,Payments to Sub-Contractors,07.02.2011,5100418053,"23,525.92",Peek Traffic Ltd
Manchester City Council,Childrens Services,Proffesional fees,07.02.2011,5100418057,"2,400.00",The Urban Leadership Centre Ltd
Manchester City Council,Childrens Services,Proffesional fees,07.02.2011,5100418062,"2,600.00",The Urban Leadership Centre Ltd
Manchester City Council,Environment and Operations,Training and Development,07.02.2011,5100418067,"3,201.98",The University Of Nottingham
Manchester City Council,Environment and Operations,Training and Development,07.02.2011,5100418067,"1,073.03",The University Of Nottingham
Manchester City Council,Hospitality + Trading Services,Building Materials for direct delivery,07.02.2011,5100418093,"8,620.05",Marshalls Mono Ltd
Manchester City Council,Hospitality + Trading Services,Building Materials for direct delivery,07.02.2011,5100418095,"3,009.60",Marshalls Mono Ltd
Manchester City Council,Chief Executives,Agency staff provision,07.02.2011,5100418104,"2,467.11",Morson International
Manchester City Council,Housing Revenue Account,Grounds Maintenance,07.02.2011,5100418139,"-1,350.00",IPS Ltd
Manchester City Council,Housing Revenue Account,Grounds Maintenance,07.02.2011,5100418141,"-1,350.00",IPS Ltd
Manchester City Council,Hospitality + Trading Services,Building Materials for direct delivery,07.02.2011,5100418175,"4,722.80",Glasdon U.K. Limited
Manchester City Council,Libraries and Theatres,Works and associated costs for Land and Buildings,07.02.2011,5100418199,"-4,581.37",Harry Fairclough Construction Ltd
Manchester City Council,Chief Executives,Agency staff provision,08.02.2011,1700018944,751.43,New Millennia Payroll Services Ltd
Manchester City Council,Corporate Services,Rents,08.02.2011,1902443189,"17,125.00",Moore Large & Co.Ltd
Manchester City Council,Insurance Fund,Insurance,08.02.2011,1902462328,"1,200.00",Accountant General of the Senior
Manchester City Council,Childrens Services,Compensation Payments,08.02.2011,1902462333,"5,500.00",Abney Garsden Mcdonald
Manchester City Council,Insurance Fund,Insurance,08.02.2011,1902462346,"2,736.77",Scott Ree's & Co
Manchester City Council,Hospitality + Trading Services,Security,08.02.2011,1902466643,"1,129.43",G4S Cash Services (Uk) Ltd
Manchester City Council,Environment and Operations,Proffesional fees,08.02.2011,1902467556,"5,000.00",Cooler Projects CIC
Manchester City Council,Corporate Services,Electricity,08.02.2011,1902467765,"5,781.84",Bruntwood Estates Alpha
Manchester City Council,Childrens Services,Compensation Payments,08.02.2011,1902471899,"3,850.00",Abney Garsden Mcdonald
Manchester City Council,Environment and Operations,Compensation Payments,08.02.2011,1902472050,"4,150.00",Loosemoores Solicitors
Manchester City Council,Childrens Services,Legal Fees,08.02.2011,1902472077,840,Redacted Personal Information
Manchester City Council,Insurance Fund,Insurance,08.02.2011,1902472084,"15,190.91",Department For Work & Pensions
Manchester City Council,Childrens Services,Legal Fees,08.02.2011,1902472087,"3,781.87",REDACTED PERSONAL DATA
Manchester City Council,Childrens Services,Compensation Payments,08.02.2011,1902472144,"8,000.00",Abney Garsden Mcdonald
Manchester City Council,Chief Executives,Landline Telephone,08.02.2011,1902472162,"3,015.12",Cable & Wireless UK
Manchester City Council,Hospitality + Trading Services,Security,08.02.2011,1902472933,"1,129.43",G4S Cash Services (Uk) Ltd
Manchester City Council,Childrens Services,Compensation Payments,08.02.2011,1902472964,"7,400.00",Abney Garsden Mcdonald
Manchester City Council,Childrens Services,Legal Fees,08.02.2011,1902472982,"3,766.65",REDACTED PERSONAL DATA
Manchester City Council,Childrens Services,Proffesional fees,08.02.2011,1902473012,"5,000.00",Abney Garsden Mcdonald
Manchester City Council,Childrens Services,Compensation Payments,08.02.2011,1902473017,"5,000.00",Abney Garsden Mcdonald
Manchester City Council,Childrens Services,Legal Fees,08.02.2011,1902473778,560,REDACTED PERSONAL DATA
Manchester City Council,Chief Executives,Agency staff provision,08.02.2011,1902474435,"32,775.88",Pyramid Connect Ltd
Manchester City Council,Manchester Leisure,Payments for services,08.02.2011,1902474628,995,Master Personal Trainer Award
Manchester City Council,Childrens Services,Third party payments to Health Authority,08.02.2011,1902474850,"10,500.00",The Huntercombe Group
Manchester City Council,Chief Executives,Funeral and coroner related services,08.02.2011,1902475177,"1,440.00",Redacted Personal Information
Manchester City Council,Chief Executives,Funeral and coroner related services,08.02.2011,1902475387,750,REDACTED PERSONAL DATA
Manchester City Council,Childrens Services,Compensation Payments,08.02.2011,1902475428,"13,000.00",Abney Garsden Mcdonald
Manchester City Council,Childrens Services,Compensation Payments,08.02.2011,1902475429,"7,750.00",Abney Garsden Mcdonald
Manchester City Council,Childrens Services,Compensation Payments,08.02.2011,1902475430,"13,500.00",Abney Garsden Mcdonald
Manchester City Council,Childrens Services,Compensation Payments,08.02.2011,1902475432,"6,100.00",Abney Garsden Mcdonald
Manchester City Council,Childrens Services,Compensation Payments,08.02.2011,1902475536,"8,200.00",Abney Garsden Mcdonald
Manchester City Council,Childrens Services,Proffesional fees,08.02.2011,1902476298,"1,195.09",REDACTED PERSONAL DATA
Manchester City Council,Housing Revenue Account,Surplus property Acquisitions,08.02.2011,1902476336,"5,287.00",Redacted Personal Information
Manchester City Council,Adult Social Care,Proffesional fees,08.02.2011,1902476365,"5,040.00",Criminal Records Bureau
Manchester City Council,Housing General Fund,Building Works,08.02.2011,1902476411,"3,877.85",Manchester Working Ltd
Manchester City Council,Childrens Services,Proffesional fees,08.02.2011,1902476468,988.75,Stockport Psychology Services
Manchester City Council,Childrens Services,Proffesional fees,08.02.2011,1902476703,"1,120.00",Stockport Psychology Services
Manchester City Council,Childrens Services,Grant and subscriptions awarded,08.02.2011,1902476714,"6,092.66",Manchester Young Lives
Manchester City Council,Childrens Services,Grant and subscriptions awarded,08.02.2011,1902476719,"2,374.00",Manchester Young Lives
Manchester City Council,Housing General Fund,Adaptations to Surplus Properties,08.02.2011,1902476755,"4,722.16",REDACTED PERSONAL DATA
Manchester City Council,Chief Executives,Grant and subscriptions awarded,08.02.2011,1902476769,"2,000.00",Keele University
Manchester City Council,Adult Social Care,Equipment,08.02.2011,1902476776,"1,366.09",Manchester Working Ltd
Manchester City Council,Environment and Operations,Landline Telephone,08.02.2011,1902476780,522,Virgin Media Limited
Manchester City Council,Libraries and Theatres,Library Materials Acquisition,08.02.2011,1902476935,"1,436.27",Bertram Library Services
Manchester City Council,Libraries and Theatres,Library Materials Acquisition,08.02.2011,1902476978,719.33,Magna Large Print Books
Manchester City Council,Libraries and Theatres,Library Materials Acquisition,08.02.2011,1902476979,645.56,Magna Large Print Books
Manchester City Council,Chief Executives,Grant and subscriptions awarded,08.02.2011,1902476984,"1,830.00",Levenshulme Inspire
Manchester City Council,Childrens Services,Additional Allowance,08.02.2011,1902477105,"15,530.00",Tameside Pension Fund Accountancy G
Manchester City Council,Childrens Services,Additional Allowance,08.02.2011,1902477106,"15,530.00",Tameside Pension Fund Accountancy G
Manchester City Council,Hospitality + Trading Services,Catering Provisions,08.02.2011,1902477178,526.26,Brake Bros Foodservice Ltd
Manchester City Council,Hospitality + Trading Services,Catering Provisions,08.02.2011,1902477188,514.21,Brake Bros Foodservice Ltd
Manchester City Council,Hospitality + Trading Services,Catering Provisions,08.02.2011,1902477206,754.58,Brake Bros Foodservice Ltd
Manchester City Council,Childrens Services,Foster Payments,08.02.2011,1902477451,"11,084.00",REDACTED PERSONAL DATA
Manchester City Council,Chief Executives,Works and associated costs for Land and Buildings,08.02.2011,5100340167,"1,500.00",Eversheds Llp
Manchester City Council,Hospitality + Trading Services,Tipping - Skips,08.02.2011,5100364058,572.7,Enterprise Manchester Partnership
Manchester City Council,Hospitality + Trading Services,Tipping - Skips,08.02.2011,5100364074,552.8,Enterprise Manchester Partnership
Manchester City Council,Adult Social Care,Equipment,08.02.2011,5100406379,720,Invacare Limited
Manchester City Council,Adult Social Care,Equipment,08.02.2011,5100406379,"3,600.00",Invacare Limited
Manchester City Council,Childrens Services,I T Provision,08.02.2011,5100410992,"4,000.00",Capita Business Services Ltd
Manchester City Council,Chief Executives,Hire of Equipment,08.02.2011,5100412407,"1,420.00",John Sutch Cranes
Manchester City Council,Hospitality + Trading Services,Payments to Sub-Contractors,08.02.2011,5100416451,"9,436.54",Kenny Bros (Civil Eng) Ltd
Manchester City Council,Chief Executives,Printing,08.02.2011,5100416500,"1,169.00",Hudson & Pearson
Manchester City Council,Grtr Manchester Transport Unit,Payments to Sub-Contractors,08.02.2011,5100416946,"2,743.70",The Care Company (Sussex) Ltd
Manchester City Council,Chief Executives,Payments for services,08.02.2011,5100417092,"3,763.00",Prime Care Ambulance Service
Manchester City Council,Hospitality + Trading Services,Vehicle Parts/Spares,08.02.2011,5100417314,825,GTS Steam Cleaners
Manchester City Council,Chief Executives,Consultants Fees,08.02.2011,5100417354,"5,953.78",Turner & Townsend Cost
Manchester City Council,Childrens Services,Vehicle Plant Furniture and Equipment,08.02.2011,5100417391,699.38,UniServity Ltd
Manchester City Council,Highways Services,Payments to Sub-Contractors,08.02.2011,5100417838,"2,292.60",Salt Union Ltd
Manchester City Council,Chief Executives,Advertising,08.02.2011,5100417905,"3,350.00",Trinity Mirror Midlands Ltd
Manchester City Council,Chief Executives,Third party payments relating to Voluntary Organisations,08.02.2011,5100418059,"6,889.00",English Churches Housing Group
Manchester City Council,Learning Disabilities PB,Grant and subscriptions awarded,08.02.2011,5100418085,"10,000.00",Talbot House Support Centre
Manchester City Council,Chief Executives,Catering,08.02.2011,5100418094,709.5,Lancashire County Council
Manchester City Council,Environment and Operations,Testing Fees,08.02.2011,5100418105,"8,754.00",Staffordshire County Council
Manchester City Council,Regeneration Finance,Training and Development,08.02.2011,5100418107,"1,585.14",Back On Track
Manchester City Council,Chief Executives,Third party payments relating to Voluntary Organisations,08.02.2011,5100418110,"-6,889.00",English Churches Housing Group
Manchester City Council,Grtr Manchester Urban Traffic,Payments to Sub-Contractors,08.02.2011,5100418137,"5,917.22",Siemens Plc
Manchester City Council,Grtr Manchester Urban Traffic,Payments to Sub-Contractors,08.02.2011,5100418140,"5,953.22",Siemens Plc
Manchester City Council,Corporate Services,Refuse Collection,08.02.2011,5100418142,"-1,675.12",Enterprise Manchester Partnership
Manchester City Council,Childrens Services,Works and associated costs for Land and Buildings,08.02.2011,5100418159,"33,444.22",Manchester Working Ltd
Manchester City Council,Childrens Services,Works and associated costs for Land and Buildings,08.02.2011,5100418160,"42,043.28",Manchester Working Ltd
Manchester City Council,Childrens Services,Building Works,08.02.2011,5100418162,"3,650.00",BT PLC
Manchester City Council,Childrens Services,Works and associated costs for Land and Buildings,08.02.2011,5100418164,"30,267.88",Manchester Working Ltd
Manchester City Council,Manchester Leisure,Works and associated costs for Land and Buildings,08.02.2011,5100418167,"14,990.61",Manchester Working Ltd
Manchester City Council,Corporate Services,Works and associated costs for Land and Buildings,08.02.2011,5100418168,"12,821.51",Manchester Working Ltd
Manchester City Council,Childrens Services,Building Works,08.02.2011,5100418169,"12,348.65",Manchester Working Ltd
Manchester City Council,Corporate Services,Grant and subscriptions awarded,08.02.2011,5100418176,675,Alarm
Manchester City Council,Childrens Services,Postage,08.02.2011,5100418179,"1,400.00",Neopost Ltd (Consumables)
Manchester City Council,Hospitality + Trading Services,Window Cleaning,08.02.2011,5100418189,"-3,500.00",Ultra Cleaning Services
Manchester City Council,Hospitality + Trading Services,Window Cleaning,08.02.2011,5100418192,"-4,500.00",Ultra Cleaning Services
Manchester City Council,Hospitality + Trading Services,Window Cleaning,08.02.2011,5100418193,"4,500.00",Ultra Cleaning Services
Manchester City Council,Grtr Manchester Urban Traffic,Payments to Sub-Contractors,08.02.2011,5100418200,"3,477.46",Rosgal Ltd
Manchester City Council,Hospitality + Trading Services,Window Cleaning,08.02.2011,5100418204,"3,500.00",Ultra Cleaning Services
Manchester City Council,Regeneration Finance,Furniture,08.02.2011,5100418216,598,thedesignconcept
Manchester City Council,Libraries and Theatres,Furniture,08.02.2011,5100418217,994,thedesignconcept
Manchester City Council,Chief Executives,Paper & Envelopes,08.02.2011,5100418229,615.16,Premier Paper Group Ltd
Manchester City Council,Chief Executives,Agency staff provision,08.02.2011,5100418237,"7,690.28",The Big Life Company
Manchester City Council,Corporate Services,Proffesional fees,08.02.2011,5100418241,"2,671.00",Airborne Environmental Consultants
Manchester City Council,Grtr Manchester Urban Traffic,Payments to Sub-Contractors,08.02.2011,5100418247,"1,749.60",Peek Traffic Ltd
Manchester City Council,Grtr Manchester Urban Traffic,Payments to Sub-Contractors,08.02.2011,5100418247,"3,538.23",Peek Traffic Ltd
Manchester City Council,Childrens Services,Agency staff provision,08.02.2011,5100418251,575,Randstad Education
Manchester City Council,Childrens Services,Agency staff provision,08.02.2011,5100418252,587.5,Randstad Education
Manchester City Council,Childrens Services,Agency staff provision,08.02.2011,5100418253,575,Randstad Education
Manchester City Council,Childrens Services,Agency staff provision,08.02.2011,5100418260,575,Randstad Education
Manchester City Council,Corporate Services,Works and associated costs for Land and Buildings,08.02.2011,5100418264,"10,000.00",MITIE Property Services (UK) Ltd
Manchester City Council,Environment and Operations,Proffesional fees,08.02.2011,5100418267,"1,744.60",Osborne Richardson
Manchester City Council,Grtr Manchester Urban Traffic,Landline Telephone,08.02.2011,5100418268,"2,045.00",Microcare Telecommunications
Manchester City Council,Grtr Manchester Urban Traffic,Landline Telephone,08.02.2011,5100418269,"-1,022.50",Microcare Telecommunications
Manchester City Council,Regeneration Finance,Grant and subscriptions awarded,08.02.2011,5100418270,500,Manchester Digital Ltd
Manchester City Council,Regeneration Finance,I T Provision,08.02.2011,5100418273,"6,206.00",OCN North West Region
Manchester City Council,Housing Revenue Account,I T Provision,08.02.2011,5100418276,"19,678.00",Northwards Housing Limited
Manchester City Council,Chief Executives,Agency staff provision,08.02.2011,5100418277,"1,176.88",Osborne Richardson
Manchester City Council,Chief Executives,Training and Development,08.02.2011,5100418300,550,T-Three Public Sector Consulting
Manchester City Council,Chief Executives,Agency staff provision,08.02.2011,5100418305,"9,659.32",Randstad Care
Manchester City Council,Chief Executives,Agency staff provision,08.02.2011,5100418323,726.72,Enterprise Social Care Ltd
Manchester City Council,Hospitality + Trading Services,Payments to Sub-Contractors,08.02.2011,5100418325,"1,158.66",Budgetgate Ltd
Manchester City Council,Chief Executives,Payments for services,08.02.2011,5100418334,"1,500.00",Nacro Operations
Manchester City Council,Regeneration Finance,Consultants Fees,08.02.2011,5100418351,"1,480.00",Ekos Consulting (Uk) Ltd
Manchester City Council,Regeneration Finance,Consultants Fees,08.02.2011,5100418355,517.34,Ekos Consulting (Uk) Ltd
Manchester City Council,Childrens Services,Training and Development,08.02.2011,5100418361,"3,000.00",Doodle-Bugs
Manchester City Council,Regeneration Finance,Grant and subscriptions awarded,08.02.2011,5100418377,"1,863.00",Big Life Employment Ltd
Manchester City Council,Manchester Leisure,Payments for services,08.02.2011,5100418381,720,Timperley Lacrosse Club
Manchester City Council,Chief Executives,Construction Works,08.02.2011,5100418403,"56,666.65",British Telecommunications Plc
Manchester City Council,Chief Executives,Consultants Fees,08.02.2011,5100418446,"6,046.00",Atkins Limited
Manchester City Council,Chief Executives,Grant and subscriptions awarded,08.02.2011,5100418448,"1,276.59",Edge Hill University
Manchester City Council,Environment and Operations,Proffesional fees,08.02.2011,5100418454,"1,874.64",Environmental Scientifics Group Ltd
Manchester City Council,Chief Executives,Construction Works,08.02.2011,5100418468,"-56,666.65",British Telecommunications Plc
Manchester City Council,Childrens Services,Payments for services,08.02.2011,5100418483,"1,178.00",Rhythm and Rhyme Limited
Manchester City Council,Childrens Services,Grant and subscriptions awarded,08.02.2011,5100418494,"6,077.92",Pro-Contact
Manchester City Council,Childrens Services,Grant and subscriptions awarded,08.02.2011,5100418496,"6,193.16",Wai Yin Chinese Women Society
Manchester City Council,Adult Social Care,Bed & Breakfast Acc,08.02.2011,5100418501,"3,465.00",Redacted Personal Information
Manchester City Council,Environment and Operations,Equipment,08.02.2011,5100418524,"105,987.40",Enterprise Manchester Partnership
Manchester City Council,Environment and Operations,Payments to Sub-Contractors,08.02.2011,5100418537,"6,081.06",Enterprise Manchester Partnership
Manchester City Council,Hospitality + Trading Services,Vehicle Repairs,08.02.2011,5100418542,"8,526.43",Manchester Van Hire Ltd
Manchester City Council,Chief Executives,Agency staff provision,08.02.2011,5100418556,"1,156.12",Entrust Social Care
Manchester City Council,Adult Social Care,Residential Furniture,08.02.2011,5100418561,"1,815.14",The Furnishing Service Ltd
Manchester City Council,Highways Services,Agency staff provision,08.02.2011,5100418570,"11,760.00",Capita  Resourcing Ltd
Manchester City Council,Childrens Services,Equipment,08.02.2011,5100418581,910.65,Rompa
Manchester City Council,Adult Social Care,Residential Furniture,08.02.2011,5100418635,581.96,The Furnishing Service Ltd
Manchester City Council,Hospitality + Trading Services,Building Materials for direct delivery,08.02.2011,5100418644,678.25,Cemex (Uk) Shared Service Centre
Manchester City Council,Hospitality + Trading Services,Building Materials for direct delivery,08.02.2011,5100418646,846.85,Cemex (Uk) Shared Service Centre
Manchester City Council,Hospitality + Trading Services,Building Materials for direct delivery,08.02.2011,5100418659,735.17,Cemex (Uk) Shared Service Centre
Manchester City Council,Hospitality + Trading Services,Building Materials for direct delivery,08.02.2011,5100418660,853.61,Cemex (Uk) Shared Service Centre
Manchester City Council,Hospitality + Trading Services,Building Materials for direct delivery,08.02.2011,5100418662,818.09,Cemex (Uk) Shared Service Centre
Manchester City Council,Hospitality + Trading Services,Hire of Machinery,08.02.2011,5100418729,"8,236.00",Go Plant Ltd
Manchester City Council,Hospitality + Trading Services,Vehicle Parts/Spares,08.02.2011,5100418774,"1,385.70",F T Factors
Manchester City Council,Hospitality + Trading Services,Vehicle Parts/Spares,08.02.2011,5100418776,"1,084.40",F T Factors
Manchester City Council,Hospitality + Trading Services,Vehicle Parts/Spares,08.02.2011,5100418778,"1,071.10",F T Factors
Manchester City Council,Hospitality + Trading Services,Building Materials for direct delivery,08.02.2011,5100418780,567.5,F T Factors
Manchester City Council,Hospitality + Trading Services,Hire of Machinery,08.02.2011,5100418831,"13,231.50",H & C Plant Hire Ltd
Manchester City Council,Adult Social Care,Rents,08.02.2011,5100418836,"1,544.00",Cascade Homes Ltd
Manchester City Council,Adult Social Care,Rents,08.02.2011,5100418837,"1,544.00",Cascade Homes Ltd
Manchester City Council,Manchester Leisure,Vehicle Hire Costs,08.02.2011,5100418867,500,T.H. Horn Ltd
Manchester City Council,Manchester Leisure,Vehicle Hire Costs,08.02.2011,5100418868,500,T.H. Horn Ltd
Manchester City Council,Manchester Leisure,Vehicle Hire Costs,08.02.2011,5100418869,500,T.H. Horn Ltd
Manchester City Council,Hospitality + Trading Services,Hire of Machinery,08.02.2011,5100418871,527.85,Ashtead Plant Hire
Manchester City Council,Hospitality + Trading Services,Hire of Machinery,08.02.2011,5100418876,984.41,Ashtead Plant Hire
Manchester City Council,Hospitality + Trading Services,Hire of Machinery,08.02.2011,5100418879,686.83,Ashtead Plant Hire
Manchester City Council,Chief Executives,Agency staff provision,09.02.2011,1700018945,"1,676.50",New Millennia Payroll Services Ltd
Manchester City Council,Corporate Services,Agency staff provision,09.02.2011,1700018953,-951.75,Hays Personnel
Manchester City Council,Childrens Services,Works and associated costs for Land and Buildings,09.02.2011,1902467878,"4,742.93",BT PLC
Manchester City Council,Insurance Fund,Insurance,09.02.2011,1902472984,547,Department For Work & Pensions
Manchester City Council,Chief Executives,Mobilephone Charges,09.02.2011,1902473138,971.31,T-Mobile
Manchester City Council,Chief Executives,Landline Telephone,09.02.2011,1902474653,"105,341.19",BT PLC
Manchester City Council,Insurance Fund,Insurance,09.02.2011,1902475375,"4,000.00",Redacted Personal Information
Manchester City Council,Chief Executives,Transport Taxis,09.02.2011,1902475398,"2,339.36",Mantax Radio Taxis Ltd
Manchester City Council,Childrens Services,Proffesional fees,09.02.2011,1902475543,595,Bromley Hyde & Robinson
Manchester City Council,Corporate Services,Water - Metered,09.02.2011,1902476409,"7,333.00",United Utilities Water Plc
Manchester City Council,Corporate Services,Water - Metered,09.02.2011,1902476421,"2,796.83",United Utilities Water Plc
Manchester City Council,Corporate Services,Water - Metered,09.02.2011,1902476423,"3,855.96",United Utilities Water Plc
Manchester City Council,Corporate Services,Water - Metered,09.02.2011,1902476425,"2,796.83",United Utilities Water Plc
Manchester City Council,Manchester Leisure,Compensation Payments,09.02.2011,1902476812,"8,000.00",Redacted Personal Information
Manchester City Council,Housing General Fund,Building Works,09.02.2011,1902477328,"2,283.91",Manchester Working Ltd
Manchester City Council,Chief Executives,Training and Development,09.02.2011,1902477351,600,Xerox (Uk) Ltd
Manchester City Council,Housing General Fund,Building Works,09.02.2011,1902477389,"1,718.05",Stannah Lift Services Ltd
Manchester City Council,Housing General Fund,Building Works,09.02.2011,1902477391,"5,324.00",Redacted Personal Information
Manchester City Council,Housing General Fund,Building Works,09.02.2011,1902477392,"4,080.00",Stannah Lift Services Ltd
Manchester City Council,Housing General Fund,Building Works,09.02.2011,1902477394,"5,494.00",Stannah Lift Services Ltd
Manchester City Council,Childrens Services,Training and Development,09.02.2011,1902477405,765.5,Racing To English
Manchester City Council,Housing General Fund,Building Works,09.02.2011,1902477408,"5,037.00",AJC Builders Ltd
Manchester City Council,Housing General Fund,Building Works,09.02.2011,1902477421,"3,310.00",AJC Builders Ltd
Manchester City Council,Housing General Fund,Building Works,09.02.2011,1902477428,"13,271.10",AJC Builders Ltd
Manchester City Council,Housing Revenue Account,Renoval and Storage of Furniture,09.02.2011,1902477430,"1,350.00",VPS PROPERTY SERVICES
Manchester City Council,Housing General Fund,Building Works,09.02.2011,1902477436,"14,860.00",AJC Builders Ltd
Manchester City Council,Housing Revenue Account,Renoval and Storage of Furniture,09.02.2011,1902477438,"1,350.00",VPS PROPERTY SERVICES
Manchester City Council,Housing General Fund,Adaptations to Surplus Properties,09.02.2011,1902477454,"4,285.58",Redacted Personal Information
Manchester City Council,Housing General Fund,Building Works,09.02.2011,1902477458,"8,892.00",Pollock Lifts Ltd
Manchester City Council,Housing General Fund,Building Works,09.02.2011,1902477459,"6,972.00",AJC Builders Ltd
Manchester City Council,Housing General Fund,Building Works,09.02.2011,1902477466,"3,610.00",Undershine Ltd t/a Elite Building
Manchester City Council,Adult Social Care,Grant and subscriptions awarded,09.02.2011,1902477468,"100,000.00",Christian Alliance Housing Ass Ltd
Manchester City Council,Childrens Services,Hospitality,09.02.2011,1902477510,900,Eat & Sweet Caribbean Food Ltd
Manchester City Council,Housing General Fund,Building Works,09.02.2011,1902477534,"4,417.00",Manchester Working Ltd
Manchester City Council,Housing General Fund,Building Works,09.02.2011,1902477568,"4,190.00",Manchester Working Ltd
Manchester City Council,Highways Services,Compensation Payments,09.02.2011,1902481565,"7,500.00",Redacted Personal Information
Manchester City Council,Chief Executives,Grant and subscriptions awarded,09.02.2011,1902481776,"129,798.00",National Football Museum
Manchester City Council,Chief Executives,Grant and subscriptions awarded,09.02.2011,1902481777,"61,670.00",MQT (Trading as Urbis)
Manchester City Council,Libraries and Theatres,Internet access,09.02.2011,1902481781,"16,868.54",Overdrive
Manchester City Council,Chief Executives,Paper & Envelopes,09.02.2011,5100368663,615.16,Premier Paper Group Ltd
Manchester City Council,Corporate Services,Proffesional fees,09.02.2011,5100404432,"4,000.00",W T Partnership
Manchester City Council,Chief Executives,Agency staff provision,09.02.2011,5100416157,"2,919.62",Liquid Personnel Ltd
Manchester City Council,Chief Executives,Agency staff provision,09.02.2011,5100416161,"2,538.80",Liquid Personnel Ltd
Manchester City Council,Childrens Services,Private Finance and Public Private partnership initiatives,09.02.2011,5100416491,"2,684.30",Manchester School Services Limited
Manchester City Council,Grtr Manchester Urban Traffic,Payments to Sub-Contractors,09.02.2011,5100416619,520,Electricity Northwest Limited
Manchester City Council,Childrens Services,Transport Coach Hire,09.02.2011,5100416625,"1,596.08",Mallons Minibuses
Manchester City Council,Grtr Manchester Urban Traffic,Payments to Sub-Contractors,09.02.2011,5100416626,520,Electricity Northwest Limited
Manchester City Council,Grtr Manchester Urban Traffic,Payments to Sub-Contractors,09.02.2011,5100416647,520,Electricity Northwest Limited
Manchester City Council,Housing Revenue Account,Council Dwelling Adaptations,09.02.2011,5100417210,"57,719.03",Northwards Housing Limited
Manchester City Council,Housing Revenue Account,Council Dwelling Adaptations,09.02.2011,5100417243,"4,855.80",Northwards Housing Limited
Manchester City Council,Housing Revenue Account,Council Dwelling Adaptations,09.02.2011,5100417250,705,Northwards Housing Limited
Manchester City Council,Housing Revenue Account,Council Dwelling Adaptations,09.02.2011,5100417256,"1,751.35",Northwards Housing Limited
Manchester City Council,Housing Revenue Account,Council Dwelling Adaptations,09.02.2011,5100417259,"1,431.76",Northwards Housing Limited
Manchester City Council,Housing Revenue Account,Council Dwelling Adaptations,09.02.2011,5100417330,"4,309.27",Northwards Housing Limited
Manchester City Council,Hospitality + Trading Services,Vehicle Hire Costs,09.02.2011,5100417412,752,Advanced Vehicle Technicians Ltd
Manchester City Council,Manchester Leisure,Grounds Maintenance,09.02.2011,5100417689,"9,848.48",Glendale Managed Services
Manchester City Council,Hospitality + Trading Services,Purchase of stores for re-distribution,09.02.2011,5100418025,"5,700.00",Cooper Clarke Group Ltd
Manchester City Council,Hospitality + Trading Services,Purchase of stores for re-distribution,09.02.2011,5100418026,527,Cooper Clarke Group Ltd
Manchester City Council,Childrens Services,Personal needs of client,09.02.2011,5100418046,500,Projekts Skate Park
Manchester City Council,Corporate Services,Expenditure re Internal Trading Ordered Externally,09.02.2011,5100418103,625,PSC Systems
Manchester City Council,Regeneration Finance,Proffesional fees,09.02.2011,5100418115,"1,000.00",Creative Hands Foundation
Manchester City Council,Childrens Services,Professional Services Curriculum,09.02.2011,5100418146,"6,000.00",Tameside Metropolitan Bouough
Manchester City Council,Regeneration Finance,Proffesional fees,09.02.2011,5100418211,"2,000.00",Creative Hands Foundation
Manchester City Council,Chief Executives,Paper & Envelopes,09.02.2011,5100418224,-615.16,Premier Paper Group Ltd
Manchester City Council,Grtr Manchester Urban Traffic,Payments to Sub-Contractors,09.02.2011,5100418225,"1,475.00",TDC Systems Ltd
Manchester City Council,Libraries and Theatres,Furniture,09.02.2011,5100418228,"1,884.00",thedesignconcept
Manchester City Council,Grtr Manchester Urban Traffic,Payments to Sub-Contractors,09.02.2011,5100418232,"2,520.00",TDC Systems Ltd
Manchester City Council,Hospitality + Trading Services,Vehicle Fuel Costs,09.02.2011,5100418236,"10,766.00",Carlton Fuels Ltd
Manchester City Council,Chief Executives,Hire of Equipment,09.02.2011,5100418338,"1,590.00",Mahood Marquees Ltd
Manchester City Council,Chief Executives,Hire of Equipment,09.02.2011,5100418348,980,Mahood Marquees Ltd
Manchester City Council,Childrens Services,Training and Development,09.02.2011,5100418391,"15,000.00",Barnardo's North West
Manchester City Council,Hospitality + Trading Services,Purchase of stores for re-distribution,09.02.2011,5100418431,"1,498.97",Buildbase Ltd aka Axon Buildbase
Manchester City Council,Chief Executives,Hire of Equipment,09.02.2011,5100418434,900,William G.Search Ltd
Manchester City Council,Regeneration Finance,Hire of Premises,09.02.2011,5100418463,864,Healthy Ardwick
Manchester City Council,Chief Executives,Construction Works,09.02.2011,5100418485,"56,666.65",British Telecommunications Plc
Manchester City Council,Childrens Services,I T Provision,09.02.2011,5100418492,"3,333.00",Rochdale Mbc
Manchester City Council,Highways Services,Proffesional fees,09.02.2011,5100418515,"1,031.18",AECOM Limited
Manchester City Council,Highways Services,Proffesional fees,09.02.2011,5100418532,518.64,AECOM Limited
Manchester City Council,Chief Executives,Proffesional fees,09.02.2011,5100418573,"4,350.00",Futureworks Training Ltd
Manchester City Council,Chief Executives,Construction Works,09.02.2011,5100418622,586,TDC Systems Ltd
Manchester City Council,Childrens Services,Works and associated costs for Land and Buildings,09.02.2011,5100418630,"19,561.00",Cruden Group Ltd
Manchester City Council,Hospitality + Trading Services,Purchase of stores for re-distribution,09.02.2011,5100418637,548,Asd Metal Services
Manchester City Council,Childrens Services,Works and associated costs for Land and Buildings,09.02.2011,5100418678,"-19,561.00",Cruden Group Ltd
Manchester City Council,Hospitality + Trading Services,Security,09.02.2011,5100418698,"320,694.86",Group 4 Total Security Ltd T/A G4S
Manchester City Council,Childrens Services,Grant and subscriptions awarded,09.02.2011,5100418710,"6,098.25",Barnardo's North West
Manchester City Council,Childrens Services,Grant and subscriptions awarded,09.02.2011,5100418712,"3,322.91",Catholic Childrens Society
Manchester City Council,Childrens Services,Grant and subscriptions awarded,09.02.2011,5100418715,"4,271.66",The Depaul Trust
Manchester City Council,Childrens Services,Grant and subscriptions awarded,09.02.2011,5100418716,"58,738.00",Barnardo's North West
Manchester City Council,Environment and Operations,Proffesional fees,09.02.2011,5100418718,910,Pugh & Company
Manchester City Council,Childrens Services,Agency staff provision,09.02.2011,5100418738,575,Randstad Education
Manchester City Council,Childrens Services,Agency staff provision,09.02.2011,5100418740,575,Randstad Education
Manchester City Council,Chief Executives,Grant and subscriptions awarded,09.02.2011,5100418743,"2,000.00",The University Of Liverpool
Manchester City Council,Environment and Operations,Vehicle Parts/Spares,09.02.2011,5100418751,"1,698.80",New Auto Ltd T/A Mogo (Uk)
Manchester City Council,Chief Executives,Communications,09.02.2011,5100418753,517.7,Unit Communications
Manchester City Council,Childrens Services,Proffesional fees,09.02.2011,5100418761,"4,256.91",Scope
Manchester City Council,Childrens Services,Grant and subscriptions awarded,09.02.2011,5100418763,"11,225.00",Homestart Manchester North
Manchester City Council,Childrens Services,Grant and subscriptions awarded,09.02.2011,5100418764,"12,795.83",Nacro Operations
Manchester City Council,Corporate Services,Internal Repairs and Maintenance for buildings,09.02.2011,5100418765,"2,500.00",Hawk Security & Surveillance
Manchester City Council,Childrens Services,Grant and subscriptions awarded,09.02.2011,5100418766,"6,176.33",Manchester Alliance For
Manchester City Council,Chief Executives,Goods purchased for resale in Council outlets,09.02.2011,5100418781,"1,249.56",Littlehampton Book Services Ltd
Manchester City Council,Hospitality + Trading Services,Building Materials for direct delivery,09.02.2011,5100418783,594,Asd Metal Services
Manchester City Council,Childrens Services,Agency staff provision,09.02.2011,5100418785,"1,043.22",Randstad Education
Manchester City Council,Manchester Leisure,Proffesional fees,09.02.2011,5100418788,"12,000.00",National Badminton Championships
Manchester City Council,Highways Services,Agency staff provision,09.02.2011,5100418794,"14,700.00",Capita  Resourcing Ltd
Manchester City Council,Highways Services,Agency staff provision,09.02.2011,5100418796,"11,760.00",Capita  Resourcing Ltd
Manchester City Council,Childrens Services,Security,09.02.2011,5100418803,569.17,Adt Fire & Security Plc
Manchester City Council,Corporate Services,Fees,09.02.2011,5100418804,"5,164.20",Cobbetts LLP
Manchester City Council,Chief Executives,Agency staff provision,09.02.2011,5100418806,"2,002.50",Key People Ltd
Manchester City Council,Regeneration Finance,Grant and subscriptions awarded,09.02.2011,5100418807,"3,286.30",Southway Housing Trust
Manchester City Council,Childrens Services,Proffesional fees,09.02.2011,5100418820,"9,537.72",Water Adventure Centre
Manchester City Council,Chief Executives,Agency staff provision,09.02.2011,5100418838,"2,682.42",Computer People
Manchester City Council,Corporate Services,Proffesional fees,09.02.2011,5100418839,-853.23,NPS North West Ltd
Manchester City Council,Chief Executives,Agency staff provision,09.02.2011,5100418841,"3,388.32",Computer People
Manchester City Council,Hospitality + Trading Services,Vehicle Hire Costs,09.02.2011,5100418842,-752,Advanced Vehicle Technicians Ltd
Manchester City Council,Childrens Services,Agency staff provision,09.02.2011,5100418843,587.5,Randstad Education
Manchester City Council,Childrens Services,Agency staff provision,09.02.2011,5100418846,"1,030.00",Randstad Education
Manchester City Council,Regeneration Finance,Proffesional fees,09.02.2011,5100418848,"-2,000.00",Creative Hands Foundation
Manchester City Council,Childrens Services,Grant and subscriptions awarded,09.02.2011,5100418849,670,Specialist Schools & Academies Trus
Manchester City Council,Chief Executives,Building Materials for direct delivery,09.02.2011,5100418850,-664.5,Leander Architectural
Manchester City Council,Childrens Services,Agency staff provision,09.02.2011,5100418851,575,Randstad Education
Manchester City Council,Chief Executives,Building Materials for direct delivery,09.02.2011,5100418852,664,Leander Architectural
Manchester City Council,Childrens Services,Agency staff provision,09.02.2011,5100418863,575,Randstad Education
Manchester City Council,Regeneration Finance,Grant and subscriptions awarded,09.02.2011,5100418865,"45,133.87",One Parent Families
Manchester City Council,Childrens Services,I T Provision,09.02.2011,5100418885,666.66,Mersey Grid Limited
Manchester City Council,Childrens Services,Car Parking Permits,09.02.2011,5100418892,"1,565.21",National Car Parks Ltd Season Ticke
Manchester City Council,Regeneration Finance,Payments for services,09.02.2011,5100418898,"1,000.00",Higher Blackley Comm.Assoc.
Manchester City Council,Regeneration Finance,Payments for services,09.02.2011,5100418902,600,Moston Health Forum
Manchester City Council,Childrens Services,Grant and subscriptions awarded,09.02.2011,5100418936,"2,789.55",Our Lady's RC Sports College
Manchester City Council,Chief Executives,Grant and subscriptions awarded,09.02.2011,5100418938,"1,500.00",Liverpool John Moores University
Manchester City Council,Childrens Services,Grant and subscriptions awarded,09.02.2011,5100418941,585.44,Manchester Sports & Leisure Trust
Manchester City Council,Childrens Services,Grant and subscriptions awarded,09.02.2011,5100418945,585.44,Manchester Sports & Leisure Trust
Manchester City Council,Childrens Services,"Consumable items eg Toilet rolls, soap etc",09.02.2011,5100418947,619,Manchester City Football Club Plc
Manchester City Council,Childrens Services,Grant and subscriptions awarded,09.02.2011,5100418948,911.6,FC United of Manchester
Manchester City Council,Childrens Services,Grant and subscriptions awarded,09.02.2011,5100418954,911.6,FC United of Manchester
Manchester City Council,Learning Disabilities PB,Day Care Payments,09.02.2011,5100418960,654.48,Brothers Of Charity Services
Manchester City Council,Learning Disabilities PB,Supported Accom,09.02.2011,5100418963,702.76,Brothers Of Charity Services
Manchester City Council,Childrens Services,Grant and subscriptions awarded,09.02.2011,5100418966,911.6,FC United of Manchester
Manchester City Council,Learning Disabilities PB,Supported Accom,09.02.2011,5100418967,"4,007.80",Brothers Of Charity Services
Manchester City Council,Childrens Services,Training and Development,09.02.2011,5100418989,"1,482.98",Essential Papers Ltd
Manchester City Council,Hospitality + Trading Services,Purchase of stores for re-distribution,09.02.2011,5100418991,"2,228.16",Marshalls Mono Ltd
Manchester City Council,Corporate Services,Works and associated costs for Land and Buildings,09.02.2011,5100419005,"40,888.56",Mace Ltd
Manchester City Council,Childrens Services,Agency staff provision,09.02.2011,5100419012,975,Randstad Education
Manchester City Council,Chief Executives,Agency staff provision,09.02.2011,5100419016,"1,220.14",Aptus Personnel Ltd t/a Jark
Manchester City Council,Childrens Services,Transport Taxis,09.02.2011,5100419017,"1,015.00",Wythenshawe Private Hire
Manchester City Council,Chief Executives,Agency staff provision,09.02.2011,5100419022,738.31,Homecare Support
Manchester City Council,Housing Revenue Account,Council Dwelling Adaptations,09.02.2011,5100419025,"24,152.88",Manchester Working Ltd
Manchester City Council,Housing Revenue Account,Council Dwelling Adaptations,09.02.2011,5100419025,"234,326.99",Manchester Working Ltd
Manchester City Council,Hospitality + Trading Services,Vehicle Parts/Spares,09.02.2011,5100419030,542.93,Dennis Eagle Ltd
Manchester City Council,Learning Disabilities PB,Respite Care Costs,09.02.2011,5100419034,"2,530.00",REDACTED PERSONAL DATA
Manchester City Council,Chief Executives,Agency staff provision,09.02.2011,5100419035,"2,331.84",Morson International
Manchester City Council,Learning Disabilities PB,Respite Care Costs,09.02.2011,5100419036,"2,070.00",REDACTED PERSONAL DATA
Manchester City Council,Corporate Services,Works and associated costs for Land and Buildings,09.02.2011,5100419040,"27,529.36",Mace Ltd
Manchester City Council,Childrens Services,Internal Repairs and Maintenance for buildings,09.02.2011,5100419043,501.05,Brayshaw Heating Maintenance Ltd
Manchester City Council,Corporate Services,External repairs and maintenance for buildings,09.02.2011,5100419051,"34,769.84",Manchester Working Ltd
Manchester City Council,Hospitality + Trading Services,Building Materials for direct delivery,09.02.2011,5100419055,526.85,Burdens Ltd
Manchester City Council,Learning Disabilities PB,Respite Care Costs,09.02.2011,5100419059,"2,530.00",REDACTED PERSONAL DATA
Manchester City Council,Learning Disabilities PB,Supported Accom,09.02.2011,5100419061,"2,281.48",Brothers Of Charity Services
Manchester City Council,Learning Disabilities PB,Supported Accom,09.02.2011,5100419066,"3,092.28",Brothers Of Charity Services
Manchester City Council,Childrens Services,Payments for services,09.02.2011,5100419080,"4,961.37",Central Mcr University Hospitals
Manchester City Council,Learning Disabilities PB,Supported Accom,09.02.2011,5100419088,"2,162.12",Brothers Of Charity Services
Manchester City Council,Chief Executives,Advertising,09.02.2011,5100419124,"1,235.25",A&N Media Services
Manchester City Council,Regeneration Finance,Postage,09.02.2011,5100419139,518.37,Neopost Ltd (Consumables)
Manchester City Council,Childrens Services,Payments for services,09.02.2011,5100419140,"1,270.00",Greater Manchester Coalition Of Dis
Manchester City Council,Childrens Services,Payments for services,09.02.2011,5100419147,"1,150.00",Greater Manchester Coalition Of Dis
Manchester City Council,Learning Disabilities PB,Rents,09.02.2011,5100419154,955.63,Parkway Green Housing Trust
Manchester City Council,Learning Disabilities PB,Rents,09.02.2011,5100419154,"1,081.73",Parkway Green Housing Trust
Manchester City Council,Regeneration Finance,Grant and subscriptions awarded,09.02.2011,5100419160,"3,270.00",Vocational Training College
Manchester City Council,Environment and Operations,Postage,09.02.2011,5100419194,"1,038.96",Royal Mail Group Plc
Manchester City Council,Corporate Services,Stationery,09.02.2011,5100419513,535.71,Banner Business Services Ltd
Manchester City Council,Corporate Services,Water - Metered,10.02.2011,1700018960,"-18,615.24",United Utilities Water Plc
Manchester City Council,Housing Revenue Account,Postage,10.02.2011,1902462732,997.69,Royal Mail Group Plc
Manchester City Council,Housing Revenue Account,Landline Telephone,10.02.2011,1902467922,"2,770.20",BT PLC
Manchester City Council,Adult Social Care,Mobilephone Charges,10.02.2011,1902474582,572.93,T-Mobile
Manchester City Council,Grtr Manchester Urban Traffic,Landline Telephone,10.02.2011,1902474662,"220,118.14",BT PLC
Manchester City Council,Housing Revenue Account,Environmental Services,10.02.2011,1902476761,"67,000.00",Marshalls Charity
Manchester City Council,Libraries and Theatres,Subsistence and Conference Expenses,10.02.2011,1902476801,540,Redacted Personal Information
Manchester City Council,Environment and Operations,Gas,10.02.2011,1902477393,"3,180.55",British Gas Business
Manchester City Council,Hospitality + Trading Services,Mobilephone Charges,10.02.2011,1902481571,848.33,T-Mobile
Manchester City Council,Housing General Fund,Adaptations to Surplus Properties,10.02.2011,1902481772,"5,180.00",REDACTED PERSONAL DATA
Manchester City Council,Hospitality + Trading Services,Catering Provisions,10.02.2011,1902483288,503.2,Brake Bros Foodservice Ltd
Manchester City Council,Hospitality + Trading Services,Catering Provisions,10.02.2011,1902483296,548.1,Brake Bros Foodservice Ltd
Manchester City Council,Hospitality + Trading Services,Catering Provisions,10.02.2011,1902483429,"1,427.47",Brake Bros Foodservice Ltd
Manchester City Council,Hospitality + Trading Services,Catering Provisions,10.02.2011,1902483489,676.52,Brake Bros Foodservice Ltd
Manchester City Council,Highways Services,Compensation Payments,10.02.2011,1902483512,"1,125.00",T G BAYNES SOLICITORS
Manchester City Council,Regeneration Finance,Water - Metered,10.02.2011,1902483528,570.75,United Utilities Water Plc
Manchester City Council,Childrens Services,Water - Metered,10.02.2011,1902483529,"1,660.58",United Utilities Water Plc
Manchester City Council,Childrens Services,Water - Metered,10.02.2011,1902483531,"2,616.33",United Utilities Water Plc
Manchester City Council,Corporate Services,Water - Metered,10.02.2011,1902483532,"1,927.48",United Utilities Water Plc
Manchester City Council,Childrens Services,Water - Metered,10.02.2011,1902483534,"1,741.72",United Utilities Water Plc
Manchester City Council,Childrens Services,Water - Metered,10.02.2011,1902483535,"1,122.60",United Utilities Water Plc
Manchester City Council,Childrens Services,Water - Metered,10.02.2011,1902483541,"1,179.54",United Utilities Water Plc
Manchester City Council,Manchester Leisure,Water - Metered,10.02.2011,1902483547,"1,527.80",United Utilities Water Plc
Manchester City Council,Childrens Services,Water - Metered,10.02.2011,1902483548,"2,217.45",United Utilities Water Plc
Manchester City Council,Libraries and Theatres,Water - Metered,10.02.2011,1902483549,"1,654.20",United Utilities Water Plc
Manchester City Council,Adult Social Care,Water - Metered,10.02.2011,1902483552,"1,434.05",United Utilities Water Plc
Manchester City Council,Chief Executives,Water - Metered,10.02.2011,1902483553,701.4,United Utilities Water Plc
Manchester City Council,Adult Social Care,Water - Metered,10.02.2011,1902483555,704.37,United Utilities Water Plc
Manchester City Council,Manchester Leisure,Water - Metered,10.02.2011,1902483556,"1,828.55",United Utilities Water Plc
Manchester City Council,Adult Social Care,Water - Metered,10.02.2011,1902483557,"1,943.32",United Utilities Water Plc
Manchester City Council,Childrens Services,Water - Metered,10.02.2011,1902483558,765.42,United Utilities Water Plc
Manchester City Council,Environment and Operations,Water - Metered,10.02.2011,1902483564,"2,156.26",United Utilities Water Plc
Manchester City Council,Regeneration Finance,Water - Metered,10.02.2011,1902483566,"1,738.80",United Utilities Water Plc
Manchester City Council,Childrens Services,Water - Metered,10.02.2011,1902483567,665.89,United Utilities Water Plc
Manchester City Council,Childrens Services,Water - Metered,10.02.2011,1902483568,832.77,United Utilities Water Plc
Manchester City Council,Manchester Leisure,Water - Metered,10.02.2011,1902483569,"5,499.83",United Utilities Water Plc
Manchester City Council,Manchester Leisure,Water - Metered,10.02.2011,1902483572,576.71,United Utilities Water Plc
Manchester City Council,Manchester Leisure,Water - Metered,10.02.2011,1902483575,"3,060.03",United Utilities Water Plc
Manchester City Council,Corporate Services,Water - Metered,10.02.2011,1902483578,"2,738.87",United Utilities Water Plc
Manchester City Council,Corporate Services,Water - Metered,10.02.2011,1902483580,"7,347.26",United Utilities Water Plc
Manchester City Council,Manchester Leisure,Water - Metered,10.02.2011,1902483581,"8,938.42",United Utilities Water Plc
Manchester City Council,Hospitality + Trading Services,Water - Metered,10.02.2011,1902483583,"7,632.20",United Utilities Water Plc
Manchester City Council,Environment and Operations,Water - Metered,10.02.2011,1902483585,681.12,United Utilities Water Plc
Manchester City Council,Hospitality + Trading Services,Water - Metered,10.02.2011,1902483586,"6,927.30",United Utilities Water Plc
Manchester City Council,Adult Social Care,Water - Metered,10.02.2011,1902483588,"1,017.99",United Utilities Water Plc
Manchester City Council,Libraries and Theatres,Water - Metered,10.02.2011,1902483592,"1,261.13",United Utilities Water Plc
Manchester City Council,Adult Social Care,Water - Metered,10.02.2011,1902483594,"1,558.05",United Utilities Water Plc
Manchester City Council,Manchester Leisure,Water - Metered,10.02.2011,1902483598,"1,834.30",United Utilities Water Plc
Manchester City Council,Adult Social Care,Water - Metered,10.02.2011,1902483601,870.42,United Utilities Water Plc
Manchester City Council,Childrens Services,Water - Metered,10.02.2011,1902483607,806.12,United Utilities Water Plc
Manchester City Council,Hospitality + Trading Services,Water - Metered,10.02.2011,1902483608,"1,066.34",United Utilities Water Plc
Manchester City Council,Environment and Operations,Water - Metered,10.02.2011,1902483615,"6,506.26",United Utilities Water Plc
Manchester City Council,Adult Social Care,Water - Metered,10.02.2011,1902483620,"1,080.69",United Utilities Water Plc
Manchester City Council,Hospitality + Trading Services,Water - Metered,10.02.2011,1902483624,575.84,United Utilities Water Plc
Manchester City Council,Childrens Services,Water - Metered,10.02.2011,1902483626,762.92,United Utilities Water Plc
Manchester City Council,Libraries and Theatres,Water - Metered,10.02.2011,1902483628,"1,007.12",United Utilities Water Plc
Manchester City Council,Environment and Operations,Water - Metered,10.02.2011,1902483629,"6,719.65",United Utilities Water Plc
Manchester City Council,Adult Social Care,Water - Metered,10.02.2011,1902483631,644.66,United Utilities Water Plc
Manchester City Council,Manchester Leisure,Water - Metered,10.02.2011,1902483633,"2,957.96",United Utilities Water Plc
Manchester City Council,Manchester Leisure,Water - Metered,10.02.2011,1902483635,"3,004.72",United Utilities Water Plc
Manchester City Council,Environment and Operations,Water - Metered,10.02.2011,1902483637,"1,147.12",United Utilities Water Plc
Manchester City Council,Environment and Operations,Water - Metered,10.02.2011,1902483640,"8,097.51",United Utilities Water Plc
Manchester City Council,Adult Social Care,Water - Metered,10.02.2011,1902483642,831.66,United Utilities Water Plc
Manchester City Council,Manchester Leisure,Water - Metered,10.02.2011,1902483643,"6,922.35",United Utilities Water Plc
Manchester City Council,Regeneration Finance,Water - Metered,10.02.2011,1902483644,761.47,United Utilities Water Plc
Manchester City Council,Childrens Services,Water - Metered,10.02.2011,1902483648,"1,819.96",United Utilities Water Plc
Manchester City Council,Childrens Services,Water - Metered,10.02.2011,1902483654,875.82,United Utilities Water Plc
Manchester City Council,Manchester Leisure,Water - Metered,10.02.2011,1902483657,"13,752.18",United Utilities Water Plc
Manchester City Council,Manchester Leisure,Water - Metered,10.02.2011,1902483658,"1,523.33",United Utilities Water Plc
Manchester City Council,Manchester Leisure,Water - Metered,10.02.2011,1902483663,588.16,United Utilities Water Plc
Manchester City Council,Manchester Leisure,Water - Metered,10.02.2011,1902483664,520.43,United Utilities Water Plc
Manchester City Council,Childrens Services,Water - Metered,10.02.2011,1902483666,559.4,United Utilities Water Plc
Manchester City Council,Manchester Leisure,Water - Metered,10.02.2011,1902483667,528.81,United Utilities Water Plc
Manchester City Council,Libraries and Theatres,Water - Metered,10.02.2011,1902483669,884.05,United Utilities Water Plc
Manchester City Council,Adult Social Care,Water - Metered,10.02.2011,1902483671,"2,252.38",United Utilities Water Plc
Manchester City Council,Adult Social Care,Water - Metered,10.02.2011,1902483677,"1,640.31",United Utilities Water Plc
Manchester City Council,Childrens Services,Water - Metered,10.02.2011,1902483679,850.97,United Utilities Water Plc
Manchester City Council,Childrens Services,Water - Metered,10.02.2011,1902483680,743.68,United Utilities Water Plc
Manchester City Council,Childrens Services,Water - Metered,10.02.2011,1902483681,584.03,United Utilities Water Plc
Manchester City Council,Childrens Services,Water - Metered,10.02.2011,1902483686,662.75,United Utilities Water Plc
Manchester City Council,Hospitality + Trading Services,Water - Metered,10.02.2011,1902483687,971.95,United Utilities Water Plc
Manchester City Council,Libraries and Theatres,Water - Metered,10.02.2011,1902483688,"1,409.42",United Utilities Water Plc
Manchester City Council,Childrens Services,Water - Metered,10.02.2011,1902483689,"2,322.77",United Utilities Water Plc
Manchester City Council,Grtr Manchester Urban Traffic,Electricity,10.02.2011,1902483690,"80,161.81",Scottish & Southern Energy Plc
Manchester City Council,Highways Services,Electricity,10.02.2011,1902483691,"245,619.99",Scottish & Southern Energy Plc
Manchester City Council,Corporate Services,Electricity,10.02.2011,1902483692,"2,662.07",Scottish & Southern Energy Plc
Manchester City Council,Corporate Services,Electricity,10.02.2011,1902483693,"1,028.49",Scottish & Southern Energy Plc
Manchester City Council,Corporate Services,Electricity,10.02.2011,1902483694,"2,719.93",Scottish & Southern Energy Plc
Manchester City Council,Childrens Services,Heating Oil,10.02.2011,1902483695,"1,141.80",Emo Oil Ltd
Manchester City Council,Manchester Leisure,Heating Oil,10.02.2011,1902483696,"5,187.20",Emo Oil Ltd
Manchester City Council,Regeneration Finance,Heating Oil,10.02.2011,1902483697,"1,470.27",Emo Oil Ltd
Manchester City Council,Hospitality + Trading Services,Heating Oil,10.02.2011,1902483698,"1,170.00",Emo Oil Ltd
Manchester City Council,Childrens Services,Heating Oil,10.02.2011,1902483699,"1,671.32",Emo Oil Ltd
Manchester City Council,Adult Social Care,Gas,10.02.2011,1902483700,616.14,Corona Energy Ltd
Manchester City Council,Childrens Services,Electricity,10.02.2011,1902483712,730.12,Scottish & Southern Energy Plc
Manchester City Council,Childrens Services,Foster Payments,10.02.2011,1902484090,"2,483.43",REDACTED PERSONAL DATA
Manchester City Council,Childrens Services,Refuse Collection,10.02.2011,5100354965,898.56,Enterprise Manchester Partnership
Manchester City Council,Libraries and Theatres,Equipment,10.02.2011,5100393528,"11,500.00",Axiell Ltd
Manchester City Council,Corporate Services,Refuse Collection,10.02.2011,5100398957,"1,165.97",Enterprise Manchester Partnership
Manchester City Council,Manchester Leisure,Tipping - Tonnage,10.02.2011,5100398970,"1,118.00",Enterprise Manchester Partnership
Manchester City Council,Manchester Leisure,Tipping - Tonnage,10.02.2011,5100398988,934,Enterprise Manchester Partnership
Manchester City Council,Manchester Leisure,Tipping - Tonnage,10.02.2011,5100400561,589.94,Enterprise Manchester Partnership
Manchester City Council,Childrens Services,Payments for services,10.02.2011,5100403294,"1,308.50",Youth on Solid Ground
Manchester City Council,Regeneration Finance,Proffesional fees,10.02.2011,5100404563,"24,883.55",Pannone & Partners Solicitors
Manchester City Council,Adult Social Care,Training and Development,10.02.2011,5100406578,"1,600.00",KD Training Consultants Ltd
Manchester City Council,Housing Revenue Account,Consultants Fees,10.02.2011,5100411395,598,Open Communities Ltd
Manchester City Council,Manchester Leisure,Tipping - Tonnage,10.02.2011,5100413603,"1,320.00",Enterprise Manchester Partnership
Manchester City Council,Regeneration Finance,Grounds Maintenance,10.02.2011,5100415930,"3,138.58",Ashlea Ltd
Manchester City Council,Childrens Services,Transport Coach Hire,10.02.2011,5100416152,"4,820.00",Redacted Personal Information
Manchester City Council,Chief Executives,Grant and subscriptions awarded,10.02.2011,5100416389,"9,344.19",Greater Manchester Police
Manchester City Council,Chief Executives,Agency staff provision,10.02.2011,5100416515,"3,021.38",Manpower UK Ltd
Manchester City Council,Childrens Services,Transport Coach Hire,10.02.2011,5100416772,"1,500.00",REDACTED PERSONAL DATA T/A  Fairway Minibus
Manchester City Council,Childrens Services,Transport Coach Hire,10.02.2011,5100416783,"4,688.00",Galaxy Cars (Manchester) Limited
Manchester City Council,Adult Social Care,Bed & Breakfast Acc,10.02.2011,5100416885,"1,933.49",Northwards Housing Limited
Manchester City Council,Childrens Services,Transport Coach Hire,10.02.2011,5100416954,"6,761.00",Coachire Manchester Ltd
Manchester City Council,Chief Executives,Agency staff provision,10.02.2011,5100416956,"4,066.89",Deekay Technical Recruitment Ltd
Manchester City Council,Chief Executives,Agency staff provision,10.02.2011,5100416958,"1,931.40",Bluegroup International Ltd
Manchester City Council,Childrens Services,Transport Coach Hire,10.02.2011,5100417008,"-8,444.40",Mr Blackcab
Manchester City Council,Childrens Services,Transport Coach Hire,10.02.2011,5100417010,"8,692.82",Mr Blackcab
Manchester City Council,Chief Executives,Agency staff provision,10.02.2011,5100417076,"9,227.53",Semester Recruitment Ltd
Manchester City Council,Grtr Manchester Transport Unit,Payments to Sub-Contractors,10.02.2011,5100417161,"3,437.48",Sky High technology Ltd
Manchester City Council,Grtr Manchester Transport Unit,Payments to Sub-Contractors,10.02.2011,5100417168,698.46,Sky High technology Ltd
Manchester City Council,Hospitality + Trading Services,Vehicle Hire Costs,10.02.2011,5100417173,"4,410.00",Gullivers Truck Hire Ltd
Manchester City Council,Chief Executives,Printing,10.02.2011,5100417185,"1,535.00",Allied Publicity Serv.(Manchester)
Manchester City Council,Environment and Operations,Vehicle Parts/Spares,10.02.2011,5100417195,"8,669.00",VIP-System Ltd
Manchester City Council,Childrens Services,Transport Coach Hire,10.02.2011,5100417214,"3,447.50",Ricks Travel
Manchester City Council,Childrens Services,Training and Development,10.02.2011,5100417363,813,Designs For Education Ltd
Manchester City Council,Regeneration Finance,Grant and subscriptions awarded,10.02.2011,5100417376,"1,156.00",Proper Job Theatre company
Manchester City Council,Regeneration Finance,Grant and subscriptions awarded,10.02.2011,5100417382,"7,260.00",Proper Job Theatre company
Manchester City Council,Childrens Services,Works and associated costs for Land and Buildings,10.02.2011,5100417459,"1,940.00",Design Catering Equipment
Manchester City Council,Chief Executives,Agency staff provision,10.02.2011,5100417468,932.4,Semester Recruitment Ltd
Manchester City Council,Regeneration Finance,Grant and subscriptions awarded,10.02.2011,5100417614,"1,591.92",Greater Manchester Police
Manchester City Council,Regeneration Finance,Grant and subscriptions awarded,10.02.2011,5100417614,"3,004.29",Greater Manchester Police
Manchester City Council,Regeneration Finance,Grant and subscriptions awarded,10.02.2011,5100417614,"3,063.00",Greater Manchester Police
Manchester City Council,Adult Social Care,Equipment,10.02.2011,5100417687,"1,826.24",Prism UK Medical Ltd t/a Carefree
Manchester City Council,Chief Executives,Hire of Equipment,10.02.2011,5100417702,"1,534.01",Piccadilly AV Ltd
Manchester City Council,Childrens Services,Transport Coach Hire,10.02.2011,5100417724,675,Executive Travell
Manchester City Council,Childrens Services,Transport Coach Hire,10.02.2011,5100417749,"1,653.00",Transport Management & Co
Manchester City Council,Manchester Leisure,Grounds Maintenance,10.02.2011,5100417753,562.69,Glendale Managed Services
Manchester City Council,Chief Executives,Works and associated costs for Land and Buildings,10.02.2011,5100417778,"2,140.00",Appleyard & Trew Llp
Manchester City Council,Manchester Leisure,Grounds Maintenance,10.02.2011,5100417779,"76,966.04",Glendale Managed Services
Manchester City Council,Manchester Leisure,Grounds Maintenance,10.02.2011,5100417782,"5,858.58",Glendale Managed Services
Manchester City Council,Corporate Services,Works and associated costs for Land and Buildings,10.02.2011,5100417810,"15,319.00",Ove Arup & Partners Ltd
Manchester City Council,Corporate Services,Works and associated costs for Land and Buildings,10.02.2011,5100417811,"7,440.00",Ove Arup & Partners Ltd
Manchester City Council,Chief Executives,Equipment,10.02.2011,5100417817,"1,440.00",Video Receiving Centre Ltd
Manchester City Council,Chief Executives,Agency staff provision,10.02.2011,5100417848,"1,519.11",Taskmaster Resources Ltd
Manchester City Council,Hospitality + Trading Services,Transport Coach Hire,10.02.2011,5100417973,"4,784.45",Orion Travel
Manchester City Council,Childrens Services,Transport Coach Hire,10.02.2011,5100417975,"7,800.00",Orion Travel
Manchester City Council,Chief Executives,Equipment,10.02.2011,5100417977,"1,515.00",Footprint Solutions Ltd
Manchester City Council,Libraries and Theatres,Security,10.02.2011,5100417994,"1,736.00",Exclusafe Lifestyle Management Limi
Manchester City Council,Childrens Services,Transport Coach Hire,10.02.2011,5100418031,"1,368.00",So Coaches
Manchester City Council,Hospitality + Trading Services,Transport Coach Hire,10.02.2011,5100418034,"1,832.00",B Curbishley Ltd
Manchester City Council,Childrens Services,Furniture,10.02.2011,5100418063,"1,675.95",Rompa
Manchester City Council,Chief Executives,Grant and subscriptions awarded,10.02.2011,5100418090,"1,000.00",Salford Community Leisure Ltd
Manchester City Council,Regeneration Finance,Consultants Fees,10.02.2011,5100418118,650.64,Ekos Consulting (Uk) Ltd
Manchester City Council,Regeneration Finance,Consultants Fees,10.02.2011,5100418126,"4,252.60",Ekos Consulting (Uk) Ltd
Manchester City Council,Chief Executives,Third party payments relating to Voluntary Organisations,10.02.2011,5100418128,"6,889.00",English Churches Housing Group
Manchester City Council,Chief Executives,Third party payments relating to Voluntary Organisations,10.02.2011,5100418132,"5,300.00",English Churches Housing Group
Manchester City Council,Childrens Services,Rents,10.02.2011,5100418147,563.2,Serco Manchester (Manchester Commun
Manchester City Council,Corporate Services,Postage,10.02.2011,5100418156,"1,230.98",Royal Mail Group Plc
Manchester City Council,Adult Social Care,Rodent &Pest Control,10.02.2011,5100418262,"4,752.58",Initial Medical Services
Manchester City Council,Adult Social Care,Rodent &Pest Control,10.02.2011,5100418265,-970.42,Initial Medical Services
Manchester City Council,Childrens Services,Transport Coach Hire,10.02.2011,5100418266,"1,406.00",Jeffries Cars & Minicoaches Ltd
Manchester City Council,Childrens Services,Building Works,10.02.2011,5100418310,"3,848.00",Egan Reid Stationery Co Ltd
Manchester City Council,Hospitality + Trading Services,Vehicle Fuel Costs,10.02.2011,5100418339,"10,750.32",Carlton Fuels Ltd
Manchester City Council,Childrens Services,Transport Coach Hire,10.02.2011,5100418353,"6,268.00",D.J. Minibus Travel
Manchester City Council,Chief Executives,Agency staff provision,10.02.2011,5100418453,"2,000.00",Consult R Us Ltd
Manchester City Council,Libraries and Theatres,Equipment,10.02.2011,5100418495,880,Axiell Ltd
Manchester City Council,Manchester Leisure,Hire of Premises,10.02.2011,5100418594,"1,120.00",Serco Manchester Leisure Ltd Wythen
Manchester City Council,Chief Executives,Agency staff provision,10.02.2011,5100418617,"1,213.80",Medicare First
Manchester City Council,Chief Executives,Agency staff provision,10.02.2011,5100418663,"1,039.70",Medicare First
Manchester City Council,Childrens Services,Hire of Equipment,10.02.2011,5100418677,-702,Sibcas Limited
Manchester City Council,Regeneration Finance,Payments for services,10.02.2011,5100418775,685,Simpson Dancers
Manchester City Council,Adult Social Care,Equipment,10.02.2011,5100418942,"2,000.00",Neopost Finance Ltd (Rental)
Manchester City Council,Hospitality + Trading Services,Cleaning Equipment,10.02.2011,5100418953,"1,480.00",Elliot Loohire Limited
Manchester City Council,Adult Social Care,I T Provision,10.02.2011,5100419026,"1,566.00",Langren Ltd
Manchester City Council,Corporate Services,Works and associated costs for Land and Buildings,10.02.2011,5100419063,"37,511.70",Mace Ltd
Manchester City Council,Childrens Services,Refuse Collection,10.02.2011,5100419096,-898.56,Enterprise Manchester Partnership
Manchester City Council,Environment and Operations,I T Provision,10.02.2011,5100419099,650,MobileWorks Ltd
Manchester City Council,Childrens Services,Payments for services,10.02.2011,5100419130,"1,969.00",M13 Youth Project
Manchester City Council,Childrens Services,Payments for services,10.02.2011,5100419133,"1,746.00",M13 Youth Project
Manchester City Council,Hospitality + Trading Services,Hire of Equipment,10.02.2011,5100419145,781.2,Edgar J Browning Ltd
Manchester City Council,Hospitality + Trading Services,Hire of Equipment,10.02.2011,5100419152,781.2,Edgar J Browning Ltd
Manchester City Council,Hospitality + Trading Services,Building Materials for direct delivery,10.02.2011,5100419157,640.67,Tarmac Central Ltd
Manchester City Council,Childrens Services,Payments for services,10.02.2011,5100419187,"1,265.00",M13 Youth Project
Manchester City Council,Hospitality + Trading Services,Vehicle Fuel Costs,10.02.2011,5100419201,"10,774.15",Carlton Fuels Ltd
Manchester City Council,Hospitality + Trading Services,Vehicle Fuel Costs,10.02.2011,5100419206,"10,754.15",Carlton Fuels Ltd
Manchester City Council,Housing Revenue Account,Training and Development,10.02.2011,5100419207,"26,464.60",InTrain Limited
Manchester City Council,Corporate Services,Training and Development,10.02.2011,5100419210,"1,100.00",The Manchester College
Manchester City Council,Childrens Services,Transport Taxis,10.02.2011,5100419214,"1,225.00",Wythenshawe Private Hire
Manchester City Council,Hospitality + Trading Services,Hire of Equipment,10.02.2011,5100419227,781.2,Edgar J Browning Ltd
Manchester City Council,Hospitality + Trading Services,Hire of Equipment,10.02.2011,5100419229,781.2,Edgar J Browning Ltd
Manchester City Council,Regeneration Finance,Grant and subscriptions awarded,10.02.2011,5100419235,"-12,000.00",Greater Manchester Police
Manchester City Council,Hospitality + Trading Services,Hire of Equipment,10.02.2011,5100419237,781.2,Edgar J Browning Ltd
Manchester City Council,Chief Executives,Hire of Equipment,10.02.2011,5100419241,"2,022.74",Piccadilly AV Ltd
Manchester City Council,Childrens Services,Transport Coach Hire,10.02.2011,5100419257,"4,783.94",Redacted Personal Information
Manchester City Council,Libraries and Theatres,Publicity,10.02.2011,5100419265,636.3,J.C.Decaux Uk Limited
Manchester City Council,Adult Social Care,Equipment,10.02.2011,5100419267,579.5,Patterson Medical Ltd Days
Manchester City Council,Hospitality + Trading Services,Refuse Collection,10.02.2011,5100419279,-656,Enterprise Manchester Partnership
Manchester City Council,Grtr Manchester Urban Traffic,Payments to Sub-Contractors,10.02.2011,5100419284,702.5,Rosgal Ltd
Manchester City Council,Corporate Services,Proffesional fees,10.02.2011,5100419285,"5,130.00",Hind Consultancy Services Ltd
Manchester City Council,Grtr Manchester Urban Traffic,Payments to Sub-Contractors,10.02.2011,5100419286,"9,322.25",Siemens Plc
Manchester City Council,Grtr Manchester Urban Traffic,Payments to Sub-Contractors,10.02.2011,5100419287,"2,455.60",Siemens Plc
Manchester City Council,Grtr Manchester Urban Traffic,Payments to Sub-Contractors,10.02.2011,5100419289,"3,012.49",Siemens Plc
Manchester City Council,Grtr Manchester Urban Traffic,Payments to Sub-Contractors,10.02.2011,5100419289,"6,993.46",Siemens Plc
Manchester City Council,Learning Disabilities PB,Payments for services,10.02.2011,5100419290,"13,487.25",North West Community Services Ltd
Manchester City Council,Corporate Services,External repairs and maintenance for buildings,10.02.2011,5100419291,976.5,Manchester Working Ltd
Manchester City Council,Grtr Manchester Urban Traffic,Payments to Sub-Contractors,10.02.2011,5100419292,558.65,Siemens Plc
Manchester City Council,Corporate Services,Proffesional fees,10.02.2011,5100419294,832.77,Airborne Environmental Consultants
Manchester City Council,Corporate Services,Proffesional fees,10.02.2011,5100419294,"20,119.23",Airborne Environmental Consultants
Manchester City Council,Corporate Services,Proffesional fees,10.02.2011,5100419295,"6,359.25",Airborne Environmental Consultants
Manchester City Council,Grtr Manchester Urban Traffic,Payments to Sub-Contractors,10.02.2011,5100419297,"1,592.00",P J Markham Electronics Maintenance
Manchester City Council,Grtr Manchester Urban Traffic,Payments to Sub-Contractors,10.02.2011,5100419298,810,P J Markham Electronics Maintenance
Manchester City Council,Grtr Manchester Urban Traffic,Agency staff provision,10.02.2011,5100419299,"1,600.00",P J Markham Electronics Maintenance
Manchester City Council,Grtr Manchester Urban Traffic,Payments to Sub-Contractors,10.02.2011,5100419300,"7,686.90",Rosgal Ltd
Manchester City Council,Chief Executives,Agency staff provision,10.02.2011,5100419302,"1,155.00",Sacco Mann Ltd
Manchester City Council,Grtr Manchester Urban Traffic,Payments to Sub-Contractors,10.02.2011,5100419307,"15,910.96",Telent Technology t/a Traffic Signa
Manchester City Council,Regeneration Finance,Grant and subscriptions awarded,10.02.2011,5100419318,"1,230.00",Awaaz Manchester
Manchester City Council,Childrens Services,Hire of Equipment,10.02.2011,5100419323,823.9,Sibcas Limited
Manchester City Council,Childrens Services,Hire of Equipment,10.02.2011,5100419326,915.2,Sibcas Limited
Manchester City Council,Housing Revenue Account,Training and Development,10.02.2011,5100419328,"-26,464.60",InTrain Limited
Manchester City Council,Childrens Services,Hire of Equipment,10.02.2011,5100419331,715,Sibcas Limited
Manchester City Council,Highways Services,Contract Cleaning External,10.02.2011,5100419353,733.67,Sodexho Ltd
Manchester City Council,Chief Executives,Grant and subscriptions awarded,10.02.2011,5100419373,"25,000.00",Manchester Camerata
Manchester City Council,Hospitality + Trading Services,Vehicle Parts/Spares,10.02.2011,5100419382,535,N. A. Brown Limited
Manchester City Council,Grtr Manchester Urban Traffic,Payments to Sub-Contractors,10.02.2011,5100419395,"2,926.00",Rosgal Ltd
Manchester City Council,Adult Social Care,Bed & Breakfast Acc,10.02.2011,5100419403,"1,935.00",Redacted Personal Information
Manchester City Council,Learning Disabilities PB,Payments for services,10.02.2011,5100419414,"10,000.00",Calderstones Nhs Trust
Manchester City Council,Childrens Services,Hire of Premises,10.02.2011,5100419420,700,Willow Park Housing Trust
Manchester City Council,Chief Executives,Printing,10.02.2011,5100419443,"1,919.00",Holdmede Ltd T/A Pelican Press
Manchester City Council,Chief Executives,Building Works,10.02.2011,5100419446,"1,170.00",St Chads Community Hall
Manchester City Council,Learning Disabilities PB,Payments for services,10.02.2011,5100419450,"4,296.32",Outreach Community & Residential Se
Manchester City Council,Learning Disabilities PB,Payments for services,10.02.2011,5100419462,"4,296.32",Outreach Community & Residential Se
Manchester City Council,Adult Social Care,Support People Payments,10.02.2011,5100419464,621,Care Quality Commission
Manchester City Council,Hospitality + Trading Services,Hire of Equipment,10.02.2011,5100419466,"-7,020.32",T M Newburn Group Limited
Manchester City Council,Hospitality + Trading Services,Hire of Equipment,10.02.2011,5100419470,"-9,600.00",T M Newburn Group Limited
Manchester City Council,Chief Executives,Subsistence and Conference Expenses,10.02.2011,5100419484,500,Westlake Conflict Management
Manchester City Council,Childrens Services,Agency staff provision,10.02.2011,5100419531,575,Randstad Education
Manchester City Council,Childrens Services,Agency staff provision,10.02.2011,5100419534,575,Randstad Education
Manchester City Council,Chief Executives,Agency staff provision,10.02.2011,5100419537,"6,135.00",Randstad Care
Manchester City Council,Childrens Services,Agency staff provision,10.02.2011,5100419545,-873.08,SRA Cover Staff Ltd
Manchester City Council,Corporate Services,Agency staff provision,10.02.2011,5100419547,-657.4,Qualitas People Solutions Ltd
Manchester City Council,Chief Executives,Agency staff provision,10.02.2011,5100419552,-987.4,PHIRST t/a Apex Nursing & Care Serv
Manchester City Council,Childrens Services,Agency staff provision,10.02.2011,5100419561,"2,892.50",Rita McNamara Associates
Manchester City Council,Childrens Services,Agency staff provision,10.02.2011,5100419576,575,Randstad Education
Manchester City Council,Childrens Services,Agency staff provision,10.02.2011,5100419599,558.36,Hays Personnel
Manchester City Council,Childrens Services,Agency staff provision,10.02.2011,5100419600,558.36,Hays Personnel
Manchester City Council,Childrens Services,Agency staff provision,10.02.2011,5100419601,-558.36,Hays Personnel
Manchester City Council,Childrens Services,Works and associated costs for Land and Buildings,10.02.2011,5100419608,"9,817.80",F Parkinson Limited
Manchester City Council,Childrens Services,Grant and subscriptions awarded,10.02.2011,5100419610,"3,752.69",Wryoa W.H.I.Z
Manchester City Council,Childrens Services,Grant and subscriptions awarded,10.02.2011,5100419613,"2,610.39",Reachout Youth
Manchester City Council,Childrens Services,Grant and subscriptions awarded,10.02.2011,5100419614,"5,806.99",Trinity House Community Resource Ce
Manchester City Council,Chief Executives,Infrastructure Fees,10.02.2011,5100419624,"2,716.26",AECOM Limited
Manchester City Council,Childrens Services,Supported Accom,10.02.2011,5100419625,650,Bedspace Resource Ltd
Manchester City Council,Chief Executives,Rents,10.02.2011,5100419630,"1,250.00",Body Positive North West Ltd
Manchester City Council,Regeneration Finance,Grant and subscriptions awarded,10.02.2011,5100419631,"9,900.00",ALL FM 96.9 Ltd
Manchester City Council,Childrens Services,Supported Accom,10.02.2011,5100419636,725,Bedspace Resource Ltd
Manchester City Council,Chief Executives,Payments for services,10.02.2011,5100419637,"3,290.00",Abbey Gisburne Park Hospital
Manchester City Council,Childrens Services,Supported Accom,10.02.2011,5100419638,725,Bedspace Resource Ltd
Manchester City Council,Childrens Services,Supported Accom,10.02.2011,5100419639,725,Bedspace Resource Ltd
Manchester City Council,Childrens Services,Supported Accom,10.02.2011,5100419641,650,Bedspace Resource Ltd
Manchester City Council,Manchester Leisure,Tipping - Tonnage,10.02.2011,5100419644,-708.63,Enterprise Manchester Partnership
Manchester City Council,Environment and Operations,I T Provision,10.02.2011,5100419649,"3,464.90",Mouchel Limited
Manchester City Council,Environment and Operations,I T Provision,10.02.2011,5100419651,"1,462.90",Mouchel Limited
Manchester City Council,Hospitality + Trading Services,Vehicle Repairs,10.02.2011,5100419654,"1,129.35",Specialist Vehicle rental
Manchester City Council,Hospitality + Trading Services,Hire of Equipment,10.02.2011,5100419658,"7,020.32",T M Newburn Group Limited
Manchester City Council,Hospitality + Trading Services,Hire of Equipment,10.02.2011,5100419660,"9,600.00",T M Newburn Group Limited
Manchester City Council,Regeneration Finance,Grant and subscriptions awarded,10.02.2011,5100419662,"8,000.00",Peoples History Museum
Manchester City Council,Hospitality + Trading Services,Hire of Equipment,10.02.2011,5100419668,"-9,600.00",T M Newburn Group Limited
Manchester City Council,Hospitality + Trading Services,Vehicle Hire Costs,10.02.2011,5100419669,"1,714.40",Aebi Schmidt Ltd
Manchester City Council,Regeneration Finance,Proffesional fees,10.02.2011,5100419670,650,Ocr
Manchester City Council,Hospitality + Trading Services,Hire of Equipment,10.02.2011,5100419671,"-7,020.32",T M Newburn Group Limited
Manchester City Council,Hospitality + Trading Services,Vehicle Hire Costs,10.02.2011,5100419683,"-1,714.40",Aebi Schmidt Ltd
Manchester City Council,Highways Services,Payments to Sub-Contractors,10.02.2011,5100419695,"2,266.14",Salt Union Ltd
Manchester City Council,Hospitality + Trading Services,Hire of Equipment,10.02.2011,5100419704,"40,000.00",T M Newburn Group Limited
Manchester City Council,Childrens Services,Rents,10.02.2011,5100419708,"51,754.52",Redman Heenan Properties Limited
Manchester City Council,Chief Executives,Agency staff provision,10.02.2011,5100419715,"1,792.50",Key People Ltd
Manchester City Council,Highways Services,Payments to Sub-Contractors,10.02.2011,5100419723,"2,614.84",Salt Union Ltd
Manchester City Council,Childrens Services,Payments for services,10.02.2011,5100419734,"1,683.00",Serco Manchester (Manchester Commun
Manchester City Council,Highways Services,Payments to Sub-Contractors,10.02.2011,5100419738,759.52,Salt Union Ltd
Manchester City Council,Childrens Services,Payments for services,10.02.2011,5100419742,"-1,183.00",Serco Manchester (Manchester Commun
Manchester City Council,Highways Services,Payments to Sub-Contractors,10.02.2011,5100419744,773.03,Salt Union Ltd
Manchester City Council,Chief Executives,Third party payments relating to Voluntary Organisations,10.02.2011,5100419748,"29,042.00",Manchester Action On Street Health
Manchester City Council,Highways Services,Payments to Sub-Contractors,10.02.2011,5100419751,761.14,Salt Union Ltd
Manchester City Council,Childrens Services,Residential Furniture,10.02.2011,5100419762,"1,182.58",The Furnishing Service Ltd
Manchester City Council,Adult Social Care,Residential Furniture,10.02.2011,5100419767,519.17,The Furnishing Service Ltd
Manchester City Council,Adult Social Care,Residential Furniture,10.02.2011,5100419772,519.17,The Furnishing Service Ltd
Manchester City Council,Chief Executives,Printing,10.02.2011,5100419810,598,Astra Signs
Manchester City Council,Hospitality + Trading Services,Hire of Machinery,10.02.2011,5100419820,"1,102.94",Ashtead Plant Hire
Manchester City Council,Highways Services,Payments to Sub-Contractors,10.02.2011,5100419822,"1,523.36",Salt Union Ltd
Manchester City Council,Highways Services,Payments to Sub-Contractors,10.02.2011,5100419826,"1,507.70",Salt Union Ltd
Manchester City Council,Highways Services,Payments to Sub-Contractors,10.02.2011,5100419829,"2,271.55",Salt Union Ltd
Manchester City Council,Childrens Services,Subsistence and Conference Expenses,10.02.2011,5100419831,780,Happy Computers
Manchester City Council,Childrens Services,Agency staff provision,10.02.2011,5100419832,"1,025.00",Randstad Education
Manchester City Council,Adult Social Care,Car Parking Permits,10.02.2011,5100419834,"1,542.62",National Car Parks Ltd Season Ticke
Manchester City Council,Childrens Services,Subsistence and Conference Expenses,10.02.2011,5100419836,"1,800.00",KD Training Consultants Ltd
Manchester City Council,Childrens Services,Agency staff provision,10.02.2011,5100419837,975,Randstad Education
Manchester City Council,Childrens Services,Transport Taxis,10.02.2011,5100419844,"2,832.50",Trading Post (NW) Ltd
Manchester City Council,Childrens Services,Transport Taxis,10.02.2011,5100419852,"2,064.00",Trading Post (NW) Ltd
Manchester City Council,Corporate Services,Proffesional fees,10.02.2011,5100419857,"2,141.50",Edmond Shipway
Manchester City Council,Childrens Services,Support People Payments,10.02.2011,5100419862,"2,600.00",Young Advisors Company Ltd
Manchester City Council,Childrens Services,Works and associated costs for Land and Buildings,10.02.2011,5100419869,"44,733.18",Manchester Working Ltd
Manchester City Council,Manchester Leisure,Tipping - Tonnage,10.02.2011,5100419873,798.53,Enterprise Manchester Partnership
Manchester City Council,Childrens Services,Hire of Premises,10.02.2011,5100420025,-600,Manchester City Football Club Plc
Manchester City Council,Chief Executives,Grant and subscriptions awarded,11.02.2011,1700018972,"-1,970.00",Trinity District Residents Associat
Manchester City Council,Chief Executives,Grant and subscriptions awarded,11.02.2011,1700018973,"-2,414.63",Trinity District Residents
Manchester City Council,Chief Executives,Grant and subscriptions awarded,11.02.2011,1700018974,-524,Trinity District Residents
Manchester City Council,Chief Executives,Grant and subscriptions awarded,11.02.2011,1700018975,-702,Sixty Club Simpson Memorial
Manchester City Council,Insurance Fund,Insurance,11.02.2011,1902452851,"8,453.50",Forbes Solicitors
Manchester City Council,Insurance Fund,Insurance,11.02.2011,1902462305,"13,000.00",Michael Alexander & Co.Solicitors
Manchester City Council,Childrens Services,Transport Taxis,11.02.2011,1902475547,505.56,Cresta Car Hire
Manchester City Council,Chief Executives,Agency staff provision,11.02.2011,1902476489,792.2,Swiis Uk Limited
Manchester City Council,Chief Executives,Agency staff provision,11.02.2011,1902476490,792.2,Swiis Uk Limited
Manchester City Council,Chief Executives,Agency staff provision,11.02.2011,1902476491,982.59,Swiis Uk Limited
Manchester City Council,Environment and Operations,Data Registration,11.02.2011,1902476821,625,Hm Court Service
Manchester City Council,Environment and Operations,Data Registration,11.02.2011,1902476830,"7,670.00",Hm Court Service
Manchester City Council,Libraries and Theatres,Library Materials Acquisition,11.02.2011,1902476987,566.07,Coutts Information Services Ltd
Manchester City Council,Environment and Operations,Training and Development,11.02.2011,1902481554,"2,008.02",Resource Futures
Manchester City Council,Childrens Services,Mobilephone Charges,11.02.2011,1902481563,"1,897.22",T-Mobile
Manchester City Council,Grtr Manchester Urban Traffic,Mobilephone Charges,11.02.2011,1902481564,"1,135.34",T-Mobile
Manchester City Council,Childrens Services,Mobilephone Charges,11.02.2011,1902481570,837.94,T-Mobile
Manchester City Council,Hospitality + Trading Services,Compensation Payments,11.02.2011,1902484373,"3,600.00",REDACTED PERSONAL DATA
Manchester City Council,Highways Services,Compensation Payments,11.02.2011,1902484374,"1,317.00",Redacted Personal Information
Manchester City Council,Chief Executives,Grant and subscriptions awarded,11.02.2011,1902484492,"1,970.00",Trinity District Residents Associat
Manchester City Council,Chief Executives,Grant and subscriptions awarded,11.02.2011,1902484493,702,Sixty Club Simpson Memorial
Manchester City Council,Hospitality + Trading Services,Catering Provisions,11.02.2011,1902484534,606.23,Berkeley Care Management Ltd
Manchester City Council,Hospitality + Trading Services,Catering Provisions,11.02.2011,1902484536,799.2,Brake Bros Foodservice Ltd
Manchester City Council,Hospitality + Trading Services,Building Materials for direct delivery,11.02.2011,1902484538,625.25,Pasta King (Uk) Ltd
Manchester City Council,Chief Executives,Grant and subscriptions awarded,11.02.2011,1902484546,"2,414.63",Trinity District Residents
Manchester City Council,Hospitality + Trading Services,Building Materials for direct delivery,11.02.2011,1902484604,688,Pasta King (Uk) Ltd
Manchester City Council,Chief Executives,Grant and subscriptions awarded,11.02.2011,1902484605,524,Trinity District Residents
Manchester City Council,Childrens Services,Foster Payments,11.02.2011,1902485450,717.38,Redacted Personal Information
Manchester City Council,Adult Social Care,Home Care ,11.02.2011,1902485462,"4,353.23",Enterprise Care Group Ltd
Manchester City Council,Adult Social Care,Home Care ,11.02.2011,1902485462,"3,340.11",Enterprise Care Group Ltd
Manchester City Council,Adult Social Care,Home Care ,11.02.2011,1902485462,"2,376.17",Enterprise Care Group Ltd
Manchester City Council,Adult Social Care,Home Care ,11.02.2011,1902485462,685.82,Enterprise Care Group Ltd
Manchester City Council,Adult Social Care,Home Care ,11.02.2011,1902485462,"1,192.00",Enterprise Care Group Ltd
Manchester City Council,Adult Social Care,Home Care ,11.02.2011,1902485462,"2,128.37",Enterprise Care Group Ltd
Manchester City Council,Adult Social Care,Home Care ,11.02.2011,1902485462,"2,791.86",Enterprise Care Group Ltd
Manchester City Council,Adult Social Care,Home Care ,11.02.2011,1902485462,"7,388.07",Enterprise Care Group Ltd
Manchester City Council,Adult Social Care,Home Care ,11.02.2011,1902485462,"3,768.39",Enterprise Care Group Ltd
Manchester City Council,Adult Social Care,Home Care ,11.02.2011,1902485462,834.76,Enterprise Care Group Ltd
Manchester City Council,Childrens Services,Grant and subscriptions awarded,11.02.2011,5100384948,"36,095.00",Central Mcr University Hospitals
Manchester City Council,Corporate Services,Equipment,11.02.2011,5100395088,650,Ing Lease (Uk) Limited
Manchester City Council,Corporate Services,I T Provision,11.02.2011,5100407940,"3,842.06",Intrinsic Technology Limited
Manchester City Council,Hospitality + Trading Services,Purchase of stores for re-distribution,11.02.2011,5100413735,"2,878.90",PHS Group
Manchester City Council,Childrens Services,Training and Development,11.02.2011,5100414850,685.48,Madeleine Lindley Ltd
Manchester City Council,Corporate Services,Postage,11.02.2011,5100415992,"2,571.16",Royal Mail
Manchester City Council,Chief Executives,Building Works,11.02.2011,5100416450,"702,816.68",Salford City Council
Manchester City Council,Chief Executives,Grant and subscriptions awarded,11.02.2011,5100416848,"8,630.00",NHS Manchester Primary Care Trust
Manchester City Council,Chief Executives,Building Works,11.02.2011,5100416912,"21,531.00",Salford City Council
Manchester City Council,Chief Executives,Agency staff provision,11.02.2011,5100416997,"1,219.78",Carepath Recruitment
Manchester City Council,Hospitality + Trading Services,Vehicle Hire Costs,11.02.2011,5100417021,500,Advanced Vehicle Technicians Ltd
Manchester City Council,Chief Executives,Agency staff provision,11.02.2011,5100417046,"3,872.51",SRA Cover Staff Ltd
Manchester City Council,Chief Executives,Agency staff provision,11.02.2011,5100417056,"1,041.63",P S Care
Manchester City Council,Chief Executives,Agency staff provision,11.02.2011,5100417129,"2,060.44",Bs Project Services Ltd T/A
Manchester City Council,Regeneration Finance,Grant and subscriptions awarded,11.02.2011,5100417133,648,Back On Track
Manchester City Council,Adult Social Care,Works and associated costs for Land and Buildings,11.02.2011,5100417142,"127,995.00",Cruden Group Ltd
Manchester City Council,Childrens Services,Building Works,11.02.2011,5100417146,"541,852.60",Willmott Dixon Construction
Manchester City Council,Hospitality + Trading Services,Building Materials for direct delivery,11.02.2011,5100417332,"3,539.50",Bell & Webster Concrete Ltd
Manchester City Council,Childrens Services,Works and associated costs for Land and Buildings,11.02.2011,5100417438,"3,147.00",Bramall Construction Ltd
Manchester City Council,Corporate Services,Postage,11.02.2011,5100417607,"5,485.14",Royal Mail
Manchester City Council,Hospitality + Trading Services,Purchase of stores for re-distribution,11.02.2011,5100417615,936,GB Chemicals
Manchester City Council,Hospitality + Trading Services,Building Materials for direct delivery,11.02.2011,5100417966,630,Frankland Tree Services Ltd
Manchester City Council,Environment and Operations,Payments to Sub-Contractors,11.02.2011,5100417967,"1,900.00",Frankland Tree Services Ltd
Manchester City Council,Corporate Services,I T Provision,11.02.2011,5100417971,"1,683.86",NWIX Group Ltd
Manchester City Council,Grtr Manchester Urban Traffic,Proffesional fees,11.02.2011,5100418195,"1,544.00",SEJ Consulting Ltd
Manchester City Council,Chief Executives,Agency staff provision,11.02.2011,5100418202,882.35,People Source Consulting
Manchester City Council,Adult Social Care,Equipment,11.02.2011,5100418245,"1,800.00",Invacare Limited
Manchester City Council,Corporate Services,Works and associated costs for Land and Buildings,11.02.2011,5100418271,"6,180.00",O'Shea Business Consulting Ltd
Manchester City Council,Chief Executives,Consultants Fees,11.02.2011,5100418368,850,Caci Ltd
Manchester City Council,Childrens Services,Training and Development,11.02.2011,5100418370,532,Community Products Ltd
Manchester City Council,Corporate Services,Postage,11.02.2011,5100418473,"2,063.70",Royal Mail
Manchester City Council,Chief Executives,Agency staff provision,11.02.2011,5100418541,501.94,Kelly Services (Uk) Limited
Manchester City Council,Corporate Services,Storage Costs,11.02.2011,5100418569,"1,481.52",Box-It (NW)
Manchester City Council,Manchester Leisure,Proffesional fees,11.02.2011,5100418706,"1,225.00",DKC Consultants
Manchester City Council,Environment and Operations,Proffesional fees,11.02.2011,5100418767,"1,489.25",Redacted Personal Information
Manchester City Council,Chief Executives,Grant and subscriptions awarded,11.02.2011,5100418888,"2,000.00",Kendal College
Manchester City Council,Corporate Services,Tracing fees,11.02.2011,5100419013,903.5,Experian Limited
Manchester City Council,Corporate Services,Equipment,11.02.2011,5100419146,650,Ing Lease (Uk) Limited
Manchester City Council,Chief Executives,Furniture,11.02.2011,5100419232,567,Back Care Solutions Ltd
Manchester City Council,Corporate Services,Furniture,11.02.2011,5100419236,855,Back Care Solutions Ltd
Manchester City Council,Manchester Leisure,Works and associated costs for Land and Buildings,11.02.2011,5100419250,"27,664.00",F Parkinson Limited
Manchester City Council,Hospitality + Trading Services,Purchase of stores for re-distribution,11.02.2011,5100419324,"2,784.00",Opalion Plastics Ltd
Manchester City Council,Hospitality + Trading Services,Purchase of stores for re-distribution,11.02.2011,5100419338,"2,160.00",Opalion Plastics Ltd
Manchester City Council,Corporate Services,Training and Development,11.02.2011,5100419346,697.5,NES AIM Academy
Manchester City Council,Corporate Services,Training and Development,11.02.2011,5100419359,"2,485.50",NES AIM Academy
Manchester City Council,Corporate Services,Training and Development,11.02.2011,5100419361,"1,657.00",NES AIM Academy
Manchester City Council,Childrens Services,Transport Coach Hire,11.02.2011,5100419371,630,Connect Cars Ltd
Manchester City Council,Childrens Services,Transport Coach Hire,11.02.2011,5100419378,"2,000.00",Connect Cars Ltd
Manchester City Council,Childrens Services,Transport Coach Hire,11.02.2011,5100419383,769.5,Connect Cars Ltd
Manchester City Council,Childrens Services,Transport Coach Hire,11.02.2011,5100419386,"1,200.00",Connect Cars Ltd
Manchester City Council,Childrens Services,Transport Coach Hire,11.02.2011,5100419389,920,Connect Cars Ltd
Manchester City Council,Childrens Services,Transport Coach Hire,11.02.2011,5100419392,"1,330.00",Connect Cars Ltd
Manchester City Council,Manchester Leisure,Rents,11.02.2011,5100419442,600,Trinity House Community Resource
Manchester City Council,Adult Social Care,Rents,11.02.2011,5100419500,"8,908.42",Grail Property
Manchester City Council,Adult Social Care,Rents,11.02.2011,5100419520,"7,453.28",Grail Property
Manchester City Council,Adult Social Care,Works and associated costs for Land and Buildings,11.02.2011,5100419539,"1,235.48",Northwards Housing Limited
Manchester City Council,Chief Executives,Agency staff provision,11.02.2011,5100419551,-863.1,Capita  Resourcing Ltd
Manchester City Council,Hospitality + Trading Services,Purchase of stores for re-distribution,11.02.2011,5100419688,"2,525.00",Broxap Ltd
Manchester City Council,Chief Executives,Printing,11.02.2011,5100419805,-702.65,Astra Signs
Manchester City Council,Adult Social Care,Equipment,11.02.2011,5100419823,706.2,Aidapt Bathrooms Ltd
Manchester City Council,Adult Social Care,Equipment,11.02.2011,5100419825,545.7,Aidapt Bathrooms Ltd
Manchester City Council,Highways Services,Agency staff provision,11.02.2011,5100419855,"2,990.00",Greater Manchester Police
Manchester City Council,Hospitality + Trading Services,Purchase of stores for re-distribution,11.02.2011,5100419860,"1,205.38",PHS Group
Manchester City Council,Manchester Leisure,Training and Development,11.02.2011,5100419866,702,NWGA Coach Education
Manchester City Council,Corporate Services,Refuse Collection,11.02.2011,5100419875,"1,054.00",Enterprise Manchester Partnership
Manchester City Council,Childrens Services,Professional Services Curriculum,11.02.2011,5100419880,"1,540.00",Manchester Vocational Centre
Manchester City Council,Manchester Leisure,Grant and subscriptions awarded,11.02.2011,5100419883,"5,000.00",The East Manchester Academy
Manchester City Council,Childrens Services,Subsistence and Conference Expenses,11.02.2011,5100419894,550,StellaR Education Solutions Ltd
Manchester City Council,Corporate Services,Grounds Maintenance,11.02.2011,5100419899,690,Countrywide Grounds Maintenance Ltd
Manchester City Council,Hospitality + Trading Services,Vehicle Hire Costs,11.02.2011,5100419901,"1,714.40",Aebi Schmidt Ltd
Manchester City Council,Regeneration Finance,Grant and subscriptions awarded,11.02.2011,5100419902,"6,070.00",People's History Museum
Manchester City Council,Hospitality + Trading Services,Vehicle Hire Costs,11.02.2011,5100419903,"1,771.60",Aebi Schmidt Ltd
Manchester City Council,Hospitality + Trading Services,Vehicle Hire Costs,11.02.2011,5100419905,"1,028.40",Aebi Schmidt Ltd
Manchester City Council,Manchester Leisure,Rents,11.02.2011,5100419909,625,Manchester Sports & Leisure Trust
Manchester City Council,Manchester Leisure,Rents,11.02.2011,5100419911,625,Manchester Sports & Leisure Trust
Manchester City Council,Chief Executives,Agency staff provision,11.02.2011,5100419917,952,Sellick Partnership (Legal) Ltd
Manchester City Council,Hospitality + Trading Services,Cleaning Equipment,11.02.2011,5100419920,"1,850.00",Elliot Loohire Limited
Manchester City Council,Regeneration Finance,External repairs and maintenance for buildings,11.02.2011,5100419932,"1,432.00",Fencelines Ltd
Manchester City Council,Highways Services,I T Provision,11.02.2011,5100419940,895,Excitech Ltd
Manchester City Council,Adult Social Care,Compensation Payments,11.02.2011,5100419946,800,Hilton Harrop-Griffiths
Manchester City Council,Childrens Services,Agency staff provision,11.02.2011,5100419951,575,Randstad Education
Manchester City Council,Hospitality + Trading Services,Purchase of stores for re-distribution,11.02.2011,5100419959,"2,334.00",P.F. Cusack (Tools Supplies) Ltd
Manchester City Council,Childrens Services,Payments for services,11.02.2011,5100419960,"1,901.00",Reachout Youth
Manchester City Council,Childrens Services,Works and associated costs for Land and Buildings,11.02.2011,5100419972,"202,315.00",GB Building Solutions Ltd
Manchester City Council,Childrens Services,Payments for services,11.02.2011,5100419976,"1,746.50",Reachout Youth
Manchester City Council,Chief Executives,Agency staff provision,11.02.2011,5100419997,"2,215.36",Sellick Partnership (Legal) Ltd
Manchester City Council,Adult Social Care,Legal Fees,11.02.2011,5100419999,966.2,Personal Care Consultants Ltd
Manchester City Council,Corporate Services,Equipment,11.02.2011,5100420006,-650,Ing Lease (Uk) Limited
Manchester City Council,Adult Social Care,Storage Costs,11.02.2011,5100420026,"3,798.19",Safe Records Management Ltd
Manchester City Council,Childrens Services,Grant and subscriptions awarded,11.02.2011,5100420028,"2,500.00",Nacro Operations
Manchester City Council,Childrens Services,Grant and subscriptions awarded,11.02.2011,5100420031,"11,324.00",Nacro Operations
Manchester City Council,Regeneration Finance,Grant and subscriptions awarded,11.02.2011,5100420035,"7,500.00",In the City 2009 Ltd
Manchester City Council,Childrens Services,I T Provision,11.02.2011,5100420039,"1,235.64",Greenlight Computers Limited
Manchester City Council,Chief Executives,Grant and subscriptions awarded,11.02.2011,5100420040,"84,532.50",Halle Concerts Society
Manchester City Council,Environment and Operations,Security,11.02.2011,5100420041,"10,970.61",Goldrange Limited
Manchester City Council,Environment and Operations,Cleaning Equipment and Materials,11.02.2011,5100420043,"6,947.73",Manchester Working Ltd
Manchester City Council,Manchester Leisure,Proffesional fees,11.02.2011,5100420044,"2,916.67",Sport Taekwondo UK Limited
Manchester City Council,Chief Executives,Agency staff provision,11.02.2011,5100420048,"9,671.39",Reed Employment Plc
Manchester City Council,Housing Revenue Account,Responsive Repairs Work,11.02.2011,5100420050,"5,609.11",Manchester Working Ltd
Manchester City Council,Housing Revenue Account,Consultants Fees,11.02.2011,5100420052,"10,770.64",Mpulse Ltd
Manchester City Council,Chief Executives,Grant and subscriptions awarded,11.02.2011,5100420053,"14,000.00",Halle Concerts Society
Manchester City Council,Childrens Services,I T Provision,11.02.2011,5100420056,959,Mersey Grid Limited
Manchester City Council,Hospitality + Trading Services,Catering Provisions,11.02.2011,5100420057,"2,130.00",Jacksons Farm Fayre Ltd
Manchester City Council,Hospitality + Trading Services,Purchase of stores for re-distribution,11.02.2011,5100420066,"-1,205.38",PHS Group
Manchester City Council,Hospitality + Trading Services,Vehicle Parts/Spares,11.02.2011,5100420073,783,Warrington Truck Parts Ltd
Manchester City Council,Chief Executives,Payments for services,11.02.2011,5100420076,"2,585.00",Abbey Gisburne Park Hospital
Manchester City Council,Chief Executives,Payments for services,11.02.2011,5100420081,"6,580.00",Abbey Gisburne Park Hospital
Manchester City Council,Childrens Services,Grant and subscriptions awarded,11.02.2011,5100420084,"10,801.00",Young People Support Foundation
Manchester City Council,Childrens Services,Legal Fees,11.02.2011,5100420089,900,Redacted Personal Information
Manchester City Council,Highways Services,Proffesional fees,11.02.2011,5100420090,"13,443.67",AECOM Limited
Manchester City Council,Childrens Services,Legal Fees,11.02.2011,5100420092,660,Redacted Personal Information
Manchester City Council,Regeneration Finance,Grant and subscriptions awarded,11.02.2011,5100420110,"8,346.89",Greater Manchester Police
Manchester City Council,Housing Revenue Account,Council Dwelling Adaptations,11.02.2011,5100420134,"37,878.68",Manchester Working Ltd
Manchester City Council,Housing Revenue Account,Council Dwelling Adaptations,11.02.2011,5100420135,"-26,830.22",Manchester Working Ltd
Manchester City Council,Learning Disabilities PB,Respite Care Costs,11.02.2011,5100420138,"2,530.00",REDACTED PERSONAL DATA
Manchester City Council,Chief Executives,Training and Development,11.02.2011,5100420145,570,Alphatec 2000 Ltd
Manchester City Council,Environment and Operations,CRB Fees,11.02.2011,5100420151,"6,264.00",Criminal Records Bureau
Manchester City Council,Childrens Services,Payments for services,11.02.2011,5100420177,"1,628.00",Wryoa W.H.I.Z
Manchester City Council,Libraries and Theatres,Special Event Budget,11.02.2011,5100420291,520,New Emperor Restaurant
Manchester City Council,Childrens Services,Landline Telephone,11.02.2011,5100420298,-603.66,Chess Plc
Manchester City Council,Childrens Services,Landline Telephone,11.02.2011,5100420310,603.66,Chess Plc
Manchester City Council,Corporate Services,Training and Development,11.02.2011,5100420311,-828.5,NES AIM Academy
Manchester City Council,Hospitality + Trading Services,Building Materials for direct delivery,11.02.2011,5100420319,"1,190.00",N. A. Brown Limited
Manchester City Council,Grtr Manchester Urban Traffic,Payments to Sub-Contractors,11.02.2011,5100420322,"30,000.00",Rosgal Ltd
Manchester City Council,Environment and Operations,Car Parking Permits,11.02.2011,5100420324,"5,603.65",PATROL
Manchester City Council,Environment and Operations,Car Parking Permits,11.02.2011,5100420325,"4,998.50",PATROL
Manchester City Council,Grtr Manchester Urban Traffic,Payments to Sub-Contractors,11.02.2011,5100420330,842.88,Rosgal Ltd
Manchester City Council,Childrens Services,Payments for services,11.02.2011,5100420331,"1,000.00",One Way Youth Programme
Manchester City Council,Childrens Services,Grant and subscriptions awarded,11.02.2011,5100420332,"6,022.00",Nacro Operations
Manchester City Council,Grtr Manchester Urban Traffic,Payments to Sub-Contractors,11.02.2011,5100420333,869.5,Rosgal Ltd
Manchester City Council,Childrens Services,Legal Fees,11.02.2011,5100420334,"3,600.00",REDACTED PERSONAL DATA
Manchester City Council,Grtr Manchester Urban Traffic,Payments to Sub-Contractors,11.02.2011,5100420335,534,Rosgal Ltd
Manchester City Council,Childrens Services,Payments for services,11.02.2011,5100420336,"1,500.00",One Way Youth Programme
Manchester City Council,Childrens Services,Payments for services,11.02.2011,5100420337,"1,500.00",One Way Youth Programme
Manchester City Council,Grtr Manchester Urban Traffic,Payments to Sub-Contractors,11.02.2011,5100420338,585,Rosgal Ltd
Manchester City Council,Childrens Services,Payments for services,11.02.2011,5100420340,555,Somali Women's Group of M/cr
Manchester City Council,Childrens Services,Bed & Breakfast Acc,11.02.2011,5100420346,625.03,Victoria Park Independence Proj Ltd
Manchester City Council,Childrens Services,Proffesional fees,11.02.2011,5100420347,"2,033.98",Somali Women's Group of M/cr
Manchester City Council,Adult Social Care,Rehabilitation Payments,11.02.2011,5100420354,"9,939.80",Shardale Ltd
Manchester City Council,Chief Executives,Hire of Equipment,11.02.2011,5100420358,"3,675.90",Taylor Bros.Inst.(Bolton) Ltd
Manchester City Council,Childrens Services,Payments for services,11.02.2011,5100420363,765,Youth on Solid Ground
Manchester City Council,Regeneration Finance,Grant and subscriptions awarded,11.02.2011,5100420365,"4,221.00",Back On Track
Manchester City Council,Manchester Leisure,Payments for services,11.02.2011,5100420367,"7,750.00",Wright Robinson Sports College
Manchester City Council,Adult Social Care,Grant and subscriptions awarded,11.02.2011,5100420371,"29,904.00",Black Health Agency
Manchester City Council,Adult Social Care,Proffesional fees,11.02.2011,5100420385,"23,916.66",Black Health Agency
Manchester City Council,Childrens Services,Catering,11.02.2011,5100420386,800,Pdt Catering
Manchester City Council,Corporate Services,Postage,11.02.2011,5100420392,"-5,485.14",Royal Mail
Manchester City Council,Adult Social Care,Rehabilitation Payments,11.02.2011,5100420399,"1,928.57",Inward House Projects
Manchester City Council,Adult Social Care,Rehabilitation Payments,11.02.2011,5100420401,"1,992.86",Inward House Projects
Manchester City Council,Adult Social Care,Rehabilitation Payments,11.02.2011,5100420402,"11,700.00",Inward House Projects
Manchester City Council,Adult Social Care,Rehabilitation Payments,11.02.2011,5100420403,"1,992.86",Inward House Projects
Manchester City Council,Insurance Fund,Insurance,11.02.2011,5100420411,840,REDACTED PERSONAL DATA
Manchester City Council,Environment and Operations,Legal Fees,11.02.2011,5100420413,"5,164.38",Redacted Personal Information
Manchester City Council,Chief Executives,Printing,11.02.2011,5100420415,797,Contact Photographic Services Ltd
Manchester City Council,Childrens Services,Proffesional fees,11.02.2011,5100420425,"7,597.14","Birch Community Association,"
Manchester City Council,Adult Social Care,Residential Furniture,11.02.2011,5100420474,"2,242.13",The Furnishing Service Ltd
Manchester City Council,Adult Social Care,Residential Furniture,11.02.2011,5100420484,"1,304.29",The Furnishing Service Ltd
Manchester City Council,Chief Executives,Agency staff provision,11.02.2011,5100420488,"-9,450.10",Semester Recruitment Ltd
Manchester City Council,Chief Executives,Agency staff provision,11.02.2011,5100420489,"9,186.57",Semester Recruitment Ltd
Manchester City Council,Childrens Services,Postage,14.02.2011,1902203637,500,Royal Mail
Manchester City Council,Chief Executives,Transport Taxis,14.02.2011,1902462792,515.87,Mantax Radio Taxis Ltd
Manchester City Council,Corporate Services,Printing,14.02.2011,1902467593,695,PrintSearch Cheshire Ltd
Manchester City Council,Housing General Fund,Surplus property Fees,14.02.2011,1902472980,"8,521.95",Addleshaw Goddard Solicitors
Manchester City Council,Hospitality + Trading Services,Compensation Payments,14.02.2011,1902474608,"10,000.00",REDACTED PERSONAL DATA
